{"text_format":"1","workbook":"xlsx","n_sheets":1,"sheets":["CGN2009_BDME_REPORTE_SEMESTRAL"],"not_rendered":{"charts":0,"images":0,"macros":1,"external_links":0,"defined_names":4,"comments":1,"pivot_tables":0},"unopened":[],"bounds":{"document_bytes":16777216,"sheet_cells":100000,"rows_first":2000,"rows_last":500,"rows_between":2000,"halvings":0,"cell_chars":16384,"cell_head_chars":4096},"cells_cut":0,"cells_raw":0,"read":"whole","date_system":"1900"}

{"sheet":"CGN2009_BDME_REPORTE_SEMESTRAL","index":0,"n_rows":150011,"n_cols":14,"rows_kept":4500,"cut":true,"hidden":false,"merged":[[0,0,0,7],[2,0,2,4],[3,5,7,5],[10,4,10,6],[4,0,4,2],[5,0,5,2],[6,0,6,2]],"bounds":{"rows_first":2000,"rows_last":500,"rows_between":2000,"halvings":0}}
["BOLETÍN DE DEUDORES MOROSOS DEL ESTADO - BDME  (CGN2009_BDME_REPORTE_SEMESTRAL)"]
[]
["ATENCIÓN: Antes de diligenciar esta herramienta debe tener una carpeta en el disco C que se llame BDME"]
[null,null,null,null,null,"En caso de dudas en el diligenciamiento de esta Herramienta de captura, POR FAVOR haga clic aquí para mirar el vídeo tutorial."]
["CODIGO CGN ENTIDAD PUBLICA"]
["PERIODO DE REPORTE"]
["AÑO"]
[]
[null,null,null,null,null,null,"Cifras en pesos"]
["CONCEPTO","TIPO DE DEUDOR","NÚMERO DE OBLIGACIÓN","NÚMERO DE IDENTIFICACIÓN","TIPO DE IDENTIFICACIÓN","NOMBRE Y APELLIDO O RAZÓN SOCIAL","VALOR DE LA OBLIGACIÓN","ESTADO DE LA DEUDA",null,null,null,"S"]
[{"$f":"D5","v":0},{"$f":"VLOOKUP(D6,L37:M48,2,FALSE)","v":{"$error":"#N/A"}},{"$f":"D7","v":0},"CGN2009_BDME_REPORTE_SEMESTRAL",{"$f":"TODAY()","v":"2026-05-12"}]
[null,null,null,null,null,null,null,null,{"$f":"IF(E12=$L$27,1,IF(E12=$L$28,3,IF(E12=$L$29,4,IF(E12=$L$30,5,IF(E12=$L$31,10,IF(E12=$L$32,9,IF(E12=$L$33,2,IF(E12=$L$34,6,\"\"))))))))","v":""},{"$f":"IF(H12=$L$48,1,IF(H12=$L$49,2,IF(H12=$L$50,3,IF(H12=$L$51,4,IF(H12=$L$52,5,IF(H12=$L$53,6,\"\"))))))","v":""}]
[null,null,null,null,null,null,null,null,{"$f":"IF(E13=$L$27,1,IF(E13=$L$28,3,IF(E13=$L$29,4,IF(E13=$L$30,5,IF(E13=$L$31,10,IF(E13=$L$32,9,IF(E13=$L$33,2,IF(E13=$L$34,6,\"\"))))))))","v":""},{"$f":"IF(H13=$L$48,1,IF(H13=$L$49,2,IF(H13=$L$50,3,IF(H13=$L$51,4,IF(H13=$L$52,5,IF(H13=$L$53,6,\"\"))))))","v":""}]
[null,null,null,null,null,null,null,null,"","",null,"periodo",{"$f":"IF(D6=\"ENERO\",10101,IF(D6=\"FEBRERO\",10202,IF(D6=\"MARZO\",10303,IF(D6=\"ABRIL\",10404,IF(D6=\"MAYO\",10505,IF(D6=\"JUNIO\",10606,IF(D6=\"JULIO\",10707,IF(D6=\"AGOSTO\",10808,0))))))))","v":0}]
[null,null,null,null,null,null,null,null,"","",null,"5 SMMLV",{"$f":"1750905*5","v":8754525},1]
[null,null,null,null,null,null,null,null,"",""]
[null,null,null,null,null,null,null,null,"","",null,{"$f":"CONCATENATE(\"REPORTE SEMESTRAL \",\" \",D5,\" \",D6,\" \",D7)","v":"REPORTE SEMESTRAL    "}]
[null,null,null,null,null,null,null,null,"",""]
[null,null,null,null,null,null,null,null,"",""]
[null,null,null,null,null,null,null,null,"",""]
[null,null,null,null,null,null,null,null,"",""]
[null,null,null,null,null,null,null,null,"","",null,"LISTA DE TIPO DE CONCEPTO"]
[null,null,null,null,null,null,null,null,"","",null,"DEUDOR PRINCIPAL"]
[null,null,null,null,null,null,null,null,"","",null,"DEUDOR SOLIDARIO"]
[null,null,null,null,null,null,null,null,"",""]
[null,null,null,null,null,null,null,null,"","",null,"TIPO DE IDENTIFICACION"]
[null,null,null,null,null,null,null,null,"","",null,"CEDULA DE CIUDADANIA",1]
[null,null,null,null,null,null,null,null,"","",null,"TARJETA DE IDENTIDAD",3]
[null,null,null,null,null,null,null,null,"","",null,"CEDULA DE EXTRANJERIA",4]
[null,null,null,null,null,null,null,null,"","",null,"PASAPORTE",5]
[null,null,null,null,null,null,null,null,"","",null,"PERMISO POR PROTECCION TEMPORAL",10]
[null,null,null,null,null,null,null,null,"","",null,"REGISTRO CIVIL",9]
[null,null,null,null,null,null,null,null,"","",null,"NIT",2]
[null,null,null,null,null,null,null,null,"","",null,"SOCIEDAD EXTRANJERA SIN NIT EN COLOMBIA",6]
[null,null,null,null,null,null,null,null,"",""]
[null,null,null,null,null,null,null,null,"","",null,"MESES"]
[null,null,null,null,null,null,null,null,"","",null,"MAYO",10505]
[null,null,null,null,null,null,null,null,"","",null,"NOVIEMBRE",11111]
[null,null,null,null,null,null,null,null,"",""]
[null,null,null,null,null,null,null,null,"",""]
[null,null,null,null,null,null,null,null,"","",null,"LISTA DE TIPO DE DEUDOR"]
[null,null,null,null,null,null,null,null,"","",null,"PERSONA NATURAL"]
[null,null,null,null,null,null,null,null,"","",null,"PERSONA JURIDICA"]
[null,null,null,null,null,null,null,null,"",""]
[null,null,null,null,null,null,null,null,"",""]
[null,null,null,null,null,null,null,null,"",""]
[null,null,null,null,null,null,null,null,"","",null,"LISTA ESTADO DEUDA"]
[null,null,null,null,null,null,null,null,"","",null,"SIN LEYENDA"]
[null,null,null,null,null,null,null,null,"","",null,"RECLAMO EN TRAMITE-DERECHO DE PETICION"]
[null,null,null,null,null,null,null,null,"","",null,"RECLAMO EN TRAMITE-RECURSOS"]
[null,null,null,null,null,null,null,null,"","",null,"RECLAMO EN TRAMITE-QUEJA"]
[null,null,null,null,null,null,null,null,"","",null,"EN DISCUSION JUDICIAL-DEMANDA"]
[null,null,null,null,null,null,null,null,"","",null,"ACCION DE TUTELA"]
[null,null,null,null,null,null,null,null,"",""]
[null,null,null,null,null,null,null,null,"",""]
[null,null,null,null,null,null,null,null,"",""]
[null,null,null,null,null,null,null,null,"",""]
[null,null,null,null,null,null,null,null,"",""]
[null,null,null,null,null,null,null,null,"",""]
[null,null,null,null,null,null,null,null,"",""]
[null,null,null,null,null,null,null,null,"",""]
[null,null,null,null,null,null,null,null,"",""]
[null,null,null,null,null,null,null,null,"",""]
[null,null,null,null,null,null,null,null,"",""]
[null,null,null,null,null,null,null,null,"",""]
[null,null,null,null,null,null,null,null,"",""]
[null,null,null,null,null,null,null,null,"",""]
[null,null,null,null,null,null,null,null,"",""]
[null,null,null,null,null,null,null,null,"",""]
[null,null,null,null,null,null,null,null,"",""]
[null,null,null,null,null,null,null,null,"",""]
[null,null,null,null,null,null,null,null,"",""]
[null,null,null,null,null,null,null,null,"",""]
[null,null,null,null,null,null,null,null,"",""]
[null,null,null,null,null,null,null,null,"",""]
[null,null,null,null,null,null,null,null,"",""]
[null,null,null,null,null,null,null,null,{"$f":"IF(E77=$L$27,1,IF(E77=$L$28,3,IF(E77=$L$29,4,IF(E77=$L$30,5,IF(E77=$L$31,10,IF(E77=$L$32,9,IF(E77=$L$33,2,IF(E77=$L$34,6,\"\"))))))))","v":""},{"$f":"IF(H77=$L$48,1,IF(H77=$L$49,2,IF(H77=$L$50,3,IF(H77=$L$51,4,IF(H77=$L$52,5,IF(H77=$L$53,6,\"\"))))))","v":""}]
[null,null,null,null,null,null,null,null,"",""]
[null,null,null,null,null,null,null,null,"",""]
[null,null,null,null,null,null,null,null,"",""]
[null,null,null,null,null,null,null,null,"",""]
[null,null,null,null,null,null,null,null,"",""]
[null,null,null,null,null,null,null,null,"",""]
[null,null,null,null,null,null,null,null,"",""]
[null,null,null,null,null,null,null,null,"",""]
[null,null,null,null,null,null,null,null,"",""]
[null,null,null,null,null,null,null,null,"",""]
[null,null,null,null,null,null,null,null,"",""]
[null,null,null,null,null,null,null,null,"",""]
[null,null,null,null,null,null,null,null,"",""]
[null,null,null,null,null,null,null,null,"",""]
[null,null,null,null,null,null,null,null,"",""]
[null,null,null,null,null,null,null,null,"",""]
[null,null,null,null,null,null,null,null,"",""]
[null,null,null,null,null,null,null,null,"",""]
[null,null,null,null,null,null,null,null,"",""]
[null,null,null,null,null,null,null,null,"",""]
[null,null,null,null,null,null,null,null,"",""]
[null,null,null,null,null,null,null,null,"",""]
[null,null,null,null,null,null,null,null,"",""]
[null,null,null,null,null,null,null,null,"",""]
[null,null,null,null,null,null,null,null,"",""]
[null,null,null,null,null,null,null,null,"",""]
[null,null,null,null,null,null,null,null,"",""]
[null,null,null,null,null,null,null,null,"",""]
[null,null,null,null,null,null,null,null,"",""]
[null,null,null,null,null,null,null,null,"",""]
[null,null,null,null,null,null,null,null,"",""]
[null,null,null,null,null,null,null,null,"",""]
[null,null,null,null,null,null,null,null,"",""]
[null,null,null,null,null,null,null,null,"",""]
[null,null,null,null,null,null,null,null,"",""]
[null,null,null,null,null,null,null,null,"",""]
[null,null,null,null,null,null,null,null,"",""]
[null,null,null,null,null,null,null,null,"",""]
[null,null,null,null,null,null,null,null,"",""]
[null,null,null,null,null,null,null,null,"",""]
[null,null,null,null,null,null,null,null,"",""]
[null,null,null,null,null,null,null,null,"",""]
[null,null,null,null,null,null,null,null,"",""]
[null,null,null,null,null,null,null,null,"",""]
[null,null,null,null,null,null,null,null,"",""]
[null,null,null,null,null,null,null,null,"",""]
[null,null,null,null,null,null,null,null,"",""]
[null,null,null,null,null,null,null,null,"",""]
[null,null,null,null,null,null,null,null,"",""]
[null,null,null,null,null,null,null,null,"",""]
[null,null,null,null,null,null,null,null,"",""]
[null,null,null,null,null,null,null,null,"",""]
[null,null,null,null,null,null,null,null,"",""]
[null,null,null,null,null,null,null,null,"",""]
[null,null,null,null,null,null,null,null,"",""]
[null,null,null,null,null,null,null,null,"",""]
[null,null,null,null,null,null,null,null,"",""]
[null,null,null,null,null,null,null,null,"",""]
[null,null,null,null,null,null,null,null,"",""]
[null,null,null,null,null,null,null,null,"",""]
[null,null,null,null,null,null,null,null,"",""]
[null,null,null,null,null,null,null,null,"",""]
[null,null,null,null,null,null,null,null,"",""]
[null,null,null,null,null,null,null,null,{"$f":"IF(E141=$L$27,1,IF(E141=$L$28,3,IF(E141=$L$29,4,IF(E141=$L$30,5,IF(E141=$L$31,10,IF(E141=$L$32,9,IF(E141=$L$33,2,IF(E141=$L$34,6,\"\"))))))))","v":""},{"$f":"IF(H141=$L$48,1,IF(H141=$L$49,2,IF(H141=$L$50,3,IF(H141=$L$51,4,IF(H141=$L$52,5,IF(H141=$L$53,6,\"\"))))))","v":""}]
[null,null,null,null,null,null,null,null,"",""]
[null,null,null,null,null,null,null,null,"",""]
[null,null,null,null,null,null,null,null,"",""]
[null,null,null,null,null,null,null,null,"",""]
[null,null,null,null,null,null,null,null,"",""]
[null,null,null,null,null,null,null,null,"",""]
[null,null,null,null,null,null,null,null,"",""]
[null,null,null,null,null,null,null,null,"",""]
[null,null,null,null,null,null,null,null,"",""]
[null,null,null,null,null,null,null,null,"",""]
[null,null,null,null,null,null,null,null,"",""]
[null,null,null,null,null,null,null,null,"",""]
[null,null,null,null,null,null,null,null,"",""]
[null,null,null,null,null,null,null,null,"",""]
[null,null,null,null,null,null,null,null,"",""]
[null,null,null,null,null,null,null,null,"",""]
[null,null,null,null,null,null,null,null,"",""]
[null,null,null,null,null,null,null,null,"",""]
[null,null,null,null,null,null,null,null,"",""]
[null,null,null,null,null,null,null,null,"",""]
[null,null,null,null,null,null,null,null,"",""]
[null,null,null,null,null,null,null,null,"",""]
[null,null,null,null,null,null,null,null,"",""]
[null,null,null,null,null,null,null,null,"",""]
[null,null,null,null,null,null,null,null,"",""]
[null,null,null,null,null,null,null,null,"",""]
[null,null,null,null,null,null,null,null,"",""]
[null,null,null,null,null,null,null,null,"",""]
[null,null,null,null,null,null,null,null,"",""]
[null,null,null,null,null,null,null,null,"",""]
[null,null,null,null,null,null,null,null,"",""]
[null,null,null,null,null,null,null,null,"",""]
[null,null,null,null,null,null,null,null,"",""]
[null,null,null,null,null,null,null,null,"",""]
[null,null,null,null,null,null,null,null,"",""]
[null,null,null,null,null,null,null,null,"",""]
[null,null,null,null,null,null,null,null,"",""]
[null,null,null,null,null,null,null,null,"",""]
[null,null,null,null,null,null,null,null,"",""]
[null,null,null,null,null,null,null,null,"",""]
[null,null,null,null,null,null,null,null,"",""]
[null,null,null,null,null,null,null,null,"",""]
[null,null,null,null,null,null,null,null,"",""]
[null,null,null,null,null,null,null,null,"",""]
[null,null,null,null,null,null,null,null,"",""]
[null,null,null,null,null,null,null,null,"",""]
[null,null,null,null,null,null,null,null,"",""]
[null,null,null,null,null,null,null,null,"",""]
[null,null,null,null,null,null,null,null,"",""]
[null,null,null,null,null,null,null,null,"",""]
[null,null,null,null,null,null,null,null,"",""]
[null,null,null,null,null,null,null,null,"",""]
[null,null,null,null,null,null,null,null,"",""]
[null,null,null,null,null,null,null,null,"",""]
[null,null,null,null,null,null,null,null,"",""]
[null,null,null,null,null,null,null,null,"",""]
[null,null,null,null,null,null,null,null,"",""]
[null,null,null,null,null,null,null,null,"",""]
[null,null,null,null,null,null,null,null,"",""]
[null,null,null,null,null,null,null,null,"",""]
[null,null,null,null,null,null,null,null,"",""]
[null,null,null,null,null,null,null,null,"",""]
[null,null,null,null,null,null,null,null,"",""]
[null,null,null,null,null,null,null,null,{"$f":"IF(E205=$L$27,1,IF(E205=$L$28,3,IF(E205=$L$29,4,IF(E205=$L$30,5,IF(E205=$L$31,10,IF(E205=$L$32,9,IF(E205=$L$33,2,IF(E205=$L$34,6,\"\"))))))))","v":""},{"$f":"IF(H205=$L$48,1,IF(H205=$L$49,2,IF(H205=$L$50,3,IF(H205=$L$51,4,IF(H205=$L$52,5,IF(H205=$L$53,6,\"\"))))))","v":""}]
[null,null,null,null,null,null,null,null,"",""]
[null,null,null,null,null,null,null,null,"",""]
[null,null,null,null,null,null,null,null,"",""]
[null,null,null,null,null,null,null,null,"",""]
[null,null,null,null,null,null,null,null,"",""]
[null,null,null,null,null,null,null,null,"",""]
[null,null,null,null,null,null,null,null,"",""]
[null,null,null,null,null,null,null,null,"",""]
[null,null,null,null,null,null,null,null,"",""]
[null,null,null,null,null,null,null,null,"",""]
[null,null,null,null,null,null,null,null,"",""]
[null,null,null,null,null,null,null,null,"",""]
[null,null,null,null,null,null,null,null,"",""]
[null,null,null,null,null,null,null,null,"",""]
[null,null,null,null,null,null,null,null,"",""]
[null,null,null,null,null,null,null,null,"",""]
[null,null,null,null,null,null,null,null,"",""]
[null,null,null,null,null,null,null,null,"",""]
[null,null,null,null,null,null,null,null,"",""]
[null,null,null,null,null,null,null,null,"",""]
[null,null,null,null,null,null,null,null,"",""]
[null,null,null,null,null,null,null,null,"",""]
[null,null,null,null,null,null,null,null,"",""]
[null,null,null,null,null,null,null,null,"",""]
[null,null,null,null,null,null,null,null,"",""]
[null,null,null,null,null,null,null,null,"",""]
[null,null,null,null,null,null,null,null,"",""]
[null,null,null,null,null,null,null,null,"",""]
[null,null,null,null,null,null,null,null,"",""]
[null,null,null,null,null,null,null,null,"",""]
[null,null,null,null,null,null,null,null,"",""]
[null,null,null,null,null,null,null,null,"",""]
[null,null,null,null,null,null,null,null,"",""]
[null,null,null,null,null,null,null,null,"",""]
[null,null,null,null,null,null,null,null,"",""]
[null,null,null,null,null,null,null,null,"",""]
[null,null,null,null,null,null,null,null,"",""]
[null,null,null,null,null,null,null,null,"",""]
[null,null,null,null,null,null,null,null,"",""]
[null,null,null,null,null,null,null,null,"",""]
[null,null,null,null,null,null,null,null,"",""]
[null,null,null,null,null,null,null,null,"",""]
[null,null,null,null,null,null,null,null,"",""]
[null,null,null,null,null,null,null,null,"",""]
[null,null,null,null,null,null,null,null,"",""]
[null,null,null,null,null,null,null,null,"",""]
[null,null,null,null,null,null,null,null,"",""]
[null,null,null,null,null,null,null,null,"",""]
[null,null,null,null,null,null,null,null,"",""]
[null,null,null,null,null,null,null,null,"",""]
[null,null,null,null,null,null,null,null,"",""]
[null,null,null,null,null,null,null,null,"",""]
[null,null,null,null,null,null,null,null,"",""]
[null,null,null,null,null,null,null,null,"",""]
[null,null,null,null,null,null,null,null,"",""]
[null,null,null,null,null,null,null,null,"",""]
[null,null,null,null,null,null,null,null,"",""]
[null,null,null,null,null,null,null,null,"",""]
[null,null,null,null,null,null,null,null,"",""]
[null,null,null,null,null,null,null,null,"",""]
[null,null,null,null,null,null,null,null,"",""]
[null,null,null,null,null,null,null,null,"",""]
[null,null,null,null,null,null,null,null,"",""]
[null,null,null,null,null,null,null,null,{"$f":"IF(E269=$L$27,1,IF(E269=$L$28,3,IF(E269=$L$29,4,IF(E269=$L$30,5,IF(E269=$L$31,10,IF(E269=$L$32,9,IF(E269=$L$33,2,IF(E269=$L$34,6,\"\"))))))))","v":""},{"$f":"IF(H269=$L$48,1,IF(H269=$L$49,2,IF(H269=$L$50,3,IF(H269=$L$51,4,IF(H269=$L$52,5,IF(H269=$L$53,6,\"\"))))))","v":""}]
[null,null,null,null,null,null,null,null,"",""]
[null,null,null,null,null,null,null,null,"",""]
[null,null,null,null,null,null,null,null,"",""]
[null,null,null,null,null,null,null,null,"",""]
[null,null,null,null,null,null,null,null,"",""]
[null,null,null,null,null,null,null,null,"",""]
[null,null,null,null,null,null,null,null,"",""]
[null,null,null,null,null,null,null,null,"",""]
[null,null,null,null,null,null,null,null,"",""]
[null,null,null,null,null,null,null,null,"",""]
[null,null,null,null,null,null,null,null,"",""]
[null,null,null,null,null,null,null,null,"",""]
[null,null,null,null,null,null,null,null,"",""]
[null,null,null,null,null,null,null,null,"",""]
[null,null,null,null,null,null,null,null,"",""]
[null,null,null,null,null,null,null,null,"",""]
[null,null,null,null,null,null,null,null,"",""]
[null,null,null,null,null,null,null,null,"",""]
[null,null,null,null,null,null,null,null,"",""]
[null,null,null,null,null,null,null,null,"",""]
[null,null,null,null,null,null,null,null,"",""]
[null,null,null,null,null,null,null,null,"",""]
[null,null,null,null,null,null,null,null,"",""]
[null,null,null,null,null,null,null,null,"",""]
[null,null,null,null,null,null,null,null,"",""]
[null,null,null,null,null,null,null,null,"",""]
[null,null,null,null,null,null,null,null,"",""]
[null,null,null,null,null,null,null,null,"",""]
[null,null,null,null,null,null,null,null,"",""]
[null,null,null,null,null,null,null,null,"",""]
[null,null,null,null,null,null,null,null,"",""]
[null,null,null,null,null,null,null,null,"",""]
[null,null,null,null,null,null,null,null,"",""]
[null,null,null,null,null,null,null,null,"",""]
[null,null,null,null,null,null,null,null,"",""]
[null,null,null,null,null,null,null,null,"",""]
[null,null,null,null,null,null,null,null,"",""]
[null,null,null,null,null,null,null,null,"",""]
[null,null,null,null,null,null,null,null,"",""]
[null,null,null,null,null,null,null,null,"",""]
[null,null,null,null,null,null,null,null,"",""]
[null,null,null,null,null,null,null,null,"",""]
[null,null,null,null,null,null,null,null,"",""]
[null,null,null,null,null,null,null,null,"",""]
[null,null,null,null,null,null,null,null,"",""]
[null,null,null,null,null,null,null,null,"",""]
[null,null,null,null,null,null,null,null,"",""]
[null,null,null,null,null,null,null,null,"",""]
[null,null,null,null,null,null,null,null,"",""]
[null,null,null,null,null,null,null,null,"",""]
[null,null,null,null,null,null,null,null,"",""]
[null,null,null,null,null,null,null,null,"",""]
[null,null,null,null,null,null,null,null,"",""]
[null,null,null,null,null,null,null,null,"",""]
[null,null,null,null,null,null,null,null,"",""]
[null,null,null,null,null,null,null,null,"",""]
[null,null,null,null,null,null,null,null,"",""]
[null,null,null,null,null,null,null,null,"",""]
[null,null,null,null,null,null,null,null,"",""]
[null,null,null,null,null,null,null,null,"",""]
[null,null,null,null,null,null,null,null,"",""]
[null,null,null,null,null,null,null,null,"",""]
[null,null,null,null,null,null,null,null,"",""]
[null,null,null,null,null,null,null,null,{"$f":"IF(E333=$L$27,1,IF(E333=$L$28,3,IF(E333=$L$29,4,IF(E333=$L$30,5,IF(E333=$L$31,10,IF(E333=$L$32,9,IF(E333=$L$33,2,IF(E333=$L$34,6,\"\"))))))))","v":""},{"$f":"IF(H333=$L$48,1,IF(H333=$L$49,2,IF(H333=$L$50,3,IF(H333=$L$51,4,IF(H333=$L$52,5,IF(H333=$L$53,6,\"\"))))))","v":""}]
[null,null,null,null,null,null,null,null,"",""]
[null,null,null,null,null,null,null,null,"",""]
[null,null,null,null,null,null,null,null,"",""]
[null,null,null,null,null,null,null,null,"",""]
[null,null,null,null,null,null,null,null,"",""]
[null,null,null,null,null,null,null,null,"",""]
[null,null,null,null,null,null,null,null,"",""]
[null,null,null,null,null,null,null,null,"",""]
[null,null,null,null,null,null,null,null,"",""]
[null,null,null,null,null,null,null,null,"",""]
[null,null,null,null,null,null,null,null,"",""]
[null,null,null,null,null,null,null,null,"",""]
[null,null,null,null,null,null,null,null,"",""]
[null,null,null,null,null,null,null,null,"",""]
[null,null,null,null,null,null,null,null,"",""]
[null,null,null,null,null,null,null,null,"",""]
[null,null,null,null,null,null,null,null,"",""]
[null,null,null,null,null,null,null,null,"",""]
[null,null,null,null,null,null,null,null,"",""]
[null,null,null,null,null,null,null,null,"",""]
[null,null,null,null,null,null,null,null,"",""]
[null,null,null,null,null,null,null,null,"",""]
[null,null,null,null,null,null,null,null,"",""]
[null,null,null,null,null,null,null,null,"",""]
[null,null,null,null,null,null,null,null,"",""]
[null,null,null,null,null,null,null,null,"",""]
[null,null,null,null,null,null,null,null,"",""]
[null,null,null,null,null,null,null,null,"",""]
[null,null,null,null,null,null,null,null,"",""]
[null,null,null,null,null,null,null,null,"",""]
[null,null,null,null,null,null,null,null,"",""]
[null,null,null,null,null,null,null,null,"",""]
[null,null,null,null,null,null,null,null,"",""]
[null,null,null,null,null,null,null,null,"",""]
[null,null,null,null,null,null,null,null,"",""]
[null,null,null,null,null,null,null,null,"",""]
[null,null,null,null,null,null,null,null,"",""]
[null,null,null,null,null,null,null,null,"",""]
[null,null,null,null,null,null,null,null,"",""]
[null,null,null,null,null,null,null,null,"",""]
[null,null,null,null,null,null,null,null,"",""]
[null,null,null,null,null,null,null,null,"",""]
[null,null,null,null,null,null,null,null,"",""]
[null,null,null,null,null,null,null,null,"",""]
[null,null,null,null,null,null,null,null,"",""]
[null,null,null,null,null,null,null,null,"",""]
[null,null,null,null,null,null,null,null,"",""]
[null,null,null,null,null,null,null,null,"",""]
[null,null,null,null,null,null,null,null,"",""]
[null,null,null,null,null,null,null,null,"",""]
[null,null,null,null,null,null,null,null,"",""]
[null,null,null,null,null,null,null,null,"",""]
[null,null,null,null,null,null,null,null,"",""]
[null,null,null,null,null,null,null,null,"",""]
[null,null,null,null,null,null,null,null,"",""]
[null,null,null,null,null,null,null,null,"",""]
[null,null,null,null,null,null,null,null,"",""]
[null,null,null,null,null,null,null,null,"",""]
[null,null,null,null,null,null,null,null,"",""]
[null,null,null,null,null,null,null,null,"",""]
[null,null,null,null,null,null,null,null,"",""]
[null,null,null,null,null,null,null,null,"",""]
[null,null,null,null,null,null,null,null,"",""]
[null,null,null,null,null,null,null,null,{"$f":"IF(E397=$L$27,1,IF(E397=$L$28,3,IF(E397=$L$29,4,IF(E397=$L$30,5,IF(E397=$L$31,10,IF(E397=$L$32,9,IF(E397=$L$33,2,IF(E397=$L$34,6,\"\"))))))))","v":""},{"$f":"IF(H397=$L$48,1,IF(H397=$L$49,2,IF(H397=$L$50,3,IF(H397=$L$51,4,IF(H397=$L$52,5,IF(H397=$L$53,6,\"\"))))))","v":""}]
[null,null,null,null,null,null,null,null,"",""]
[null,null,null,null,null,null,null,null,"",""]
[null,null,null,null,null,null,null,null,"",""]
[null,null,null,null,null,null,null,null,"",""]
[null,null,null,null,null,null,null,null,"",""]
[null,null,null,null,null,null,null,null,"",""]
[null,null,null,null,null,null,null,null,"",""]
[null,null,null,null,null,null,null,null,"",""]
[null,null,null,null,null,null,null,null,"",""]
[null,null,null,null,null,null,null,null,"",""]
[null,null,null,null,null,null,null,null,"",""]
[null,null,null,null,null,null,null,null,"",""]
[null,null,null,null,null,null,null,null,"",""]
[null,null,null,null,null,null,null,null,"",""]
[null,null,null,null,null,null,null,null,"",""]
[null,null,null,null,null,null,null,null,"",""]
[null,null,null,null,null,null,null,null,"",""]
[null,null,null,null,null,null,null,null,"",""]
[null,null,null,null,null,null,null,null,"",""]
[null,null,null,null,null,null,null,null,"",""]
[null,null,null,null,null,null,null,null,"",""]
[null,null,null,null,null,null,null,null,"",""]
[null,null,null,null,null,null,null,null,"",""]
[null,null,null,null,null,null,null,null,"",""]
[null,null,null,null,null,null,null,null,"",""]
[null,null,null,null,null,null,null,null,"",""]
[null,null,null,null,null,null,null,null,"",""]
[null,null,null,null,null,null,null,null,"",""]
[null,null,null,null,null,null,null,null,"",""]
[null,null,null,null,null,null,null,null,"",""]
[null,null,null,null,null,null,null,null,"",""]
[null,null,null,null,null,null,null,null,"",""]
[null,null,null,null,null,null,null,null,"",""]
[null,null,null,null,null,null,null,null,"",""]
[null,null,null,null,null,null,null,null,"",""]
[null,null,null,null,null,null,null,null,"",""]
[null,null,null,null,null,null,null,null,"",""]
[null,null,null,null,null,null,null,null,"",""]
[null,null,null,null,null,null,null,null,"",""]
[null,null,null,null,null,null,null,null,"",""]
[null,null,null,null,null,null,null,null,"",""]
[null,null,null,null,null,null,null,null,"",""]
[null,null,null,null,null,null,null,null,"",""]
[null,null,null,null,null,null,null,null,"",""]
[null,null,null,null,null,null,null,null,"",""]
[null,null,null,null,null,null,null,null,"",""]
[null,null,null,null,null,null,null,null,"",""]
[null,null,null,null,null,null,null,null,"",""]
[null,null,null,null,null,null,null,null,"",""]
[null,null,null,null,null,null,null,null,"",""]
[null,null,null,null,null,null,null,null,"",""]
[null,null,null,null,null,null,null,null,"",""]
[null,null,null,null,null,null,null,null,"",""]
[null,null,null,null,null,null,null,null,"",""]
[null,null,null,null,null,null,null,null,"",""]
[null,null,null,null,null,null,null,null,"",""]
[null,null,null,null,null,null,null,null,"",""]
[null,null,null,null,null,null,null,null,"",""]
[null,null,null,null,null,null,null,null,"",""]
[null,null,null,null,null,null,null,null,"",""]
[null,null,null,null,null,null,null,null,"",""]
[null,null,null,null,null,null,null,null,"",""]
[null,null,null,null,null,null,null,null,"",""]
[null,null,null,null,null,null,null,null,{"$f":"IF(E461=$L$27,1,IF(E461=$L$28,3,IF(E461=$L$29,4,IF(E461=$L$30,5,IF(E461=$L$31,10,IF(E461=$L$32,9,IF(E461=$L$33,2,IF(E461=$L$34,6,\"\"))))))))","v":""},{"$f":"IF(H461=$L$48,1,IF(H461=$L$49,2,IF(H461=$L$50,3,IF(H461=$L$51,4,IF(H461=$L$52,5,IF(H461=$L$53,6,\"\"))))))","v":""}]
[null,null,null,null,null,null,null,null,"",""]
[null,null,null,null,null,null,null,null,"",""]
[null,null,null,null,null,null,null,null,"",""]
[null,null,null,null,null,null,null,null,"",""]
[null,null,null,null,null,null,null,null,"",""]
[null,null,null,null,null,null,null,null,"",""]
[null,null,null,null,null,null,null,null,"",""]
[null,null,null,null,null,null,null,null,"",""]
[null,null,null,null,null,null,null,null,"",""]
[null,null,null,null,null,null,null,null,"",""]
[null,null,null,null,null,null,null,null,"",""]
[null,null,null,null,null,null,null,null,"",""]
[null,null,null,null,null,null,null,null,"",""]
[null,null,null,null,null,null,null,null,"",""]
[null,null,null,null,null,null,null,null,"",""]
[null,null,null,null,null,null,null,null,"",""]
[null,null,null,null,null,null,null,null,"",""]
[null,null,null,null,null,null,null,null,"",""]
[null,null,null,null,null,null,null,null,"",""]
[null,null,null,null,null,null,null,null,"",""]
[null,null,null,null,null,null,null,null,"",""]
[null,null,null,null,null,null,null,null,"",""]
[null,null,null,null,null,null,null,null,"",""]
[null,null,null,null,null,null,null,null,"",""]
[null,null,null,null,null,null,null,null,"",""]
[null,null,null,null,null,null,null,null,"",""]
[null,null,null,null,null,null,null,null,"",""]
[null,null,null,null,null,null,null,null,"",""]
[null,null,null,null,null,null,null,null,"",""]
[null,null,null,null,null,null,null,null,"",""]
[null,null,null,null,null,null,null,null,"",""]
[null,null,null,null,null,null,null,null,"",""]
[null,null,null,null,null,null,null,null,"",""]
[null,null,null,null,null,null,null,null,"",""]
[null,null,null,null,null,null,null,null,"",""]
[null,null,null,null,null,null,null,null,"",""]
[null,null,null,null,null,null,null,null,"",""]
[null,null,null,null,null,null,null,null,"",""]
[null,null,null,null,null,null,null,null,"",""]
[null,null,null,null,null,null,null,null,"",""]
[null,null,null,null,null,null,null,null,"",""]
[null,null,null,null,null,null,null,null,"",""]
[null,null,null,null,null,null,null,null,"",""]
[null,null,null,null,null,null,null,null,"",""]
[null,null,null,null,null,null,null,null,"",""]
[null,null,null,null,null,null,null,null,"",""]
[null,null,null,null,null,null,null,null,"",""]
[null,null,null,null,null,null,null,null,"",""]
[null,null,null,null,null,null,null,null,"",""]
[null,null,null,null,null,null,null,null,"",""]
[null,null,null,null,null,null,null,null,"",""]
[null,null,null,null,null,null,null,null,"",""]
[null,null,null,null,null,null,null,null,"",""]
[null,null,null,null,null,null,null,null,"",""]
[null,null,null,null,null,null,null,null,"",""]
[null,null,null,null,null,null,null,null,"",""]
[null,null,null,null,null,null,null,null,"",""]
[null,null,null,null,null,null,null,null,"",""]
[null,null,null,null,null,null,null,null,"",""]
[null,null,null,null,null,null,null,null,"",""]
[null,null,null,null,null,null,null,null,"",""]
[null,null,null,null,null,null,null,null,"",""]
[null,null,null,null,null,null,null,null,"",""]
[null,null,null,null,null,null,null,null,{"$f":"IF(E525=$L$27,1,IF(E525=$L$28,3,IF(E525=$L$29,4,IF(E525=$L$30,5,IF(E525=$L$31,10,IF(E525=$L$32,9,IF(E525=$L$33,2,IF(E525=$L$34,6,\"\"))))))))","v":""},{"$f":"IF(H525=$L$48,1,IF(H525=$L$49,2,IF(H525=$L$50,3,IF(H525=$L$51,4,IF(H525=$L$52,5,IF(H525=$L$53,6,\"\"))))))","v":""}]
[null,null,null,null,null,null,null,null,"",""]
[null,null,null,null,null,null,null,null,"",""]
[null,null,null,null,null,null,null,null,"",""]
[null,null,null,null,null,null,null,null,"",""]
[null,null,null,null,null,null,null,null,"",""]
[null,null,null,null,null,null,null,null,"",""]
[null,null,null,null,null,null,null,null,"",""]
[null,null,null,null,null,null,null,null,"",""]
[null,null,null,null,null,null,null,null,"",""]
[null,null,null,null,null,null,null,null,"",""]
[null,null,null,null,null,null,null,null,"",""]
[null,null,null,null,null,null,null,null,"",""]
[null,null,null,null,null,null,null,null,"",""]
[null,null,null,null,null,null,null,null,"",""]
[null,null,null,null,null,null,null,null,"",""]
[null,null,null,null,null,null,null,null,"",""]
[null,null,null,null,null,null,null,null,"",""]
[null,null,null,null,null,null,null,null,"",""]
[null,null,null,null,null,null,null,null,"",""]
[null,null,null,null,null,null,null,null,"",""]
[null,null,null,null,null,null,null,null,"",""]
[null,null,null,null,null,null,null,null,"",""]
[null,null,null,null,null,null,null,null,"",""]
[null,null,null,null,null,null,null,null,"",""]
[null,null,null,null,null,null,null,null,"",""]
[null,null,null,null,null,null,null,null,"",""]
[null,null,null,null,null,null,null,null,"",""]
[null,null,null,null,null,null,null,null,"",""]
[null,null,null,null,null,null,null,null,"",""]
[null,null,null,null,null,null,null,null,"",""]
[null,null,null,null,null,null,null,null,"",""]
[null,null,null,null,null,null,null,null,"",""]
[null,null,null,null,null,null,null,null,"",""]
[null,null,null,null,null,null,null,null,"",""]
[null,null,null,null,null,null,null,null,"",""]
[null,null,null,null,null,null,null,null,"",""]
[null,null,null,null,null,null,null,null,"",""]
[null,null,null,null,null,null,null,null,"",""]
[null,null,null,null,null,null,null,null,"",""]
[null,null,null,null,null,null,null,null,"",""]
[null,null,null,null,null,null,null,null,"",""]
[null,null,null,null,null,null,null,null,"",""]
[null,null,null,null,null,null,null,null,"",""]
[null,null,null,null,null,null,null,null,"",""]
[null,null,null,null,null,null,null,null,"",""]
[null,null,null,null,null,null,null,null,"",""]
[null,null,null,null,null,null,null,null,"",""]
[null,null,null,null,null,null,null,null,"",""]
[null,null,null,null,null,null,null,null,"",""]
[null,null,null,null,null,null,null,null,"",""]
[null,null,null,null,null,null,null,null,"",""]
[null,null,null,null,null,null,null,null,"",""]
[null,null,null,null,null,null,null,null,"",""]
[null,null,null,null,null,null,null,null,"",""]
[null,null,null,null,null,null,null,null,"",""]
[null,null,null,null,null,null,null,null,"",""]
[null,null,null,null,null,null,null,null,"",""]
[null,null,null,null,null,null,null,null,"",""]
[null,null,null,null,null,null,null,null,"",""]
[null,null,null,null,null,null,null,null,"",""]
[null,null,null,null,null,null,null,null,"",""]
[null,null,null,null,null,null,null,null,"",""]
[null,null,null,null,null,null,null,null,"",""]
[null,null,null,null,null,null,null,null,{"$f":"IF(E589=$L$27,1,IF(E589=$L$28,3,IF(E589=$L$29,4,IF(E589=$L$30,5,IF(E589=$L$31,10,IF(E589=$L$32,9,IF(E589=$L$33,2,IF(E589=$L$34,6,\"\"))))))))","v":""},{"$f":"IF(H589=$L$48,1,IF(H589=$L$49,2,IF(H589=$L$50,3,IF(H589=$L$51,4,IF(H589=$L$52,5,IF(H589=$L$53,6,\"\"))))))","v":""}]
[null,null,null,null,null,null,null,null,"",""]
[null,null,null,null,null,null,null,null,"",""]
[null,null,null,null,null,null,null,null,"",""]
[null,null,null,null,null,null,null,null,"",""]
[null,null,null,null,null,null,null,null,"",""]
[null,null,null,null,null,null,null,null,"",""]
[null,null,null,null,null,null,null,null,"",""]
[null,null,null,null,null,null,null,null,"",""]
[null,null,null,null,null,null,null,null,"",""]
[null,null,null,null,null,null,null,null,"",""]
[null,null,null,null,null,null,null,null,"",""]
[null,null,null,null,null,null,null,null,"",""]
[null,null,null,null,null,null,null,null,"",""]
[null,null,null,null,null,null,null,null,"",""]
[null,null,null,null,null,null,null,null,"",""]
[null,null,null,null,null,null,null,null,"",""]
[null,null,null,null,null,null,null,null,"",""]
[null,null,null,null,null,null,null,null,"",""]
[null,null,null,null,null,null,null,null,"",""]
[null,null,null,null,null,null,null,null,"",""]
[null,null,null,null,null,null,null,null,"",""]
[null,null,null,null,null,null,null,null,"",""]
[null,null,null,null,null,null,null,null,"",""]
[null,null,null,null,null,null,null,null,"",""]
[null,null,null,null,null,null,null,null,"",""]
[null,null,null,null,null,null,null,null,"",""]
[null,null,null,null,null,null,null,null,"",""]
[null,null,null,null,null,null,null,null,"",""]
[null,null,null,null,null,null,null,null,"",""]
[null,null,null,null,null,null,null,null,"",""]
[null,null,null,null,null,null,null,null,"",""]
[null,null,null,null,null,null,null,null,"",""]
[null,null,null,null,null,null,null,null,"",""]
[null,null,null,null,null,null,null,null,"",""]
[null,null,null,null,null,null,null,null,"",""]
[null,null,null,null,null,null,null,null,"",""]
[null,null,null,null,null,null,null,null,"",""]
[null,null,null,null,null,null,null,null,"",""]
[null,null,null,null,null,null,null,null,"",""]
[null,null,null,null,null,null,null,null,"",""]
[null,null,null,null,null,null,null,null,"",""]
[null,null,null,null,null,null,null,null,"",""]
[null,null,null,null,null,null,null,null,"",""]
[null,null,null,null,null,null,null,null,"",""]
[null,null,null,null,null,null,null,null,"",""]
[null,null,null,null,null,null,null,null,"",""]
[null,null,null,null,null,null,null,null,"",""]
[null,null,null,null,null,null,null,null,"",""]
[null,null,null,null,null,null,null,null,"",""]
[null,null,null,null,null,null,null,null,"",""]
[null,null,null,null,null,null,null,null,"",""]
[null,null,null,null,null,null,null,null,"",""]
[null,null,null,null,null,null,null,null,"",""]
[null,null,null,null,null,null,null,null,"",""]
[null,null,null,null,null,null,null,null,"",""]
[null,null,null,null,null,null,null,null,"",""]
[null,null,null,null,null,null,null,null,"",""]
[null,null,null,null,null,null,null,null,"",""]
[null,null,null,null,null,null,null,null,"",""]
[null,null,null,null,null,null,null,null,"",""]
[null,null,null,null,null,null,null,null,"",""]
[null,null,null,null,null,null,null,null,"",""]
[null,null,null,null,null,null,null,null,"",""]
[null,null,null,null,null,null,null,null,{"$f":"IF(E653=$L$27,1,IF(E653=$L$28,3,IF(E653=$L$29,4,IF(E653=$L$30,5,IF(E653=$L$31,10,IF(E653=$L$32,9,IF(E653=$L$33,2,IF(E653=$L$34,6,\"\"))))))))","v":""},{"$f":"IF(H653=$L$48,1,IF(H653=$L$49,2,IF(H653=$L$50,3,IF(H653=$L$51,4,IF(H653=$L$52,5,IF(H653=$L$53,6,\"\"))))))","v":""}]
[null,null,null,null,null,null,null,null,"",""]
[null,null,null,null,null,null,null,null,"",""]
[null,null,null,null,null,null,null,null,"",""]
[null,null,null,null,null,null,null,null,"",""]
[null,null,null,null,null,null,null,null,"",""]
[null,null,null,null,null,null,null,null,"",""]
[null,null,null,null,null,null,null,null,"",""]
[null,null,null,null,null,null,null,null,"",""]
[null,null,null,null,null,null,null,null,"",""]
[null,null,null,null,null,null,null,null,"",""]
[null,null,null,null,null,null,null,null,"",""]
[null,null,null,null,null,null,null,null,"",""]
[null,null,null,null,null,null,null,null,"",""]
[null,null,null,null,null,null,null,null,"",""]
[null,null,null,null,null,null,null,null,"",""]
[null,null,null,null,null,null,null,null,"",""]
[null,null,null,null,null,null,null,null,"",""]
[null,null,null,null,null,null,null,null,"",""]
[null,null,null,null,null,null,null,null,"",""]
[null,null,null,null,null,null,null,null,"",""]
[null,null,null,null,null,null,null,null,"",""]
[null,null,null,null,null,null,null,null,"",""]
[null,null,null,null,null,null,null,null,"",""]
[null,null,null,null,null,null,null,null,"",""]
[null,null,null,null,null,null,null,null,"",""]
[null,null,null,null,null,null,null,null,"",""]
[null,null,null,null,null,null,null,null,"",""]
[null,null,null,null,null,null,null,null,"",""]
[null,null,null,null,null,null,null,null,"",""]
[null,null,null,null,null,null,null,null,"",""]
[null,null,null,null,null,null,null,null,"",""]
[null,null,null,null,null,null,null,null,"",""]
[null,null,null,null,null,null,null,null,"",""]
[null,null,null,null,null,null,null,null,"",""]
[null,null,null,null,null,null,null,null,"",""]
[null,null,null,null,null,null,null,null,"",""]
[null,null,null,null,null,null,null,null,"",""]
[null,null,null,null,null,null,null,null,"",""]
[null,null,null,null,null,null,null,null,"",""]
[null,null,null,null,null,null,null,null,"",""]
[null,null,null,null,null,null,null,null,"",""]
[null,null,null,null,null,null,null,null,"",""]
[null,null,null,null,null,null,null,null,"",""]
[null,null,null,null,null,null,null,null,"",""]
[null,null,null,null,null,null,null,null,"",""]
[null,null,null,null,null,null,null,null,"",""]
[null,null,null,null,null,null,null,null,"",""]
[null,null,null,null,null,null,null,null,"",""]
[null,null,null,null,null,null,null,null,"",""]
[null,null,null,null,null,null,null,null,"",""]
[null,null,null,null,null,null,null,null,"",""]
[null,null,null,null,null,null,null,null,"",""]
[null,null,null,null,null,null,null,null,"",""]
[null,null,null,null,null,null,null,null,"",""]
[null,null,null,null,null,null,null,null,"",""]
[null,null,null,null,null,null,null,null,"",""]
[null,null,null,null,null,null,null,null,"",""]
[null,null,null,null,null,null,null,null,"",""]
[null,null,null,null,null,null,null,null,"",""]
[null,null,null,null,null,null,null,null,"",""]
[null,null,null,null,null,null,null,null,"",""]
[null,null,null,null,null,null,null,null,"",""]
[null,null,null,null,null,null,null,null,"",""]
[null,null,null,null,null,null,null,null,{"$f":"IF(E717=$L$27,1,IF(E717=$L$28,3,IF(E717=$L$29,4,IF(E717=$L$30,5,IF(E717=$L$31,10,IF(E717=$L$32,9,IF(E717=$L$33,2,IF(E717=$L$34,6,\"\"))))))))","v":""},{"$f":"IF(H717=$L$48,1,IF(H717=$L$49,2,IF(H717=$L$50,3,IF(H717=$L$51,4,IF(H717=$L$52,5,IF(H717=$L$53,6,\"\"))))))","v":""}]
[null,null,null,null,null,null,null,null,"",""]
[null,null,null,null,null,null,null,null,"",""]
[null,null,null,null,null,null,null,null,"",""]
[null,null,null,null,null,null,null,null,"",""]
[null,null,null,null,null,null,null,null,"",""]
[null,null,null,null,null,null,null,null,"",""]
[null,null,null,null,null,null,null,null,"",""]
[null,null,null,null,null,null,null,null,"",""]
[null,null,null,null,null,null,null,null,"",""]
[null,null,null,null,null,null,null,null,"",""]
[null,null,null,null,null,null,null,null,"",""]
[null,null,null,null,null,null,null,null,"",""]
[null,null,null,null,null,null,null,null,"",""]
[null,null,null,null,null,null,null,null,"",""]
[null,null,null,null,null,null,null,null,"",""]
[null,null,null,null,null,null,null,null,"",""]
[null,null,null,null,null,null,null,null,"",""]
[null,null,null,null,null,null,null,null,"",""]
[null,null,null,null,null,null,null,null,"",""]
[null,null,null,null,null,null,null,null,"",""]
[null,null,null,null,null,null,null,null,"",""]
[null,null,null,null,null,null,null,null,"",""]
[null,null,null,null,null,null,null,null,"",""]
[null,null,null,null,null,null,null,null,"",""]
[null,null,null,null,null,null,null,null,"",""]
[null,null,null,null,null,null,null,null,"",""]
[null,null,null,null,null,null,null,null,"",""]
[null,null,null,null,null,null,null,null,"",""]
[null,null,null,null,null,null,null,null,"",""]
[null,null,null,null,null,null,null,null,"",""]
[null,null,null,null,null,null,null,null,"",""]
[null,null,null,null,null,null,null,null,"",""]
[null,null,null,null,null,null,null,null,"",""]
[null,null,null,null,null,null,null,null,"",""]
[null,null,null,null,null,null,null,null,"",""]
[null,null,null,null,null,null,null,null,"",""]
[null,null,null,null,null,null,null,null,"",""]
[null,null,null,null,null,null,null,null,"",""]
[null,null,null,null,null,null,null,null,"",""]
[null,null,null,null,null,null,null,null,"",""]
[null,null,null,null,null,null,null,null,"",""]
[null,null,null,null,null,null,null,null,"",""]
[null,null,null,null,null,null,null,null,"",""]
[null,null,null,null,null,null,null,null,"",""]
[null,null,null,null,null,null,null,null,"",""]
[null,null,null,null,null,null,null,null,"",""]
[null,null,null,null,null,null,null,null,"",""]
[null,null,null,null,null,null,null,null,"",""]
[null,null,null,null,null,null,null,null,"",""]
[null,null,null,null,null,null,null,null,"",""]
[null,null,null,null,null,null,null,null,"",""]
[null,null,null,null,null,null,null,null,"",""]
[null,null,null,null,null,null,null,null,"",""]
[null,null,null,null,null,null,null,null,"",""]
[null,null,null,null,null,null,null,null,"",""]
[null,null,null,null,null,null,null,null,"",""]
[null,null,null,null,null,null,null,null,"",""]
[null,null,null,null,null,null,null,null,"",""]
[null,null,null,null,null,null,null,null,"",""]
[null,null,null,null,null,null,null,null,"",""]
[null,null,null,null,null,null,null,null,"",""]
[null,null,null,null,null,null,null,null,"",""]
[null,null,null,null,null,null,null,null,"",""]
[null,null,null,null,null,null,null,null,{"$f":"IF(E781=$L$27,1,IF(E781=$L$28,3,IF(E781=$L$29,4,IF(E781=$L$30,5,IF(E781=$L$31,10,IF(E781=$L$32,9,IF(E781=$L$33,2,IF(E781=$L$34,6,\"\"))))))))","v":""},{"$f":"IF(H781=$L$48,1,IF(H781=$L$49,2,IF(H781=$L$50,3,IF(H781=$L$51,4,IF(H781=$L$52,5,IF(H781=$L$53,6,\"\"))))))","v":""}]
[null,null,null,null,null,null,null,null,"",""]
[null,null,null,null,null,null,null,null,"",""]
[null,null,null,null,null,null,null,null,"",""]
[null,null,null,null,null,null,null,null,"",""]
[null,null,null,null,null,null,null,null,"",""]
[null,null,null,null,null,null,null,null,"",""]
[null,null,null,null,null,null,null,null,"",""]
[null,null,null,null,null,null,null,null,"",""]
[null,null,null,null,null,null,null,null,"",""]
[null,null,null,null,null,null,null,null,"",""]
[null,null,null,null,null,null,null,null,"",""]
[null,null,null,null,null,null,null,null,"",""]
[null,null,null,null,null,null,null,null,"",""]
[null,null,null,null,null,null,null,null,"",""]
[null,null,null,null,null,null,null,null,"",""]
[null,null,null,null,null,null,null,null,"",""]
[null,null,null,null,null,null,null,null,"",""]
[null,null,null,null,null,null,null,null,"",""]
[null,null,null,null,null,null,null,null,"",""]
[null,null,null,null,null,null,null,null,"",""]
[null,null,null,null,null,null,null,null,"",""]
[null,null,null,null,null,null,null,null,"",""]
[null,null,null,null,null,null,null,null,"",""]
[null,null,null,null,null,null,null,null,"",""]
[null,null,null,null,null,null,null,null,"",""]
[null,null,null,null,null,null,null,null,"",""]
[null,null,null,null,null,null,null,null,"",""]
[null,null,null,null,null,null,null,null,"",""]
[null,null,null,null,null,null,null,null,"",""]
[null,null,null,null,null,null,null,null,"",""]
[null,null,null,null,null,null,null,null,"",""]
[null,null,null,null,null,null,null,null,"",""]
[null,null,null,null,null,null,null,null,"",""]
[null,null,null,null,null,null,null,null,"",""]
[null,null,null,null,null,null,null,null,"",""]
[null,null,null,null,null,null,null,null,"",""]
[null,null,null,null,null,null,null,null,"",""]
[null,null,null,null,null,null,null,null,"",""]
[null,null,null,null,null,null,null,null,"",""]
[null,null,null,null,null,null,null,null,"",""]
[null,null,null,null,null,null,null,null,"",""]
[null,null,null,null,null,null,null,null,"",""]
[null,null,null,null,null,null,null,null,"",""]
[null,null,null,null,null,null,null,null,"",""]
[null,null,null,null,null,null,null,null,"",""]
[null,null,null,null,null,null,null,null,"",""]
[null,null,null,null,null,null,null,null,"",""]
[null,null,null,null,null,null,null,null,"",""]
[null,null,null,null,null,null,null,null,"",""]
[null,null,null,null,null,null,null,null,"",""]
[null,null,null,null,null,null,null,null,"",""]
[null,null,null,null,null,null,null,null,"",""]
[null,null,null,null,null,null,null,null,"",""]
[null,null,null,null,null,null,null,null,"",""]
[null,null,null,null,null,null,null,null,"",""]
[null,null,null,null,null,null,null,null,"",""]
[null,null,null,null,null,null,null,null,"",""]
[null,null,null,null,null,null,null,null,"",""]
[null,null,null,null,null,null,null,null,"",""]
[null,null,null,null,null,null,null,null,"",""]
[null,null,null,null,null,null,null,null,"",""]
[null,null,null,null,null,null,null,null,"",""]
[null,null,null,null,null,null,null,null,"",""]
[null,null,null,null,null,null,null,null,{"$f":"IF(E845=$L$27,1,IF(E845=$L$28,3,IF(E845=$L$29,4,IF(E845=$L$30,5,IF(E845=$L$31,10,IF(E845=$L$32,9,IF(E845=$L$33,2,IF(E845=$L$34,6,\"\"))))))))","v":""},{"$f":"IF(H845=$L$48,1,IF(H845=$L$49,2,IF(H845=$L$50,3,IF(H845=$L$51,4,IF(H845=$L$52,5,IF(H845=$L$53,6,\"\"))))))","v":""}]
[null,null,null,null,null,null,null,null,"",""]
[null,null,null,null,null,null,null,null,"",""]
[null,null,null,null,null,null,null,null,"",""]
[null,null,null,null,null,null,null,null,"",""]
[null,null,null,null,null,null,null,null,"",""]
[null,null,null,null,null,null,null,null,"",""]
[null,null,null,null,null,null,null,null,"",""]
[null,null,null,null,null,null,null,null,"",""]
[null,null,null,null,null,null,null,null,"",""]
[null,null,null,null,null,null,null,null,"",""]
[null,null,null,null,null,null,null,null,"",""]
[null,null,null,null,null,null,null,null,"",""]
[null,null,null,null,null,null,null,null,"",""]
[null,null,null,null,null,null,null,null,"",""]
[null,null,null,null,null,null,null,null,"",""]
[null,null,null,null,null,null,null,null,"",""]
[null,null,null,null,null,null,null,null,"",""]
[null,null,null,null,null,null,null,null,"",""]
[null,null,null,null,null,null,null,null,"",""]
[null,null,null,null,null,null,null,null,"",""]
[null,null,null,null,null,null,null,null,"",""]
[null,null,null,null,null,null,null,null,"",""]
[null,null,null,null,null,null,null,null,"",""]
[null,null,null,null,null,null,null,null,"",""]
[null,null,null,null,null,null,null,null,"",""]
[null,null,null,null,null,null,null,null,"",""]
[null,null,null,null,null,null,null,null,"",""]
[null,null,null,null,null,null,null,null,"",""]
[null,null,null,null,null,null,null,null,"",""]
[null,null,null,null,null,null,null,null,"",""]
[null,null,null,null,null,null,null,null,"",""]
[null,null,null,null,null,null,null,null,"",""]
[null,null,null,null,null,null,null,null,"",""]
[null,null,null,null,null,null,null,null,"",""]
[null,null,null,null,null,null,null,null,"",""]
[null,null,null,null,null,null,null,null,"",""]
[null,null,null,null,null,null,null,null,"",""]
[null,null,null,null,null,null,null,null,"",""]
[null,null,null,null,null,null,null,null,"",""]
[null,null,null,null,null,null,null,null,"",""]
[null,null,null,null,null,null,null,null,"",""]
[null,null,null,null,null,null,null,null,"",""]
[null,null,null,null,null,null,null,null,"",""]
[null,null,null,null,null,null,null,null,"",""]
[null,null,null,null,null,null,null,null,"",""]
[null,null,null,null,null,null,null,null,"",""]
[null,null,null,null,null,null,null,null,"",""]
[null,null,null,null,null,null,null,null,"",""]
[null,null,null,null,null,null,null,null,"",""]
[null,null,null,null,null,null,null,null,"",""]
[null,null,null,null,null,null,null,null,"",""]
[null,null,null,null,null,null,null,null,"",""]
[null,null,null,null,null,null,null,null,"",""]
[null,null,null,null,null,null,null,null,"",""]
[null,null,null,null,null,null,null,null,"",""]
[null,null,null,null,null,null,null,null,"",""]
[null,null,null,null,null,null,null,null,"",""]
[null,null,null,null,null,null,null,null,"",""]
[null,null,null,null,null,null,null,null,"",""]
[null,null,null,null,null,null,null,null,"",""]
[null,null,null,null,null,null,null,null,"",""]
[null,null,null,null,null,null,null,null,"",""]
[null,null,null,null,null,null,null,null,"",""]
[null,null,null,null,null,null,null,null,{"$f":"IF(E909=$L$27,1,IF(E909=$L$28,3,IF(E909=$L$29,4,IF(E909=$L$30,5,IF(E909=$L$31,10,IF(E909=$L$32,9,IF(E909=$L$33,2,IF(E909=$L$34,6,\"\"))))))))","v":""},{"$f":"IF(H909=$L$48,1,IF(H909=$L$49,2,IF(H909=$L$50,3,IF(H909=$L$51,4,IF(H909=$L$52,5,IF(H909=$L$53,6,\"\"))))))","v":""}]
[null,null,null,null,null,null,null,null,"",""]
[null,null,null,null,null,null,null,null,"",""]
[null,null,null,null,null,null,null,null,"",""]
[null,null,null,null,null,null,null,null,"",""]
[null,null,null,null,null,null,null,null,"",""]
[null,null,null,null,null,null,null,null,"",""]
[null,null,null,null,null,null,null,null,"",""]
[null,null,null,null,null,null,null,null,"",""]
[null,null,null,null,null,null,null,null,"",""]
[null,null,null,null,null,null,null,null,"",""]
[null,null,null,null,null,null,null,null,"",""]
[null,null,null,null,null,null,null,null,"",""]
[null,null,null,null,null,null,null,null,"",""]
[null,null,null,null,null,null,null,null,"",""]
[null,null,null,null,null,null,null,null,"",""]
[null,null,null,null,null,null,null,null,"",""]
[null,null,null,null,null,null,null,null,"",""]
[null,null,null,null,null,null,null,null,"",""]
[null,null,null,null,null,null,null,null,"",""]
[null,null,null,null,null,null,null,null,"",""]
[null,null,null,null,null,null,null,null,"",""]
[null,null,null,null,null,null,null,null,"",""]
[null,null,null,null,null,null,null,null,"",""]
[null,null,null,null,null,null,null,null,"",""]
[null,null,null,null,null,null,null,null,"",""]
[null,null,null,null,null,null,null,null,"",""]
[null,null,null,null,null,null,null,null,"",""]
[null,null,null,null,null,null,null,null,"",""]
[null,null,null,null,null,null,null,null,"",""]
[null,null,null,null,null,null,null,null,"",""]
[null,null,null,null,null,null,null,null,"",""]
[null,null,null,null,null,null,null,null,"",""]
[null,null,null,null,null,null,null,null,"",""]
[null,null,null,null,null,null,null,null,"",""]
[null,null,null,null,null,null,null,null,"",""]
[null,null,null,null,null,null,null,null,"",""]
[null,null,null,null,null,null,null,null,"",""]
[null,null,null,null,null,null,null,null,"",""]
[null,null,null,null,null,null,null,null,"",""]
[null,null,null,null,null,null,null,null,"",""]
[null,null,null,null,null,null,null,null,"",""]
[null,null,null,null,null,null,null,null,"",""]
[null,null,null,null,null,null,null,null,"",""]
[null,null,null,null,null,null,null,null,"",""]
[null,null,null,null,null,null,null,null,"",""]
[null,null,null,null,null,null,null,null,"",""]
[null,null,null,null,null,null,null,null,"",""]
[null,null,null,null,null,null,null,null,"",""]
[null,null,null,null,null,null,null,null,"",""]
[null,null,null,null,null,null,null,null,"",""]
[null,null,null,null,null,null,null,null,"",""]
[null,null,null,null,null,null,null,null,"",""]
[null,null,null,null,null,null,null,null,"",""]
[null,null,null,null,null,null,null,null,"",""]
[null,null,null,null,null,null,null,null,"",""]
[null,null,null,null,null,null,null,null,"",""]
[null,null,null,null,null,null,null,null,"",""]
[null,null,null,null,null,null,null,null,"",""]
[null,null,null,null,null,null,null,null,"",""]
[null,null,null,null,null,null,null,null,"",""]
[null,null,null,null,null,null,null,null,"",""]
[null,null,null,null,null,null,null,null,"",""]
[null,null,null,null,null,null,null,null,"",""]
[null,null,null,null,null,null,null,null,{"$f":"IF(E973=$L$27,1,IF(E973=$L$28,3,IF(E973=$L$29,4,IF(E973=$L$30,5,IF(E973=$L$31,10,IF(E973=$L$32,9,IF(E973=$L$33,2,IF(E973=$L$34,6,\"\"))))))))","v":""},{"$f":"IF(H973=$L$48,1,IF(H973=$L$49,2,IF(H973=$L$50,3,IF(H973=$L$51,4,IF(H973=$L$52,5,IF(H973=$L$53,6,\"\"))))))","v":""}]
[null,null,null,null,null,null,null,null,"",""]
[null,null,null,null,null,null,null,null,"",""]
[null,null,null,null,null,null,null,null,"",""]
[null,null,null,null,null,null,null,null,"",""]
[null,null,null,null,null,null,null,null,"",""]
[null,null,null,null,null,null,null,null,"",""]
[null,null,null,null,null,null,null,null,"",""]
[null,null,null,null,null,null,null,null,"",""]
[null,null,null,null,null,null,null,null,"",""]
[null,null,null,null,null,null,null,null,"",""]
[null,null,null,null,null,null,null,null,"",""]
[null,null,null,null,null,null,null,null,"",""]
[null,null,null,null,null,null,null,null,"",""]
[null,null,null,null,null,null,null,null,"",""]
[null,null,null,null,null,null,null,null,"",""]
[null,null,null,null,null,null,null,null,"",""]
[null,null,null,null,null,null,null,null,"",""]
[null,null,null,null,null,null,null,null,"",""]
[null,null,null,null,null,null,null,null,"",""]
[null,null,null,null,null,null,null,null,"",""]
[null,null,null,null,null,null,null,null,"",""]
[null,null,null,null,null,null,null,null,"",""]
[null,null,null,null,null,null,null,null,"",""]
[null,null,null,null,null,null,null,null,"",""]
[null,null,null,null,null,null,null,null,"",""]
[null,null,null,null,null,null,null,null,"",""]
[null,null,null,null,null,null,null,null,"",""]
[null,null,null,null,null,null,null,null,"",""]
[null,null,null,null,null,null,null,null,"",""]
[null,null,null,null,null,null,null,null,"",""]
[null,null,null,null,null,null,null,null,"",""]
[null,null,null,null,null,null,null,null,"",""]
[null,null,null,null,null,null,null,null,"",""]
[null,null,null,null,null,null,null,null,"",""]
[null,null,null,null,null,null,null,null,"",""]
[null,null,null,null,null,null,null,null,"",""]
[null,null,null,null,null,null,null,null,"",""]
[null,null,null,null,null,null,null,null,"",""]
[null,null,null,null,null,null,null,null,"",""]
[null,null,null,null,null,null,null,null,"",""]
[null,null,null,null,null,null,null,null,"",""]
[null,null,null,null,null,null,null,null,"",""]
[null,null,null,null,null,null,null,null,"",""]
[null,null,null,null,null,null,null,null,"",""]
[null,null,null,null,null,null,null,null,"",""]
[null,null,null,null,null,null,null,null,"",""]
[null,null,null,null,null,null,null,null,"",""]
[null,null,null,null,null,null,null,null,"",""]
[null,null,null,null,null,null,null,null,"",""]
[null,null,null,null,null,null,null,null,"",""]
[null,null,null,null,null,null,null,null,"",""]
[null,null,null,null,null,null,null,null,"",""]
[null,null,null,null,null,null,null,null,"",""]
[null,null,null,null,null,null,null,null,"",""]
[null,null,null,null,null,null,null,null,"",""]
[null,null,null,null,null,null,null,null,"",""]
[null,null,null,null,null,null,null,null,"",""]
[null,null,null,null,null,null,null,null,"",""]
[null,null,null,null,null,null,null,null,"",""]
[null,null,null,null,null,null,null,null,"",""]
[null,null,null,null,null,null,null,null,"",""]
[null,null,null,null,null,null,null,null,"",""]
[null,null,null,null,null,null,null,null,"",""]
[null,null,null,null,null,null,null,null,{"$f":"IF(E1037=$L$27,1,IF(E1037=$L$28,3,IF(E1037=$L$29,4,IF(E1037=$L$30,5,IF(E1037=$L$31,10,IF(E1037=$L$32,9,IF(E1037=$L$33,2,IF(E1037=$L$34,6,\"\"))))))))","v":""},{"$f":"IF(H1037=$L$48,1,IF(H1037=$L$49,2,IF(H1037=$L$50,3,IF(H1037=$L$51,4,IF(H1037=$L$52,5,IF(H1037=$L$53,6,\"\"))))))","v":""}]
[null,null,null,null,null,null,null,null,"",""]
[null,null,null,null,null,null,null,null,"",""]
[null,null,null,null,null,null,null,null,"",""]
[null,null,null,null,null,null,null,null,"",""]
[null,null,null,null,null,null,null,null,"",""]
[null,null,null,null,null,null,null,null,"",""]
[null,null,null,null,null,null,null,null,"",""]
[null,null,null,null,null,null,null,null,"",""]
[null,null,null,null,null,null,null,null,"",""]
[null,null,null,null,null,null,null,null,"",""]
[null,null,null,null,null,null,null,null,"",""]
[null,null,null,null,null,null,null,null,"",""]
[null,null,null,null,null,null,null,null,"",""]
[null,null,null,null,null,null,null,null,"",""]
[null,null,null,null,null,null,null,null,"",""]
[null,null,null,null,null,null,null,null,"",""]
[null,null,null,null,null,null,null,null,"",""]
[null,null,null,null,null,null,null,null,"",""]
[null,null,null,null,null,null,null,null,"",""]
[null,null,null,null,null,null,null,null,"",""]
[null,null,null,null,null,null,null,null,"",""]
[null,null,null,null,null,null,null,null,"",""]
[null,null,null,null,null,null,null,null,"",""]
[null,null,null,null,null,null,null,null,"",""]
[null,null,null,null,null,null,null,null,"",""]
[null,null,null,null,null,null,null,null,"",""]
[null,null,null,null,null,null,null,null,"",""]
[null,null,null,null,null,null,null,null,"",""]
[null,null,null,null,null,null,null,null,"",""]
[null,null,null,null,null,null,null,null,"",""]
[null,null,null,null,null,null,null,null,"",""]
[null,null,null,null,null,null,null,null,"",""]
[null,null,null,null,null,null,null,null,"",""]
[null,null,null,null,null,null,null,null,"",""]
[null,null,null,null,null,null,null,null,"",""]
[null,null,null,null,null,null,null,null,"",""]
[null,null,null,null,null,null,null,null,"",""]
[null,null,null,null,null,null,null,null,"",""]
[null,null,null,null,null,null,null,null,"",""]
[null,null,null,null,null,null,null,null,"",""]
[null,null,null,null,null,null,null,null,"",""]
[null,null,null,null,null,null,null,null,"",""]
[null,null,null,null,null,null,null,null,"",""]
[null,null,null,null,null,null,null,null,"",""]
[null,null,null,null,null,null,null,null,"",""]
[null,null,null,null,null,null,null,null,"",""]
[null,null,null,null,null,null,null,null,"",""]
[null,null,null,null,null,null,null,null,"",""]
[null,null,null,null,null,null,null,null,"",""]
[null,null,null,null,null,null,null,null,"",""]
[null,null,null,null,null,null,null,null,"",""]
[null,null,null,null,null,null,null,null,"",""]
[null,null,null,null,null,null,null,null,"",""]
[null,null,null,null,null,null,null,null,"",""]
[null,null,null,null,null,null,null,null,"",""]
[null,null,null,null,null,null,null,null,"",""]
[null,null,null,null,null,null,null,null,"",""]
[null,null,null,null,null,null,null,null,"",""]
[null,null,null,null,null,null,null,null,"",""]
[null,null,null,null,null,null,null,null,"",""]
[null,null,null,null,null,null,null,null,"",""]
[null,null,null,null,null,null,null,null,"",""]
[null,null,null,null,null,null,null,null,"",""]
[null,null,null,null,null,null,null,null,{"$f":"IF(E1101=$L$27,1,IF(E1101=$L$28,3,IF(E1101=$L$29,4,IF(E1101=$L$30,5,IF(E1101=$L$31,10,IF(E1101=$L$32,9,IF(E1101=$L$33,2,IF(E1101=$L$34,6,\"\"))))))))","v":""},{"$f":"IF(H1101=$L$48,1,IF(H1101=$L$49,2,IF(H1101=$L$50,3,IF(H1101=$L$51,4,IF(H1101=$L$52,5,IF(H1101=$L$53,6,\"\"))))))","v":""}]
[null,null,null,null,null,null,null,null,"",""]
[null,null,null,null,null,null,null,null,"",""]
[null,null,null,null,null,null,null,null,"",""]
[null,null,null,null,null,null,null,null,"",""]
[null,null,null,null,null,null,null,null,"",""]
[null,null,null,null,null,null,null,null,"",""]
[null,null,null,null,null,null,null,null,"",""]
[null,null,null,null,null,null,null,null,"",""]
[null,null,null,null,null,null,null,null,"",""]
[null,null,null,null,null,null,null,null,"",""]
[null,null,null,null,null,null,null,null,"",""]
[null,null,null,null,null,null,null,null,"",""]
[null,null,null,null,null,null,null,null,"",""]
[null,null,null,null,null,null,null,null,"",""]
[null,null,null,null,null,null,null,null,"",""]
[null,null,null,null,null,null,null,null,"",""]
[null,null,null,null,null,null,null,null,"",""]
[null,null,null,null,null,null,null,null,"",""]
[null,null,null,null,null,null,null,null,"",""]
[null,null,null,null,null,null,null,null,"",""]
[null,null,null,null,null,null,null,null,"",""]
[null,null,null,null,null,null,null,null,"",""]
[null,null,null,null,null,null,null,null,"",""]
[null,null,null,null,null,null,null,null,"",""]
[null,null,null,null,null,null,null,null,"",""]
[null,null,null,null,null,null,null,null,"",""]
[null,null,null,null,null,null,null,null,"",""]
[null,null,null,null,null,null,null,null,"",""]
[null,null,null,null,null,null,null,null,"",""]
[null,null,null,null,null,null,null,null,"",""]
[null,null,null,null,null,null,null,null,"",""]
[null,null,null,null,null,null,null,null,"",""]
[null,null,null,null,null,null,null,null,"",""]
[null,null,null,null,null,null,null,null,"",""]
[null,null,null,null,null,null,null,null,"",""]
[null,null,null,null,null,null,null,null,"",""]
[null,null,null,null,null,null,null,null,"",""]
[null,null,null,null,null,null,null,null,"",""]
[null,null,null,null,null,null,null,null,"",""]
[null,null,null,null,null,null,null,null,"",""]
[null,null,null,null,null,null,null,null,"",""]
[null,null,null,null,null,null,null,null,"",""]
[null,null,null,null,null,null,null,null,"",""]
[null,null,null,null,null,null,null,null,"",""]
[null,null,null,null,null,null,null,null,"",""]
[null,null,null,null,null,null,null,null,"",""]
[null,null,null,null,null,null,null,null,"",""]
[null,null,null,null,null,null,null,null,"",""]
[null,null,null,null,null,null,null,null,"",""]
[null,null,null,null,null,null,null,null,"",""]
[null,null,null,null,null,null,null,null,"",""]
[null,null,null,null,null,null,null,null,"",""]
[null,null,null,null,null,null,null,null,"",""]
[null,null,null,null,null,null,null,null,"",""]
[null,null,null,null,null,null,null,null,"",""]
[null,null,null,null,null,null,null,null,"",""]
[null,null,null,null,null,null,null,null,"",""]
[null,null,null,null,null,null,null,null,"",""]
[null,null,null,null,null,null,null,null,"",""]
[null,null,null,null,null,null,null,null,"",""]
[null,null,null,null,null,null,null,null,"",""]
[null,null,null,null,null,null,null,null,"",""]
[null,null,null,null,null,null,null,null,"",""]
[null,null,null,null,null,null,null,null,{"$f":"IF(E1165=$L$27,1,IF(E1165=$L$28,3,IF(E1165=$L$29,4,IF(E1165=$L$30,5,IF(E1165=$L$31,10,IF(E1165=$L$32,9,IF(E1165=$L$33,2,IF(E1165=$L$34,6,\"\"))))))))","v":""},{"$f":"IF(H1165=$L$48,1,IF(H1165=$L$49,2,IF(H1165=$L$50,3,IF(H1165=$L$51,4,IF(H1165=$L$52,5,IF(H1165=$L$53,6,\"\"))))))","v":""}]
[null,null,null,null,null,null,null,null,"",""]
[null,null,null,null,null,null,null,null,"",""]
[null,null,null,null,null,null,null,null,"",""]
[null,null,null,null,null,null,null,null,"",""]
[null,null,null,null,null,null,null,null,"",""]
[null,null,null,null,null,null,null,null,"",""]
[null,null,null,null,null,null,null,null,"",""]
[null,null,null,null,null,null,null,null,"",""]
[null,null,null,null,null,null,null,null,"",""]
[null,null,null,null,null,null,null,null,"",""]
[null,null,null,null,null,null,null,null,"",""]
[null,null,null,null,null,null,null,null,"",""]
[null,null,null,null,null,null,null,null,"",""]
[null,null,null,null,null,null,null,null,"",""]
[null,null,null,null,null,null,null,null,"",""]
[null,null,null,null,null,null,null,null,"",""]
[null,null,null,null,null,null,null,null,"",""]
[null,null,null,null,null,null,null,null,"",""]
[null,null,null,null,null,null,null,null,"",""]
[null,null,null,null,null,null,null,null,"",""]
[null,null,null,null,null,null,null,null,"",""]
[null,null,null,null,null,null,null,null,"",""]
[null,null,null,null,null,null,null,null,"",""]
[null,null,null,null,null,null,null,null,"",""]
[null,null,null,null,null,null,null,null,"",""]
[null,null,null,null,null,null,null,null,"",""]
[null,null,null,null,null,null,null,null,"",""]
[null,null,null,null,null,null,null,null,"",""]
[null,null,null,null,null,null,null,null,"",""]
[null,null,null,null,null,null,null,null,"",""]
[null,null,null,null,null,null,null,null,"",""]
[null,null,null,null,null,null,null,null,"",""]
[null,null,null,null,null,null,null,null,"",""]
[null,null,null,null,null,null,null,null,"",""]
[null,null,null,null,null,null,null,null,"",""]
[null,null,null,null,null,null,null,null,"",""]
[null,null,null,null,null,null,null,null,"",""]
[null,null,null,null,null,null,null,null,"",""]
[null,null,null,null,null,null,null,null,"",""]
[null,null,null,null,null,null,null,null,"",""]
[null,null,null,null,null,null,null,null,"",""]
[null,null,null,null,null,null,null,null,"",""]
[null,null,null,null,null,null,null,null,"",""]
[null,null,null,null,null,null,null,null,"",""]
[null,null,null,null,null,null,null,null,"",""]
[null,null,null,null,null,null,null,null,"",""]
[null,null,null,null,null,null,null,null,"",""]
[null,null,null,null,null,null,null,null,"",""]
[null,null,null,null,null,null,null,null,"",""]
[null,null,null,null,null,null,null,null,"",""]
[null,null,null,null,null,null,null,null,"",""]
[null,null,null,null,null,null,null,null,"",""]
[null,null,null,null,null,null,null,null,"",""]
[null,null,null,null,null,null,null,null,"",""]
[null,null,null,null,null,null,null,null,"",""]
[null,null,null,null,null,null,null,null,"",""]
[null,null,null,null,null,null,null,null,"",""]
[null,null,null,null,null,null,null,null,"",""]
[null,null,null,null,null,null,null,null,"",""]
[null,null,null,null,null,null,null,null,"",""]
[null,null,null,null,null,null,null,null,"",""]
[null,null,null,null,null,null,null,null,"",""]
[null,null,null,null,null,null,null,null,"",""]
[null,null,null,null,null,null,null,null,{"$f":"IF(E1229=$L$27,1,IF(E1229=$L$28,3,IF(E1229=$L$29,4,IF(E1229=$L$30,5,IF(E1229=$L$31,10,IF(E1229=$L$32,9,IF(E1229=$L$33,2,IF(E1229=$L$34,6,\"\"))))))))","v":""},{"$f":"IF(H1229=$L$48,1,IF(H1229=$L$49,2,IF(H1229=$L$50,3,IF(H1229=$L$51,4,IF(H1229=$L$52,5,IF(H1229=$L$53,6,\"\"))))))","v":""}]
[null,null,null,null,null,null,null,null,"",""]
[null,null,null,null,null,null,null,null,"",""]
[null,null,null,null,null,null,null,null,"",""]
[null,null,null,null,null,null,null,null,"",""]
[null,null,null,null,null,null,null,null,"",""]
[null,null,null,null,null,null,null,null,"",""]
[null,null,null,null,null,null,null,null,"",""]
[null,null,null,null,null,null,null,null,"",""]
[null,null,null,null,null,null,null,null,"",""]
[null,null,null,null,null,null,null,null,"",""]
[null,null,null,null,null,null,null,null,"",""]
[null,null,null,null,null,null,null,null,"",""]
[null,null,null,null,null,null,null,null,"",""]
[null,null,null,null,null,null,null,null,"",""]
[null,null,null,null,null,null,null,null,"",""]
[null,null,null,null,null,null,null,null,"",""]
[null,null,null,null,null,null,null,null,"",""]
[null,null,null,null,null,null,null,null,"",""]
[null,null,null,null,null,null,null,null,"",""]
[null,null,null,null,null,null,null,null,"",""]
[null,null,null,null,null,null,null,null,"",""]
[null,null,null,null,null,null,null,null,"",""]
[null,null,null,null,null,null,null,null,"",""]
[null,null,null,null,null,null,null,null,"",""]
[null,null,null,null,null,null,null,null,"",""]
[null,null,null,null,null,null,null,null,"",""]
[null,null,null,null,null,null,null,null,"",""]
[null,null,null,null,null,null,null,null,"",""]
[null,null,null,null,null,null,null,null,"",""]
[null,null,null,null,null,null,null,null,"",""]
[null,null,null,null,null,null,null,null,"",""]
[null,null,null,null,null,null,null,null,"",""]
[null,null,null,null,null,null,null,null,"",""]
[null,null,null,null,null,null,null,null,"",""]
[null,null,null,null,null,null,null,null,"",""]
[null,null,null,null,null,null,null,null,"",""]
[null,null,null,null,null,null,null,null,"",""]
[null,null,null,null,null,null,null,null,"",""]
[null,null,null,null,null,null,null,null,"",""]
[null,null,null,null,null,null,null,null,"",""]
[null,null,null,null,null,null,null,null,"",""]
[null,null,null,null,null,null,null,null,"",""]
[null,null,null,null,null,null,null,null,"",""]
[null,null,null,null,null,null,null,null,"",""]
[null,null,null,null,null,null,null,null,"",""]
[null,null,null,null,null,null,null,null,"",""]
[null,null,null,null,null,null,null,null,"",""]
[null,null,null,null,null,null,null,null,"",""]
[null,null,null,null,null,null,null,null,"",""]
[null,null,null,null,null,null,null,null,"",""]
[null,null,null,null,null,null,null,null,"",""]
[null,null,null,null,null,null,null,null,"",""]
[null,null,null,null,null,null,null,null,"",""]
[null,null,null,null,null,null,null,null,"",""]
[null,null,null,null,null,null,null,null,"",""]
[null,null,null,null,null,null,null,null,"",""]
[null,null,null,null,null,null,null,null,"",""]
[null,null,null,null,null,null,null,null,"",""]
[null,null,null,null,null,null,null,null,"",""]
[null,null,null,null,null,null,null,null,"",""]
[null,null,null,null,null,null,null,null,"",""]
[null,null,null,null,null,null,null,null,"",""]
[null,null,null,null,null,null,null,null,"",""]
[null,null,null,null,null,null,null,null,{"$f":"IF(E1293=$L$27,1,IF(E1293=$L$28,3,IF(E1293=$L$29,4,IF(E1293=$L$30,5,IF(E1293=$L$31,10,IF(E1293=$L$32,9,IF(E1293=$L$33,2,IF(E1293=$L$34,6,\"\"))))))))","v":""},{"$f":"IF(H1293=$L$48,1,IF(H1293=$L$49,2,IF(H1293=$L$50,3,IF(H1293=$L$51,4,IF(H1293=$L$52,5,IF(H1293=$L$53,6,\"\"))))))","v":""}]
[null,null,null,null,null,null,null,null,"",""]
[null,null,null,null,null,null,null,null,"",""]
[null,null,null,null,null,null,null,null,"",""]
[null,null,null,null,null,null,null,null,"",""]
[null,null,null,null,null,null,null,null,"",""]
[null,null,null,null,null,null,null,null,"",""]
[null,null,null,null,null,null,null,null,"",""]
[null,null,null,null,null,null,null,null,"",""]
[null,null,null,null,null,null,null,null,"",""]
[null,null,null,null,null,null,null,null,"",""]
[null,null,null,null,null,null,null,null,"",""]
[null,null,null,null,null,null,null,null,"",""]
[null,null,null,null,null,null,null,null,"",""]
[null,null,null,null,null,null,null,null,"",""]
[null,null,null,null,null,null,null,null,"",""]
[null,null,null,null,null,null,null,null,"",""]
[null,null,null,null,null,null,null,null,"",""]
[null,null,null,null,null,null,null,null,"",""]
[null,null,null,null,null,null,null,null,"",""]
[null,null,null,null,null,null,null,null,"",""]
[null,null,null,null,null,null,null,null,"",""]
[null,null,null,null,null,null,null,null,"",""]
[null,null,null,null,null,null,null,null,"",""]
[null,null,null,null,null,null,null,null,"",""]
[null,null,null,null,null,null,null,null,"",""]
[null,null,null,null,null,null,null,null,"",""]
[null,null,null,null,null,null,null,null,"",""]
[null,null,null,null,null,null,null,null,"",""]
[null,null,null,null,null,null,null,null,"",""]
[null,null,null,null,null,null,null,null,"",""]
[null,null,null,null,null,null,null,null,"",""]
[null,null,null,null,null,null,null,null,"",""]
[null,null,null,null,null,null,null,null,"",""]
[null,null,null,null,null,null,null,null,"",""]
[null,null,null,null,null,null,null,null,"",""]
[null,null,null,null,null,null,null,null,"",""]
[null,null,null,null,null,null,null,null,"",""]
[null,null,null,null,null,null,null,null,"",""]
[null,null,null,null,null,null,null,null,"",""]
[null,null,null,null,null,null,null,null,"",""]
[null,null,null,null,null,null,null,null,"",""]
[null,null,null,null,null,null,null,null,"",""]
[null,null,null,null,null,null,null,null,"",""]
[null,null,null,null,null,null,null,null,"",""]
[null,null,null,null,null,null,null,null,"",""]
[null,null,null,null,null,null,null,null,"",""]
[null,null,null,null,null,null,null,null,"",""]
[null,null,null,null,null,null,null,null,"",""]
[null,null,null,null,null,null,null,null,"",""]
[null,null,null,null,null,null,null,null,"",""]
[null,null,null,null,null,null,null,null,"",""]
[null,null,null,null,null,null,null,null,"",""]
[null,null,null,null,null,null,null,null,"",""]
[null,null,null,null,null,null,null,null,"",""]
[null,null,null,null,null,null,null,null,"",""]
[null,null,null,null,null,null,null,null,"",""]
[null,null,null,null,null,null,null,null,"",""]
[null,null,null,null,null,null,null,null,"",""]
[null,null,null,null,null,null,null,null,"",""]
[null,null,null,null,null,null,null,null,"",""]
[null,null,null,null,null,null,null,null,"",""]
[null,null,null,null,null,null,null,null,"",""]
[null,null,null,null,null,null,null,null,"",""]
[null,null,null,null,null,null,null,null,{"$f":"IF(E1357=$L$27,1,IF(E1357=$L$28,3,IF(E1357=$L$29,4,IF(E1357=$L$30,5,IF(E1357=$L$31,10,IF(E1357=$L$32,9,IF(E1357=$L$33,2,IF(E1357=$L$34,6,\"\"))))))))","v":""},{"$f":"IF(H1357=$L$48,1,IF(H1357=$L$49,2,IF(H1357=$L$50,3,IF(H1357=$L$51,4,IF(H1357=$L$52,5,IF(H1357=$L$53,6,\"\"))))))","v":""}]
[null,null,null,null,null,null,null,null,"",""]
[null,null,null,null,null,null,null,null,"",""]
[null,null,null,null,null,null,null,null,"",""]
[null,null,null,null,null,null,null,null,"",""]
[null,null,null,null,null,null,null,null,"",""]
[null,null,null,null,null,null,null,null,"",""]
[null,null,null,null,null,null,null,null,"",""]
[null,null,null,null,null,null,null,null,"",""]
[null,null,null,null,null,null,null,null,"",""]
[null,null,null,null,null,null,null,null,"",""]
[null,null,null,null,null,null,null,null,"",""]
[null,null,null,null,null,null,null,null,"",""]
[null,null,null,null,null,null,null,null,"",""]
[null,null,null,null,null,null,null,null,"",""]
[null,null,null,null,null,null,null,null,"",""]
[null,null,null,null,null,null,null,null,"",""]
[null,null,null,null,null,null,null,null,"",""]
[null,null,null,null,null,null,null,null,"",""]
[null,null,null,null,null,null,null,null,"",""]
[null,null,null,null,null,null,null,null,"",""]
[null,null,null,null,null,null,null,null,"",""]
[null,null,null,null,null,null,null,null,"",""]
[null,null,null,null,null,null,null,null,"",""]
[null,null,null,null,null,null,null,null,"",""]
[null,null,null,null,null,null,null,null,"",""]
[null,null,null,null,null,null,null,null,"",""]
[null,null,null,null,null,null,null,null,"",""]
[null,null,null,null,null,null,null,null,"",""]
[null,null,null,null,null,null,null,null,"",""]
[null,null,null,null,null,null,null,null,"",""]
[null,null,null,null,null,null,null,null,"",""]
[null,null,null,null,null,null,null,null,"",""]
[null,null,null,null,null,null,null,null,"",""]
[null,null,null,null,null,null,null,null,"",""]
[null,null,null,null,null,null,null,null,"",""]
[null,null,null,null,null,null,null,null,"",""]
[null,null,null,null,null,null,null,null,"",""]
[null,null,null,null,null,null,null,null,"",""]
[null,null,null,null,null,null,null,null,"",""]
[null,null,null,null,null,null,null,null,"",""]
[null,null,null,null,null,null,null,null,"",""]
[null,null,null,null,null,null,null,null,"",""]
[null,null,null,null,null,null,null,null,"",""]
[null,null,null,null,null,null,null,null,"",""]
[null,null,null,null,null,null,null,null,"",""]
[null,null,null,null,null,null,null,null,"",""]
[null,null,null,null,null,null,null,null,"",""]
[null,null,null,null,null,null,null,null,"",""]
[null,null,null,null,null,null,null,null,"",""]
[null,null,null,null,null,null,null,null,"",""]
[null,null,null,null,null,null,null,null,"",""]
[null,null,null,null,null,null,null,null,"",""]
[null,null,null,null,null,null,null,null,"",""]
[null,null,null,null,null,null,null,null,"",""]
[null,null,null,null,null,null,null,null,"",""]
[null,null,null,null,null,null,null,null,"",""]
[null,null,null,null,null,null,null,null,"",""]
[null,null,null,null,null,null,null,null,"",""]
[null,null,null,null,null,null,null,null,"",""]
[null,null,null,null,null,null,null,null,"",""]
[null,null,null,null,null,null,null,null,"",""]
[null,null,null,null,null,null,null,null,"",""]
[null,null,null,null,null,null,null,null,"",""]
[null,null,null,null,null,null,null,null,{"$f":"IF(E1421=$L$27,1,IF(E1421=$L$28,3,IF(E1421=$L$29,4,IF(E1421=$L$30,5,IF(E1421=$L$31,10,IF(E1421=$L$32,9,IF(E1421=$L$33,2,IF(E1421=$L$34,6,\"\"))))))))","v":""},{"$f":"IF(H1421=$L$48,1,IF(H1421=$L$49,2,IF(H1421=$L$50,3,IF(H1421=$L$51,4,IF(H1421=$L$52,5,IF(H1421=$L$53,6,\"\"))))))","v":""}]
[null,null,null,null,null,null,null,null,"",""]
[null,null,null,null,null,null,null,null,"",""]
[null,null,null,null,null,null,null,null,"",""]
[null,null,null,null,null,null,null,null,"",""]
[null,null,null,null,null,null,null,null,"",""]
[null,null,null,null,null,null,null,null,"",""]
[null,null,null,null,null,null,null,null,"",""]
[null,null,null,null,null,null,null,null,"",""]
[null,null,null,null,null,null,null,null,"",""]
[null,null,null,null,null,null,null,null,"",""]
[null,null,null,null,null,null,null,null,"",""]
[null,null,null,null,null,null,null,null,"",""]
[null,null,null,null,null,null,null,null,"",""]
[null,null,null,null,null,null,null,null,"",""]
[null,null,null,null,null,null,null,null,"",""]
[null,null,null,null,null,null,null,null,"",""]
[null,null,null,null,null,null,null,null,"",""]
[null,null,null,null,null,null,null,null,"",""]
[null,null,null,null,null,null,null,null,"",""]
[null,null,null,null,null,null,null,null,"",""]
[null,null,null,null,null,null,null,null,"",""]
[null,null,null,null,null,null,null,null,"",""]
[null,null,null,null,null,null,null,null,"",""]
[null,null,null,null,null,null,null,null,"",""]
[null,null,null,null,null,null,null,null,"",""]
[null,null,null,null,null,null,null,null,"",""]
[null,null,null,null,null,null,null,null,"",""]
[null,null,null,null,null,null,null,null,"",""]
[null,null,null,null,null,null,null,null,"",""]
[null,null,null,null,null,null,null,null,"",""]
[null,null,null,null,null,null,null,null,"",""]
[null,null,null,null,null,null,null,null,"",""]
[null,null,null,null,null,null,null,null,"",""]
[null,null,null,null,null,null,null,null,"",""]
[null,null,null,null,null,null,null,null,"",""]
[null,null,null,null,null,null,null,null,"",""]
[null,null,null,null,null,null,null,null,"",""]
[null,null,null,null,null,null,null,null,"",""]
[null,null,null,null,null,null,null,null,"",""]
[null,null,null,null,null,null,null,null,"",""]
[null,null,null,null,null,null,null,null,"",""]
[null,null,null,null,null,null,null,null,"",""]
[null,null,null,null,null,null,null,null,"",""]
[null,null,null,null,null,null,null,null,"",""]
[null,null,null,null,null,null,null,null,"",""]
[null,null,null,null,null,null,null,null,"",""]
[null,null,null,null,null,null,null,null,"",""]
[null,null,null,null,null,null,null,null,"",""]
[null,null,null,null,null,null,null,null,"",""]
[null,null,null,null,null,null,null,null,"",""]
[null,null,null,null,null,null,null,null,"",""]
[null,null,null,null,null,null,null,null,"",""]
[null,null,null,null,null,null,null,null,"",""]
[null,null,null,null,null,null,null,null,"",""]
[null,null,null,null,null,null,null,null,"",""]
[null,null,null,null,null,null,null,null,"",""]
[null,null,null,null,null,null,null,null,"",""]
[null,null,null,null,null,null,null,null,"",""]
[null,null,null,null,null,null,null,null,"",""]
[null,null,null,null,null,null,null,null,"",""]
[null,null,null,null,null,null,null,null,"",""]
[null,null,null,null,null,null,null,null,"",""]
[null,null,null,null,null,null,null,null,"",""]
[null,null,null,null,null,null,null,null,{"$f":"IF(E1485=$L$27,1,IF(E1485=$L$28,3,IF(E1485=$L$29,4,IF(E1485=$L$30,5,IF(E1485=$L$31,10,IF(E1485=$L$32,9,IF(E1485=$L$33,2,IF(E1485=$L$34,6,\"\"))))))))","v":""},{"$f":"IF(H1485=$L$48,1,IF(H1485=$L$49,2,IF(H1485=$L$50,3,IF(H1485=$L$51,4,IF(H1485=$L$52,5,IF(H1485=$L$53,6,\"\"))))))","v":""}]
[null,null,null,null,null,null,null,null,"",""]
[null,null,null,null,null,null,null,null,"",""]
[null,null,null,null,null,null,null,null,"",""]
[null,null,null,null,null,null,null,null,"",""]
[null,null,null,null,null,null,null,null,"",""]
[null,null,null,null,null,null,null,null,"",""]
[null,null,null,null,null,null,null,null,"",""]
[null,null,null,null,null,null,null,null,"",""]
[null,null,null,null,null,null,null,null,"",""]
[null,null,null,null,null,null,null,null,"",""]
[null,null,null,null,null,null,null,null,"",""]
[null,null,null,null,null,null,null,null,"",""]
[null,null,null,null,null,null,null,null,"",""]
[null,null,null,null,null,null,null,null,"",""]
[null,null,null,null,null,null,null,null,"",""]
[null,null,null,null,null,null,null,null,"",""]
[null,null,null,null,null,null,null,null,"",""]
[null,null,null,null,null,null,null,null,"",""]
[null,null,null,null,null,null,null,null,"",""]
[null,null,null,null,null,null,null,null,"",""]
[null,null,null,null,null,null,null,null,"",""]
[null,null,null,null,null,null,null,null,"",""]
[null,null,null,null,null,null,null,null,"",""]
[null,null,null,null,null,null,null,null,"",""]
[null,null,null,null,null,null,null,null,"",""]
[null,null,null,null,null,null,null,null,"",""]
[null,null,null,null,null,null,null,null,"",""]
[null,null,null,null,null,null,null,null,"",""]
[null,null,null,null,null,null,null,null,"",""]
[null,null,null,null,null,null,null,null,"",""]
[null,null,null,null,null,null,null,null,"",""]
[null,null,null,null,null,null,null,null,"",""]
[null,null,null,null,null,null,null,null,"",""]
[null,null,null,null,null,null,null,null,"",""]
[null,null,null,null,null,null,null,null,"",""]
[null,null,null,null,null,null,null,null,"",""]
[null,null,null,null,null,null,null,null,"",""]
[null,null,null,null,null,null,null,null,"",""]
[null,null,null,null,null,null,null,null,"",""]
[null,null,null,null,null,null,null,null,"",""]
[null,null,null,null,null,null,null,null,"",""]
[null,null,null,null,null,null,null,null,"",""]
[null,null,null,null,null,null,null,null,"",""]
[null,null,null,null,null,null,null,null,"",""]
[null,null,null,null,null,null,null,null,"",""]
[null,null,null,null,null,null,null,null,"",""]
[null,null,null,null,null,null,null,null,"",""]
[null,null,null,null,null,null,null,null,"",""]
[null,null,null,null,null,null,null,null,"",""]
[null,null,null,null,null,null,null,null,"",""]
[null,null,null,null,null,null,null,null,"",""]
[null,null,null,null,null,null,null,null,"",""]
[null,null,null,null,null,null,null,null,"",""]
[null,null,null,null,null,null,null,null,"",""]
[null,null,null,null,null,null,null,null,"",""]
[null,null,null,null,null,null,null,null,"",""]
[null,null,null,null,null,null,null,null,"",""]
[null,null,null,null,null,null,null,null,"",""]
[null,null,null,null,null,null,null,null,"",""]
[null,null,null,null,null,null,null,null,"",""]
[null,null,null,null,null,null,null,null,"",""]
[null,null,null,null,null,null,null,null,"",""]
[null,null,null,null,null,null,null,null,"",""]
[null,null,null,null,null,null,null,null,{"$f":"IF(E1549=$L$27,1,IF(E1549=$L$28,3,IF(E1549=$L$29,4,IF(E1549=$L$30,5,IF(E1549=$L$31,10,IF(E1549=$L$32,9,IF(E1549=$L$33,2,IF(E1549=$L$34,6,\"\"))))))))","v":""},{"$f":"IF(H1549=$L$48,1,IF(H1549=$L$49,2,IF(H1549=$L$50,3,IF(H1549=$L$51,4,IF(H1549=$L$52,5,IF(H1549=$L$53,6,\"\"))))))","v":""}]
[null,null,null,null,null,null,null,null,"",""]
[null,null,null,null,null,null,null,null,"",""]
[null,null,null,null,null,null,null,null,"",""]
[null,null,null,null,null,null,null,null,"",""]
[null,null,null,null,null,null,null,null,"",""]
[null,null,null,null,null,null,null,null,"",""]
[null,null,null,null,null,null,null,null,"",""]
[null,null,null,null,null,null,null,null,"",""]
[null,null,null,null,null,null,null,null,"",""]
[null,null,null,null,null,null,null,null,"",""]
[null,null,null,null,null,null,null,null,"",""]
[null,null,null,null,null,null,null,null,"",""]
[null,null,null,null,null,null,null,null,"",""]
[null,null,null,null,null,null,null,null,"",""]
[null,null,null,null,null,null,null,null,"",""]
[null,null,null,null,null,null,null,null,"",""]
[null,null,null,null,null,null,null,null,"",""]
[null,null,null,null,null,null,null,null,"",""]
[null,null,null,null,null,null,null,null,"",""]
[null,null,null,null,null,null,null,null,"",""]
[null,null,null,null,null,null,null,null,"",""]
[null,null,null,null,null,null,null,null,"",""]
[null,null,null,null,null,null,null,null,"",""]
[null,null,null,null,null,null,null,null,"",""]
[null,null,null,null,null,null,null,null,"",""]
[null,null,null,null,null,null,null,null,"",""]
[null,null,null,null,null,null,null,null,"",""]
[null,null,null,null,null,null,null,null,"",""]
[null,null,null,null,null,null,null,null,"",""]
[null,null,null,null,null,null,null,null,"",""]
[null,null,null,null,null,null,null,null,"",""]
[null,null,null,null,null,null,null,null,"",""]
[null,null,null,null,null,null,null,null,"",""]
[null,null,null,null,null,null,null,null,"",""]
[null,null,null,null,null,null,null,null,"",""]
[null,null,null,null,null,null,null,null,"",""]
[null,null,null,null,null,null,null,null,"",""]
[null,null,null,null,null,null,null,null,"",""]
[null,null,null,null,null,null,null,null,"",""]
[null,null,null,null,null,null,null,null,"",""]
[null,null,null,null,null,null,null,null,"",""]
[null,null,null,null,null,null,null,null,"",""]
[null,null,null,null,null,null,null,null,"",""]
[null,null,null,null,null,null,null,null,"",""]
[null,null,null,null,null,null,null,null,"",""]
[null,null,null,null,null,null,null,null,"",""]
[null,null,null,null,null,null,null,null,"",""]
[null,null,null,null,null,null,null,null,"",""]
[null,null,null,null,null,null,null,null,"",""]
[null,null,null,null,null,null,null,null,"",""]
[null,null,null,null,null,null,null,null,"",""]
[null,null,null,null,null,null,null,null,"",""]
[null,null,null,null,null,null,null,null,"",""]
[null,null,null,null,null,null,null,null,"",""]
[null,null,null,null,null,null,null,null,"",""]
[null,null,null,null,null,null,null,null,"",""]
[null,null,null,null,null,null,null,null,"",""]
[null,null,null,null,null,null,null,null,"",""]
[null,null,null,null,null,null,null,null,"",""]
[null,null,null,null,null,null,null,null,"",""]
[null,null,null,null,null,null,null,null,"",""]
[null,null,null,null,null,null,null,null,"",""]
[null,null,null,null,null,null,null,null,"",""]
[null,null,null,null,null,null,null,null,{"$f":"IF(E1613=$L$27,1,IF(E1613=$L$28,3,IF(E1613=$L$29,4,IF(E1613=$L$30,5,IF(E1613=$L$31,10,IF(E1613=$L$32,9,IF(E1613=$L$33,2,IF(E1613=$L$34,6,\"\"))))))))","v":""},{"$f":"IF(H1613=$L$48,1,IF(H1613=$L$49,2,IF(H1613=$L$50,3,IF(H1613=$L$51,4,IF(H1613=$L$52,5,IF(H1613=$L$53,6,\"\"))))))","v":""}]
[null,null,null,null,null,null,null,null,"",""]
[null,null,null,null,null,null,null,null,"",""]
[null,null,null,null,null,null,null,null,"",""]
[null,null,null,null,null,null,null,null,"",""]
[null,null,null,null,null,null,null,null,"",""]
[null,null,null,null,null,null,null,null,"",""]
[null,null,null,null,null,null,null,null,"",""]
[null,null,null,null,null,null,null,null,"",""]
[null,null,null,null,null,null,null,null,"",""]
[null,null,null,null,null,null,null,null,"",""]
[null,null,null,null,null,null,null,null,"",""]
[null,null,null,null,null,null,null,null,"",""]
[null,null,null,null,null,null,null,null,"",""]
[null,null,null,null,null,null,null,null,"",""]
[null,null,null,null,null,null,null,null,"",""]
[null,null,null,null,null,null,null,null,"",""]
[null,null,null,null,null,null,null,null,"",""]
[null,null,null,null,null,null,null,null,"",""]
[null,null,null,null,null,null,null,null,"",""]
[null,null,null,null,null,null,null,null,"",""]
[null,null,null,null,null,null,null,null,"",""]
[null,null,null,null,null,null,null,null,"",""]
[null,null,null,null,null,null,null,null,"",""]
[null,null,null,null,null,null,null,null,"",""]
[null,null,null,null,null,null,null,null,"",""]
[null,null,null,null,null,null,null,null,"",""]
[null,null,null,null,null,null,null,null,"",""]
[null,null,null,null,null,null,null,null,"",""]
[null,null,null,null,null,null,null,null,"",""]
[null,null,null,null,null,null,null,null,"",""]
[null,null,null,null,null,null,null,null,"",""]
[null,null,null,null,null,null,null,null,"",""]
[null,null,null,null,null,null,null,null,"",""]
[null,null,null,null,null,null,null,null,"",""]
[null,null,null,null,null,null,null,null,"",""]
[null,null,null,null,null,null,null,null,"",""]
[null,null,null,null,null,null,null,null,"",""]
[null,null,null,null,null,null,null,null,"",""]
[null,null,null,null,null,null,null,null,"",""]
[null,null,null,null,null,null,null,null,"",""]
[null,null,null,null,null,null,null,null,"",""]
[null,null,null,null,null,null,null,null,"",""]
[null,null,null,null,null,null,null,null,"",""]
[null,null,null,null,null,null,null,null,"",""]
[null,null,null,null,null,null,null,null,"",""]
[null,null,null,null,null,null,null,null,"",""]
[null,null,null,null,null,null,null,null,"",""]
[null,null,null,null,null,null,null,null,"",""]
[null,null,null,null,null,null,null,null,"",""]
[null,null,null,null,null,null,null,null,"",""]
[null,null,null,null,null,null,null,null,"",""]
[null,null,null,null,null,null,null,null,"",""]
[null,null,null,null,null,null,null,null,"",""]
[null,null,null,null,null,null,null,null,"",""]
[null,null,null,null,null,null,null,null,"",""]
[null,null,null,null,null,null,null,null,"",""]
[null,null,null,null,null,null,null,null,"",""]
[null,null,null,null,null,null,null,null,"",""]
[null,null,null,null,null,null,null,null,"",""]
[null,null,null,null,null,null,null,null,"",""]
[null,null,null,null,null,null,null,null,"",""]
[null,null,null,null,null,null,null,null,"",""]
[null,null,null,null,null,null,null,null,"",""]
[null,null,null,null,null,null,null,null,{"$f":"IF(E1677=$L$27,1,IF(E1677=$L$28,3,IF(E1677=$L$29,4,IF(E1677=$L$30,5,IF(E1677=$L$31,10,IF(E1677=$L$32,9,IF(E1677=$L$33,2,IF(E1677=$L$34,6,\"\"))))))))","v":""},{"$f":"IF(H1677=$L$48,1,IF(H1677=$L$49,2,IF(H1677=$L$50,3,IF(H1677=$L$51,4,IF(H1677=$L$52,5,IF(H1677=$L$53,6,\"\"))))))","v":""}]
[null,null,null,null,null,null,null,null,"",""]
[null,null,null,null,null,null,null,null,"",""]
[null,null,null,null,null,null,null,null,"",""]
[null,null,null,null,null,null,null,null,"",""]
[null,null,null,null,null,null,null,null,"",""]
[null,null,null,null,null,null,null,null,"",""]
[null,null,null,null,null,null,null,null,"",""]
[null,null,null,null,null,null,null,null,"",""]
[null,null,null,null,null,null,null,null,"",""]
[null,null,null,null,null,null,null,null,"",""]
[null,null,null,null,null,null,null,null,"",""]
[null,null,null,null,null,null,null,null,"",""]
[null,null,null,null,null,null,null,null,"",""]
[null,null,null,null,null,null,null,null,"",""]
[null,null,null,null,null,null,null,null,"",""]
[null,null,null,null,null,null,null,null,"",""]
[null,null,null,null,null,null,null,null,"",""]
[null,null,null,null,null,null,null,null,"",""]
[null,null,null,null,null,null,null,null,"",""]
[null,null,null,null,null,null,null,null,"",""]
[null,null,null,null,null,null,null,null,"",""]
[null,null,null,null,null,null,null,null,"",""]
[null,null,null,null,null,null,null,null,"",""]
[null,null,null,null,null,null,null,null,"",""]
[null,null,null,null,null,null,null,null,"",""]
[null,null,null,null,null,null,null,null,"",""]
[null,null,null,null,null,null,null,null,"",""]
[null,null,null,null,null,null,null,null,"",""]
[null,null,null,null,null,null,null,null,"",""]
[null,null,null,null,null,null,null,null,"",""]
[null,null,null,null,null,null,null,null,"",""]
[null,null,null,null,null,null,null,null,"",""]
[null,null,null,null,null,null,null,null,"",""]
[null,null,null,null,null,null,null,null,"",""]
[null,null,null,null,null,null,null,null,"",""]
[null,null,null,null,null,null,null,null,"",""]
[null,null,null,null,null,null,null,null,"",""]
[null,null,null,null,null,null,null,null,"",""]
[null,null,null,null,null,null,null,null,"",""]
[null,null,null,null,null,null,null,null,"",""]
[null,null,null,null,null,null,null,null,"",""]
[null,null,null,null,null,null,null,null,"",""]
[null,null,null,null,null,null,null,null,"",""]
[null,null,null,null,null,null,null,null,"",""]
[null,null,null,null,null,null,null,null,"",""]
[null,null,null,null,null,null,null,null,"",""]
[null,null,null,null,null,null,null,null,"",""]
[null,null,null,null,null,null,null,null,"",""]
[null,null,null,null,null,null,null,null,"",""]
[null,null,null,null,null,null,null,null,"",""]
[null,null,null,null,null,null,null,null,"",""]
[null,null,null,null,null,null,null,null,"",""]
[null,null,null,null,null,null,null,null,"",""]
[null,null,null,null,null,null,null,null,"",""]
[null,null,null,null,null,null,null,null,"",""]
[null,null,null,null,null,null,null,null,"",""]
[null,null,null,null,null,null,null,null,"",""]
[null,null,null,null,null,null,null,null,"",""]
[null,null,null,null,null,null,null,null,"",""]
[null,null,null,null,null,null,null,null,"",""]
[null,null,null,null,null,null,null,null,"",""]
[null,null,null,null,null,null,null,null,"",""]
[null,null,null,null,null,null,null,null,"",""]
[null,null,null,null,null,null,null,null,{"$f":"IF(E1741=$L$27,1,IF(E1741=$L$28,3,IF(E1741=$L$29,4,IF(E1741=$L$30,5,IF(E1741=$L$31,10,IF(E1741=$L$32,9,IF(E1741=$L$33,2,IF(E1741=$L$34,6,\"\"))))))))","v":""},{"$f":"IF(H1741=$L$48,1,IF(H1741=$L$49,2,IF(H1741=$L$50,3,IF(H1741=$L$51,4,IF(H1741=$L$52,5,IF(H1741=$L$53,6,\"\"))))))","v":""}]
[null,null,null,null,null,null,null,null,"",""]
[null,null,null,null,null,null,null,null,"",""]
[null,null,null,null,null,null,null,null,"",""]
[null,null,null,null,null,null,null,null,"",""]
[null,null,null,null,null,null,null,null,"",""]
[null,null,null,null,null,null,null,null,"",""]
[null,null,null,null,null,null,null,null,"",""]
[null,null,null,null,null,null,null,null,"",""]
[null,null,null,null,null,null,null,null,"",""]
[null,null,null,null,null,null,null,null,"",""]
[null,null,null,null,null,null,null,null,"",""]
[null,null,null,null,null,null,null,null,"",""]
[null,null,null,null,null,null,null,null,"",""]
[null,null,null,null,null,null,null,null,"",""]
[null,null,null,null,null,null,null,null,"",""]
[null,null,null,null,null,null,null,null,"",""]
[null,null,null,null,null,null,null,null,"",""]
[null,null,null,null,null,null,null,null,"",""]
[null,null,null,null,null,null,null,null,"",""]
[null,null,null,null,null,null,null,null,"",""]
[null,null,null,null,null,null,null,null,"",""]
[null,null,null,null,null,null,null,null,"",""]
[null,null,null,null,null,null,null,null,"",""]
[null,null,null,null,null,null,null,null,"",""]
[null,null,null,null,null,null,null,null,"",""]
[null,null,null,null,null,null,null,null,"",""]
[null,null,null,null,null,null,null,null,"",""]
[null,null,null,null,null,null,null,null,"",""]
[null,null,null,null,null,null,null,null,"",""]
[null,null,null,null,null,null,null,null,"",""]
[null,null,null,null,null,null,null,null,"",""]
[null,null,null,null,null,null,null,null,"",""]
[null,null,null,null,null,null,null,null,"",""]
[null,null,null,null,null,null,null,null,"",""]
[null,null,null,null,null,null,null,null,"",""]
[null,null,null,null,null,null,null,null,"",""]
[null,null,null,null,null,null,null,null,"",""]
[null,null,null,null,null,null,null,null,"",""]
[null,null,null,null,null,null,null,null,"",""]
[null,null,null,null,null,null,null,null,"",""]
[null,null,null,null,null,null,null,null,"",""]
[null,null,null,null,null,null,null,null,"",""]
[null,null,null,null,null,null,null,null,"",""]
[null,null,null,null,null,null,null,null,"",""]
[null,null,null,null,null,null,null,null,"",""]
[null,null,null,null,null,null,null,null,"",""]
[null,null,null,null,null,null,null,null,"",""]
[null,null,null,null,null,null,null,null,"",""]
[null,null,null,null,null,null,null,null,"",""]
[null,null,null,null,null,null,null,null,"",""]
[null,null,null,null,null,null,null,null,"",""]
[null,null,null,null,null,null,null,null,"",""]
[null,null,null,null,null,null,null,null,"",""]
[null,null,null,null,null,null,null,null,"",""]
[null,null,null,null,null,null,null,null,"",""]
[null,null,null,null,null,null,null,null,"",""]
[null,null,null,null,null,null,null,null,"",""]
[null,null,null,null,null,null,null,null,"",""]
[null,null,null,null,null,null,null,null,"",""]
[null,null,null,null,null,null,null,null,"",""]
[null,null,null,null,null,null,null,null,"",""]
[null,null,null,null,null,null,null,null,"",""]
[null,null,null,null,null,null,null,null,"",""]
[null,null,null,null,null,null,null,null,{"$f":"IF(E1805=$L$27,1,IF(E1805=$L$28,3,IF(E1805=$L$29,4,IF(E1805=$L$30,5,IF(E1805=$L$31,10,IF(E1805=$L$32,9,IF(E1805=$L$33,2,IF(E1805=$L$34,6,\"\"))))))))","v":""},{"$f":"IF(H1805=$L$48,1,IF(H1805=$L$49,2,IF(H1805=$L$50,3,IF(H1805=$L$51,4,IF(H1805=$L$52,5,IF(H1805=$L$53,6,\"\"))))))","v":""}]
[null,null,null,null,null,null,null,null,"",""]
[null,null,null,null,null,null,null,null,"",""]
[null,null,null,null,null,null,null,null,"",""]
[null,null,null,null,null,null,null,null,"",""]
[null,null,null,null,null,null,null,null,"",""]
[null,null,null,null,null,null,null,null,"",""]
[null,null,null,null,null,null,null,null,"",""]
[null,null,null,null,null,null,null,null,"",""]
[null,null,null,null,null,null,null,null,"",""]
[null,null,null,null,null,null,null,null,"",""]
[null,null,null,null,null,null,null,null,"",""]
[null,null,null,null,null,null,null,null,"",""]
[null,null,null,null,null,null,null,null,"",""]
[null,null,null,null,null,null,null,null,"",""]
[null,null,null,null,null,null,null,null,"",""]
[null,null,null,null,null,null,null,null,"",""]
[null,null,null,null,null,null,null,null,"",""]
[null,null,null,null,null,null,null,null,"",""]
[null,null,null,null,null,null,null,null,"",""]
[null,null,null,null,null,null,null,null,"",""]
[null,null,null,null,null,null,null,null,"",""]
[null,null,null,null,null,null,null,null,"",""]
[null,null,null,null,null,null,null,null,"",""]
[null,null,null,null,null,null,null,null,"",""]
[null,null,null,null,null,null,null,null,"",""]
[null,null,null,null,null,null,null,null,"",""]
[null,null,null,null,null,null,null,null,"",""]
[null,null,null,null,null,null,null,null,"",""]
[null,null,null,null,null,null,null,null,"",""]
[null,null,null,null,null,null,null,null,"",""]
[null,null,null,null,null,null,null,null,"",""]
[null,null,null,null,null,null,null,null,"",""]
[null,null,null,null,null,null,null,null,"",""]
[null,null,null,null,null,null,null,null,"",""]
[null,null,null,null,null,null,null,null,"",""]
[null,null,null,null,null,null,null,null,"",""]
[null,null,null,null,null,null,null,null,"",""]
[null,null,null,null,null,null,null,null,"",""]
[null,null,null,null,null,null,null,null,"",""]
[null,null,null,null,null,null,null,null,"",""]
[null,null,null,null,null,null,null,null,"",""]
[null,null,null,null,null,null,null,null,"",""]
[null,null,null,null,null,null,null,null,"",""]
[null,null,null,null,null,null,null,null,"",""]
[null,null,null,null,null,null,null,null,"",""]
[null,null,null,null,null,null,null,null,"",""]
[null,null,null,null,null,null,null,null,"",""]
[null,null,null,null,null,null,null,null,"",""]
[null,null,null,null,null,null,null,null,"",""]
[null,null,null,null,null,null,null,null,"",""]
[null,null,null,null,null,null,null,null,"",""]
[null,null,null,null,null,null,null,null,"",""]
[null,null,null,null,null,null,null,null,"",""]
[null,null,null,null,null,null,null,null,"",""]
[null,null,null,null,null,null,null,null,"",""]
[null,null,null,null,null,null,null,null,"",""]
[null,null,null,null,null,null,null,null,"",""]
[null,null,null,null,null,null,null,null,"",""]
[null,null,null,null,null,null,null,null,"",""]
[null,null,null,null,null,null,null,null,"",""]
[null,null,null,null,null,null,null,null,"",""]
[null,null,null,null,null,null,null,null,"",""]
[null,null,null,null,null,null,null,null,"",""]
[null,null,null,null,null,null,null,null,{"$f":"IF(E1869=$L$27,1,IF(E1869=$L$28,3,IF(E1869=$L$29,4,IF(E1869=$L$30,5,IF(E1869=$L$31,10,IF(E1869=$L$32,9,IF(E1869=$L$33,2,IF(E1869=$L$34,6,\"\"))))))))","v":""},{"$f":"IF(H1869=$L$48,1,IF(H1869=$L$49,2,IF(H1869=$L$50,3,IF(H1869=$L$51,4,IF(H1869=$L$52,5,IF(H1869=$L$53,6,\"\"))))))","v":""}]
[null,null,null,null,null,null,null,null,"",""]
[null,null,null,null,null,null,null,null,"",""]
[null,null,null,null,null,null,null,null,"",""]
[null,null,null,null,null,null,null,null,"",""]
[null,null,null,null,null,null,null,null,"",""]
[null,null,null,null,null,null,null,null,"",""]
[null,null,null,null,null,null,null,null,"",""]
[null,null,null,null,null,null,null,null,"",""]
[null,null,null,null,null,null,null,null,"",""]
[null,null,null,null,null,null,null,null,"",""]
[null,null,null,null,null,null,null,null,"",""]
[null,null,null,null,null,null,null,null,"",""]
[null,null,null,null,null,null,null,null,"",""]
[null,null,null,null,null,null,null,null,"",""]
[null,null,null,null,null,null,null,null,"",""]
[null,null,null,null,null,null,null,null,"",""]
[null,null,null,null,null,null,null,null,"",""]
[null,null,null,null,null,null,null,null,"",""]
[null,null,null,null,null,null,null,null,"",""]
[null,null,null,null,null,null,null,null,"",""]
[null,null,null,null,null,null,null,null,"",""]
[null,null,null,null,null,null,null,null,"",""]
[null,null,null,null,null,null,null,null,"",""]
[null,null,null,null,null,null,null,null,"",""]
[null,null,null,null,null,null,null,null,"",""]
[null,null,null,null,null,null,null,null,"",""]
[null,null,null,null,null,null,null,null,"",""]
[null,null,null,null,null,null,null,null,"",""]
[null,null,null,null,null,null,null,null,"",""]
[null,null,null,null,null,null,null,null,"",""]
[null,null,null,null,null,null,null,null,"",""]
[null,null,null,null,null,null,null,null,"",""]
[null,null,null,null,null,null,null,null,"",""]
[null,null,null,null,null,null,null,null,"",""]
[null,null,null,null,null,null,null,null,"",""]
[null,null,null,null,null,null,null,null,"",""]
[null,null,null,null,null,null,null,null,"",""]
[null,null,null,null,null,null,null,null,"",""]
[null,null,null,null,null,null,null,null,"",""]
[null,null,null,null,null,null,null,null,"",""]
[null,null,null,null,null,null,null,null,"",""]
[null,null,null,null,null,null,null,null,"",""]
[null,null,null,null,null,null,null,null,"",""]
[null,null,null,null,null,null,null,null,"",""]
[null,null,null,null,null,null,null,null,"",""]
[null,null,null,null,null,null,null,null,"",""]
[null,null,null,null,null,null,null,null,"",""]
[null,null,null,null,null,null,null,null,"",""]
[null,null,null,null,null,null,null,null,"",""]
[null,null,null,null,null,null,null,null,"",""]
[null,null,null,null,null,null,null,null,"",""]
[null,null,null,null,null,null,null,null,"",""]
[null,null,null,null,null,null,null,null,"",""]
[null,null,null,null,null,null,null,null,"",""]
[null,null,null,null,null,null,null,null,"",""]
[null,null,null,null,null,null,null,null,"",""]
[null,null,null,null,null,null,null,null,"",""]
[null,null,null,null,null,null,null,null,"",""]
[null,null,null,null,null,null,null,null,"",""]
[null,null,null,null,null,null,null,null,"",""]
[null,null,null,null,null,null,null,null,"",""]
[null,null,null,null,null,null,null,null,"",""]
[null,null,null,null,null,null,null,null,"",""]
[null,null,null,null,null,null,null,null,{"$f":"IF(E1933=$L$27,1,IF(E1933=$L$28,3,IF(E1933=$L$29,4,IF(E1933=$L$30,5,IF(E1933=$L$31,10,IF(E1933=$L$32,9,IF(E1933=$L$33,2,IF(E1933=$L$34,6,\"\"))))))))","v":""},{"$f":"IF(H1933=$L$48,1,IF(H1933=$L$49,2,IF(H1933=$L$50,3,IF(H1933=$L$51,4,IF(H1933=$L$52,5,IF(H1933=$L$53,6,\"\"))))))","v":""}]
[null,null,null,null,null,null,null,null,"",""]
[null,null,null,null,null,null,null,null,"",""]
[null,null,null,null,null,null,null,null,"",""]
[null,null,null,null,null,null,null,null,"",""]
[null,null,null,null,null,null,null,null,"",""]
[null,null,null,null,null,null,null,null,"",""]
[null,null,null,null,null,null,null,null,"",""]
[null,null,null,null,null,null,null,null,"",""]
[null,null,null,null,null,null,null,null,"",""]
[null,null,null,null,null,null,null,null,"",""]
[null,null,null,null,null,null,null,null,"",""]
[null,null,null,null,null,null,null,null,"",""]
[null,null,null,null,null,null,null,null,"",""]
[null,null,null,null,null,null,null,null,"",""]
[null,null,null,null,null,null,null,null,"",""]
[null,null,null,null,null,null,null,null,"",""]
[null,null,null,null,null,null,null,null,"",""]
[null,null,null,null,null,null,null,null,"",""]
[null,null,null,null,null,null,null,null,"",""]
[null,null,null,null,null,null,null,null,"",""]
[null,null,null,null,null,null,null,null,"",""]
[null,null,null,null,null,null,null,null,"",""]
[null,null,null,null,null,null,null,null,"",""]
[null,null,null,null,null,null,null,null,"",""]
[null,null,null,null,null,null,null,null,"",""]
[null,null,null,null,null,null,null,null,"",""]
[null,null,null,null,null,null,null,null,"",""]
[null,null,null,null,null,null,null,null,"",""]
[null,null,null,null,null,null,null,null,"",""]
[null,null,null,null,null,null,null,null,"",""]
[null,null,null,null,null,null,null,null,"",""]
[null,null,null,null,null,null,null,null,"",""]
[null,null,null,null,null,null,null,null,"",""]
[null,null,null,null,null,null,null,null,"",""]
[null,null,null,null,null,null,null,null,"",""]
[null,null,null,null,null,null,null,null,"",""]
[null,null,null,null,null,null,null,null,"",""]
[null,null,null,null,null,null,null,null,"",""]
[null,null,null,null,null,null,null,null,"",""]
[null,null,null,null,null,null,null,null,"",""]
[null,null,null,null,null,null,null,null,"",""]
[null,null,null,null,null,null,null,null,"",""]
[null,null,null,null,null,null,null,null,"",""]
[null,null,null,null,null,null,null,null,"",""]
[null,null,null,null,null,null,null,null,"",""]
[null,null,null,null,null,null,null,null,"",""]
[null,null,null,null,null,null,null,null,"",""]
[null,null,null,null,null,null,null,null,"",""]
[null,null,null,null,null,null,null,null,"",""]
[null,null,null,null,null,null,null,null,"",""]
[null,null,null,null,null,null,null,null,"",""]
[null,null,null,null,null,null,null,null,"",""]
[null,null,null,null,null,null,null,null,"",""]
[null,null,null,null,null,null,null,null,"",""]
[null,null,null,null,null,null,null,null,"",""]
[null,null,null,null,null,null,null,null,"",""]
[null,null,null,null,null,null,null,null,"",""]
[null,null,null,null,null,null,null,null,"",""]
[null,null,null,null,null,null,null,null,"",""]
[null,null,null,null,null,null,null,null,"",""]
[null,null,null,null,null,null,null,null,"",""]
[null,null,null,null,null,null,null,null,"",""]
[null,null,null,null,null,null,null,null,"",""]
[null,null,null,null,null,null,null,null,{"$f":"IF(E1997=$L$27,1,IF(E1997=$L$28,3,IF(E1997=$L$29,4,IF(E1997=$L$30,5,IF(E1997=$L$31,10,IF(E1997=$L$32,9,IF(E1997=$L$33,2,IF(E1997=$L$34,6,\"\"))))))))","v":""},{"$f":"IF(H1997=$L$48,1,IF(H1997=$L$49,2,IF(H1997=$L$50,3,IF(H1997=$L$51,4,IF(H1997=$L$52,5,IF(H1997=$L$53,6,\"\"))))))","v":""}]
[null,null,null,null,null,null,null,null,"",""]
[null,null,null,null,null,null,null,null,"",""]
[null,null,null,null,null,null,null,null,"",""]
[null,null,null,null,null,null,null,null,"",""]
[null,null,null,null,null,null,null,null,"",""]
[null,null,null,null,null,null,null,null,"",""]
[null,null,null,null,null,null,null,null,"",""]
[null,null,null,null,null,null,null,null,"",""]
[null,null,null,null,null,null,null,null,"",""]
[null,null,null,null,null,null,null,null,"",""]
[null,null,null,null,null,null,null,null,"",""]
[null,null,null,null,null,null,null,null,"",""]
[null,null,null,null,null,null,null,null,"",""]
[null,null,null,null,null,null,null,null,"",""]
[null,null,null,null,null,null,null,null,"",""]
[null,null,null,null,null,null,null,null,"",""]
[null,null,null,null,null,null,null,null,"",""]
[null,null,null,null,null,null,null,null,"",""]
[null,null,null,null,null,null,null,null,"",""]
[null,null,null,null,null,null,null,null,"",""]
[null,null,null,null,null,null,null,null,"",""]
[null,null,null,null,null,null,null,null,"",""]
[null,null,null,null,null,null,null,null,"",""]
[null,null,null,null,null,null,null,null,"",""]
[null,null,null,null,null,null,null,null,"",""]
[null,null,null,null,null,null,null,null,"",""]
[null,null,null,null,null,null,null,null,"",""]
[null,null,null,null,null,null,null,null,"",""]
[null,null,null,null,null,null,null,null,"",""]
[null,null,null,null,null,null,null,null,"",""]
[null,null,null,null,null,null,null,null,"",""]
[null,null,null,null,null,null,null,null,"",""]
[null,null,null,null,null,null,null,null,"",""]
[null,null,null,null,null,null,null,null,"",""]
[null,null,null,null,null,null,null,null,"",""]
[null,null,null,null,null,null,null,null,"",""]
[null,null,null,null,null,null,null,null,"",""]
[null,null,null,null,null,null,null,null,"",""]
[null,null,null,null,null,null,null,null,"",""]
[null,null,null,null,null,null,null,null,"",""]
[null,null,null,null,null,null,null,null,"",""]
[null,null,null,null,null,null,null,null,"",""]
[null,null,null,null,null,null,null,null,"",""]
[null,null,null,null,null,null,null,null,"",""]
[null,null,null,null,null,null,null,null,"",""]
[null,null,null,null,null,null,null,null,"",""]
[null,null,null,null,null,null,null,null,"",""]
[null,null,null,null,null,null,null,null,"",""]
[null,null,null,null,null,null,null,null,"",""]
[null,null,null,null,null,null,null,null,"",""]
[null,null,null,null,null,null,null,null,"",""]
[null,null,null,null,null,null,null,null,"",""]
[null,null,null,null,null,null,null,null,"",""]
[null,null,null,null,null,null,null,null,"",""]
[null,null,null,null,null,null,null,null,"",""]
[null,null,null,null,null,null,null,null,"",""]
[null,null,null,null,null,null,null,null,"",""]
[null,null,null,null,null,null,null,null,"",""]
[null,null,null,null,null,null,null,null,"",""]
[null,null,null,null,null,null,null,null,"",""]
[null,null,null,null,null,null,null,null,"",""]
[null,null,null,null,null,null,null,null,"",""]
[null,null,null,null,null,null,null,null,"",""]
[null,null,null,null,null,null,null,null,"",""]
[null,null,null,null,null,null,null,null,"",""]
[null,null,null,null,null,null,null,null,"",""]
[null,null,null,null,null,null,null,null,"",""]
[null,null,null,null,null,null,null,null,"",""]
[null,null,null,null,null,null,null,null,"",""]
[null,null,null,null,null,null,null,null,"",""]
[null,null,null,null,null,null,null,null,"",""]
[null,null,null,null,null,null,null,null,"",""]
[null,null,null,null,null,null,null,null,"",""]
[null,null,null,null,null,null,null,null,"",""]
[null,null,null,null,null,null,null,null,"",""]
[null,null,null,null,null,null,null,null,"",""]
[null,null,null,null,null,null,null,null,"",""]
[null,null,null,null,null,null,null,null,"",""]
[null,null,null,null,null,null,null,null,"",""]
[null,null,null,null,null,null,null,null,"",""]
[null,null,null,null,null,null,null,null,"",""]
[null,null,null,null,null,null,null,null,"",""]
[null,null,null,null,null,null,null,null,"",""]
[null,null,null,null,null,null,null,null,"",""]
[null,null,null,null,null,null,null,null,"",""]
[null,null,null,null,null,null,null,null,"",""]
[null,null,null,null,null,null,null,null,"",""]
[null,null,null,null,null,null,null,null,"",""]
[null,null,null,null,null,null,null,null,{"$f":"IF(E8333=$L$27,1,IF(E8333=$L$28,3,IF(E8333=$L$29,4,IF(E8333=$L$30,5,IF(E8333=$L$31,10,IF(E8333=$L$32,9,IF(E8333=$L$33,2,IF(E8333=$L$34,6,\"\"))))))))","v":""},{"$f":"IF(H8333=$L$48,1,IF(H8333=$L$49,2,IF(H8333=$L$50,3,IF(H8333=$L$51,4,IF(H8333=$L$52,5,IF(H8333=$L$53,6,\"\"))))))","v":""}]
[null,null,null,null,null,null,null,null,"",""]
[null,null,null,null,null,null,null,null,"",""]
[null,null,null,null,null,null,null,null,"",""]
[null,null,null,null,null,null,null,null,"",""]
[null,null,null,null,null,null,null,null,"",""]
[null,null,null,null,null,null,null,null,"",""]
[null,null,null,null,null,null,null,null,"",""]
[null,null,null,null,null,null,null,null,"",""]
[null,null,null,null,null,null,null,null,"",""]
[null,null,null,null,null,null,null,null,{"$f":"IF(E9037=$L$27,1,IF(E9037=$L$28,3,IF(E9037=$L$29,4,IF(E9037=$L$30,5,IF(E9037=$L$31,10,IF(E9037=$L$32,9,IF(E9037=$L$33,2,IF(E9037=$L$34,6,\"\"))))))))","v":""},{"$f":"IF(H9037=$L$48,1,IF(H9037=$L$49,2,IF(H9037=$L$50,3,IF(H9037=$L$51,4,IF(H9037=$L$52,5,IF(H9037=$L$53,6,\"\"))))))","v":""}]
[null,null,null,null,null,null,null,null,"",""]
[null,null,null,null,null,null,null,null,"",""]
[null,null,null,null,null,null,null,null,"",""]
[null,null,null,null,null,null,null,null,"",""]
[null,null,null,null,null,null,null,null,"",""]
[null,null,null,null,null,null,null,null,"",""]
[null,null,null,null,null,null,null,null,"",""]
[null,null,null,null,null,null,null,null,"",""]
[null,null,null,null,null,null,null,null,"",""]
[null,null,null,null,null,null,null,null,"",""]
[null,null,null,null,null,null,null,null,"",""]
[null,null,null,null,null,null,null,null,"",""]
[null,null,null,null,null,null,null,null,"",""]
[null,null,null,null,null,null,null,null,"",""]
[null,null,null,null,null,null,null,null,"",""]
[null,null,null,null,null,null,null,null,{"$f":"IF(E10253=$L$27,1,IF(E10253=$L$28,3,IF(E10253=$L$29,4,IF(E10253=$L$30,5,IF(E10253=$L$31,10,IF(E10253=$L$32,9,IF(E10253=$L$33,2,IF(E10253=$L$34,6,\"\"))))))))","v":""},{"$f":"IF(H10253=$L$48,1,IF(H10253=$L$49,2,IF(H10253=$L$50,3,IF(H10253=$L$51,4,IF(H10253=$L$52,5,IF(H10253=$L$53,6,\"\"))))))","v":""}]
[null,null,null,null,null,null,null,null,"",""]
[null,null,null,null,null,null,null,null,"",""]
[null,null,null,null,null,null,null,null,"",""]
[null,null,null,null,null,null,null,null,"",""]
[null,null,null,null,null,null,null,null,"",""]
[null,null,null,null,null,null,null,null,"",""]
[null,null,null,null,null,null,null,null,"",""]
[null,null,null,null,null,null,null,null,"",""]
[null,null,null,null,null,null,null,null,"",""]
[null,null,null,null,null,null,null,null,"",""]
[null,null,null,null,null,null,null,null,"",""]
[null,null,null,null,null,null,null,null,"",""]
[null,null,null,null,null,null,null,null,"",""]
[null,null,null,null,null,null,null,null,"",""]
[null,null,null,null,null,null,null,null,"",""]
[null,null,null,null,null,null,null,null,"",""]
[null,null,null,null,null,null,null,null,"",""]
[null,null,null,null,null,null,null,null,"",""]
[null,null,null,null,null,null,null,null,"",""]
[null,null,null,null,null,null,null,null,"",""]
[null,null,null,null,null,null,null,null,"",""]
[null,null,null,null,null,null,null,null,"",""]
[null,null,null,null,null,null,null,null,"",""]
[null,null,null,null,null,null,null,null,"",""]
[null,null,null,null,null,null,null,null,"",""]
[null,null,null,null,null,null,null,null,"",""]
[null,null,null,null,null,null,null,null,"",""]
[null,null,null,null,null,null,null,null,"",""]
[null,null,null,null,null,null,null,null,"",""]
[null,null,null,null,null,null,null,null,"",""]
[null,null,null,null,null,null,null,null,"",""]
[null,null,null,null,null,null,null,null,"",""]
[null,null,null,null,null,null,null,null,"",""]
[null,null,null,null,null,null,null,null,"",""]
[null,null,null,null,null,null,null,null,"",""]
[null,null,null,null,null,null,null,null,"",""]
[null,null,null,null,null,null,null,null,"",""]
[null,null,null,null,null,null,null,null,"",""]
[null,null,null,null,null,null,null,null,"",""]
[null,null,null,null,null,null,null,null,"",""]
[null,null,null,null,null,null,null,null,"",""]
[null,null,null,null,null,null,null,null,"",""]
[null,null,null,null,null,null,null,null,"",""]
[null,null,null,null,null,null,null,null,"",""]
[null,null,null,null,null,null,null,null,"",""]
[null,null,null,null,null,null,null,null,"",""]
[null,null,null,null,null,null,null,null,"",""]
[null,null,null,null,null,null,null,null,"",""]
[null,null,null,null,null,null,null,null,"",""]
[null,null,null,null,null,null,null,null,"",""]
[null,null,null,null,null,null,null,null,"",""]
[null,null,null,null,null,null,null,null,"",""]
[null,null,null,null,null,null,null,null,"",""]
[null,null,null,null,null,null,null,null,"",""]
[null,null,null,null,null,null,null,null,"",""]
[null,null,null,null,null,null,null,null,"",""]
[null,null,null,null,null,null,null,null,"",""]
[null,null,null,null,null,null,null,null,"",""]
[null,null,null,null,null,null,null,null,"",""]
[null,null,null,null,null,null,null,null,"",""]
[null,null,null,null,null,null,null,null,"",""]
[null,null,null,null,null,null,null,null,"",""]
[null,null,null,null,null,null,null,null,"",""]
[null,null,null,null,null,null,null,null,"",""]
[null,null,null,null,null,null,null,null,"",""]
[null,null,null,null,null,null,null,null,"",""]
[null,null,null,null,null,null,null,null,"",""]
[null,null,null,null,null,null,null,null,"",""]
[null,null,null,null,null,null,null,null,"",""]
[null,null,null,null,null,null,null,null,"",""]
[null,null,null,null,null,null,null,null,"",""]
[null,null,null,null,null,null,null,null,"",""]
[null,null,null,null,null,null,null,null,"",""]
[null,null,null,null,null,null,null,null,"",""]
[null,null,null,null,null,null,null,null,"",""]
[null,null,null,null,null,null,null,null,"",""]
[null,null,null,null,null,null,null,null,"",""]
[null,null,null,null,null,null,null,null,"",""]
[null,null,null,null,null,null,null,null,"",""]
[null,null,null,null,null,null,null,null,"",""]
[null,null,null,null,null,null,null,null,"",""]
[null,null,null,null,null,null,null,null,"",""]
[null,null,null,null,null,null,null,null,"",""]
[null,null,null,null,null,null,null,null,"",""]
[null,null,null,null,null,null,null,null,"",""]
[null,null,null,null,null,null,null,null,"",""]
[null,null,null,null,null,null,null,null,"",""]
[null,null,null,null,null,null,null,null,"",""]
[null,null,null,null,null,null,null,null,"",""]
[null,null,null,null,null,null,null,null,"",""]
[null,null,null,null,null,null,null,null,"",""]
[null,null,null,null,null,null,null,null,"",""]
[null,null,null,null,null,null,null,null,"",""]
[null,null,null,null,null,null,null,null,"",""]
[null,null,null,null,null,null,null,null,"",""]
[null,null,null,null,null,null,null,null,"",""]
[null,null,null,null,null,null,null,null,"",""]
[null,null,null,null,null,null,null,null,"",""]
[null,null,null,null,null,null,null,null,"",""]
[null,null,null,null,null,null,null,null,"",""]
[null,null,null,null,null,null,null,null,"",""]
[null,null,null,null,null,null,null,null,"",""]
[null,null,null,null,null,null,null,null,"",""]
[null,null,null,null,null,null,null,null,"",""]
[null,null,null,null,null,null,null,null,"",""]
[null,null,null,null,null,null,null,null,"",""]
[null,null,null,null,null,null,null,null,"",""]
[null,null,null,null,null,null,null,null,"",""]
[null,null,null,null,null,null,null,null,"",""]
[null,null,null,null,null,null,null,null,"",""]
[null,null,null,null,null,null,null,null,"",""]
[null,null,null,null,null,null,null,null,"",""]
[null,null,null,null,null,null,null,null,"",""]
[null,null,null,null,null,null,null,null,"",""]
[null,null,null,null,null,null,null,null,"",""]
[null,null,null,null,null,null,null,null,"",""]
[null,null,null,null,null,null,null,null,"",""]
[null,null,null,null,null,null,null,null,"",""]
[null,null,null,null,null,null,null,null,"",""]
[null,null,null,null,null,null,null,null,"",""]
[null,null,null,null,null,null,null,null,"",""]
[null,null,null,null,null,null,null,null,"",""]
[null,null,null,null,null,null,null,null,"",""]
[null,null,null,null,null,null,null,null,"",""]
[null,null,null,null,null,null,null,null,"",""]
[null,null,null,null,null,null,null,null,"",""]
[null,null,null,null,null,null,null,null,"",""]
[null,null,null,null,null,null,null,null,"",""]
[null,null,null,null,null,null,null,null,{"$f":"IF(E19725=$L$27,1,IF(E19725=$L$28,3,IF(E19725=$L$29,4,IF(E19725=$L$30,5,IF(E19725=$L$31,10,IF(E19725=$L$32,9,IF(E19725=$L$33,2,IF(E19725=$L$34,6,\"\"))))))))","v":""},{"$f":"IF(H19725=$L$48,1,IF(H19725=$L$49,2,IF(H19725=$L$50,3,IF(H19725=$L$51,4,IF(H19725=$L$52,5,IF(H19725=$L$53,6,\"\"))))))","v":""}]
[null,null,null,null,null,null,null,null,"",""]
[null,null,null,null,null,null,null,null,"",""]
[null,null,null,null,null,null,null,null,"",""]
[null,null,null,null,null,null,null,null,"",""]
[null,null,null,null,null,null,null,null,"",""]
[null,null,null,null,null,null,null,null,"",""]
[null,null,null,null,null,null,null,null,"",""]
[null,null,null,null,null,null,null,null,"",""]
[null,null,null,null,null,null,null,null,"",""]
[null,null,null,null,null,null,null,null,"",""]
[null,null,null,null,null,null,null,null,"",""]
[null,null,null,null,null,null,null,null,"",""]
[null,null,null,null,null,null,null,null,"",""]
[null,null,null,null,null,null,null,null,"",""]
[null,null,null,null,null,null,null,null,"",""]
[null,null,null,null,null,null,null,null,{"$f":"IF(E20941=$L$27,1,IF(E20941=$L$28,3,IF(E20941=$L$29,4,IF(E20941=$L$30,5,IF(E20941=$L$31,10,IF(E20941=$L$32,9,IF(E20941=$L$33,2,IF(E20941=$L$34,6,\"\"))))))))","v":""},{"$f":"IF(H20941=$L$48,1,IF(H20941=$L$49,2,IF(H20941=$L$50,3,IF(H20941=$L$51,4,IF(H20941=$L$52,5,IF(H20941=$L$53,6,\"\"))))))","v":""}]
[null,null,null,null,null,null,null,null,"",""]
[null,null,null,null,null,null,null,null,"",""]
[null,null,null,null,null,null,null,null,"",""]
[null,null,null,null,null,null,null,null,"",""]
[null,null,null,null,null,null,null,null,"",""]
[null,null,null,null,null,null,null,null,"",""]
[null,null,null,null,null,null,null,null,"",""]
[null,null,null,null,null,null,null,null,"",""]
[null,null,null,null,null,null,null,null,"",""]
[null,null,null,null,null,null,null,null,"",""]
[null,null,null,null,null,null,null,null,"",""]
[null,null,null,null,null,null,null,null,"",""]
[null,null,null,null,null,null,null,null,"",""]
[null,null,null,null,null,null,null,null,"",""]
[null,null,null,null,null,null,null,null,"",""]
[null,null,null,null,null,null,null,null,"",""]
[null,null,null,null,null,null,null,null,"",""]
[null,null,null,null,null,null,null,null,"",""]
[null,null,null,null,null,null,null,null,"",""]
[null,null,null,null,null,null,null,null,"",""]
[null,null,null,null,null,null,null,null,"",""]
[null,null,null,null,null,null,null,null,"",""]
[null,null,null,null,null,null,null,null,"",""]
[null,null,null,null,null,null,null,null,"",""]
[null,null,null,null,null,null,null,null,"",""]
[null,null,null,null,null,null,null,null,"",""]
[null,null,null,null,null,null,null,null,"",""]
[null,null,null,null,null,null,null,null,"",""]
[null,null,null,null,null,null,null,null,"",""]
[null,null,null,null,null,null,null,null,"",""]
[null,null,null,null,null,null,null,null,"",""]
[null,null,null,null,null,null,null,null,"",""]
[null,null,null,null,null,null,null,null,"",""]
[null,null,null,null,null,null,null,null,"",""]
[null,null,null,null,null,null,null,null,"",""]
[null,null,null,null,null,null,null,null,"",""]
[null,null,null,null,null,null,null,null,"",""]
[null,null,null,null,null,null,null,null,"",""]
[null,null,null,null,null,null,null,null,"",""]
[null,null,null,null,null,null,null,null,"",""]
[null,null,null,null,null,null,null,null,"",""]
[null,null,null,null,null,null,null,null,"",""]
[null,null,null,null,null,null,null,null,"",""]
[null,null,null,null,null,null,null,null,"",""]
[null,null,null,null,null,null,null,null,"",""]
[null,null,null,null,null,null,null,null,"",""]
[null,null,null,null,null,null,null,null,"",""]
[null,null,null,null,null,null,null,null,"",""]
[null,null,null,null,null,null,null,null,"",""]
[null,null,null,null,null,null,null,null,"",""]
[null,null,null,null,null,null,null,null,"",""]
[null,null,null,null,null,null,null,null,"",""]
[null,null,null,null,null,null,null,null,"",""]
[null,null,null,null,null,null,null,null,"",""]
[null,null,null,null,null,null,null,null,"",""]
[null,null,null,null,null,null,null,null,"",""]
[null,null,null,null,null,null,null,null,"",""]
[null,null,null,null,null,null,null,null,"",""]
[null,null,null,null,null,null,null,null,"",""]
[null,null,null,null,null,null,null,null,"",""]
[null,null,null,null,null,null,null,null,"",""]
[null,null,null,null,null,null,null,null,"",""]
[null,null,null,null,null,null,null,null,"",""]
[null,null,null,null,null,null,null,null,"",""]
[null,null,null,null,null,null,null,null,"",""]
[null,null,null,null,null,null,null,null,"",""]
[null,null,null,null,null,null,null,null,"",""]
[null,null,null,null,null,null,null,null,"",""]
[null,null,null,null,null,null,null,null,"",""]
[null,null,null,null,null,null,null,null,"",""]
[null,null,null,null,null,null,null,null,"",""]
[null,null,null,null,null,null,null,null,"",""]
[null,null,null,null,null,null,null,null,"",""]
[null,null,null,null,null,null,null,null,"",""]
[null,null,null,null,null,null,null,null,"",""]
[null,null,null,null,null,null,null,null,"",""]
[null,null,null,null,null,null,null,null,"",""]
[null,null,null,null,null,null,null,null,"",""]
[null,null,null,null,null,null,null,null,"",""]
[null,null,null,null,null,null,null,null,"",""]
[null,null,null,null,null,null,null,null,"",""]
[null,null,null,null,null,null,null,null,"",""]
[null,null,null,null,null,null,null,null,"",""]
[null,null,null,null,null,null,null,null,"",""]
[null,null,null,null,null,null,null,null,"",""]
[null,null,null,null,null,null,null,null,"",""]
[null,null,null,null,null,null,null,null,"",""]
[null,null,null,null,null,null,null,null,"",""]
[null,null,null,null,null,null,null,null,"",""]
[null,null,null,null,null,null,null,null,"",""]
[null,null,null,null,null,null,null,null,"",""]
[null,null,null,null,null,null,null,null,"",""]
[null,null,null,null,null,null,null,null,"",""]
[null,null,null,null,null,null,null,null,"",""]
[null,null,null,null,null,null,null,null,"",""]
[null,null,null,null,null,null,null,null,"",""]
[null,null,null,null,null,null,null,null,"",""]
[null,null,null,null,null,null,null,null,"",""]
[null,null,null,null,null,null,null,null,"",""]
[null,null,null,null,null,null,null,null,"",""]
[null,null,null,null,null,null,null,null,"",""]
[null,null,null,null,null,null,null,null,"",""]
[null,null,null,null,null,null,null,null,"",""]
[null,null,null,null,null,null,null,null,"",""]
[null,null,null,null,null,null,null,null,"",""]
[null,null,null,null,null,null,null,null,"",""]
[null,null,null,null,null,null,null,null,"",""]
[null,null,null,null,null,null,null,null,"",""]
[null,null,null,null,null,null,null,null,"",""]
[null,null,null,null,null,null,null,null,"",""]
[null,null,null,null,null,null,null,null,{"$f":"IF(E29133=$L$27,1,IF(E29133=$L$28,3,IF(E29133=$L$29,4,IF(E29133=$L$30,5,IF(E29133=$L$31,10,IF(E29133=$L$32,9,IF(E29133=$L$33,2,IF(E29133=$L$34,6,\"\"))))))))","v":""},{"$f":"IF(H29133=$L$48,1,IF(H29133=$L$49,2,IF(H29133=$L$50,3,IF(H29133=$L$51,4,IF(H29133=$L$52,5,IF(H29133=$L$53,6,\"\"))))))","v":""}]
[null,null,null,null,null,null,null,null,{"$f":"IF(E29197=$L$27,1,IF(E29197=$L$28,3,IF(E29197=$L$29,4,IF(E29197=$L$30,5,IF(E29197=$L$31,10,IF(E29197=$L$32,9,IF(E29197=$L$33,2,IF(E29197=$L$34,6,\"\"))))))))","v":""},{"$f":"IF(H29197=$L$48,1,IF(H29197=$L$49,2,IF(H29197=$L$50,3,IF(H29197=$L$51,4,IF(H29197=$L$52,5,IF(H29197=$L$53,6,\"\"))))))","v":""}]
[null,null,null,null,null,null,null,null,"",""]
[null,null,null,null,null,null,null,null,"",""]
[null,null,null,null,null,null,null,null,"",""]
[null,null,null,null,null,null,null,null,"",""]
[null,null,null,null,null,null,null,null,"",""]
[null,null,null,null,null,null,null,null,"",""]
[null,null,null,null,null,null,null,null,"",""]
[null,null,null,null,null,null,null,null,"",""]
[null,null,null,null,null,null,null,null,"",""]
[null,null,null,null,null,null,null,null,"",""]
[null,null,null,null,null,null,null,null,"",""]
[null,null,null,null,null,null,null,null,"",""]
[null,null,null,null,null,null,null,null,"",""]
[null,null,null,null,null,null,null,null,"",""]
[null,null,null,null,null,null,null,null,"",""]
[null,null,null,null,null,null,null,null,"",""]
[null,null,null,null,null,null,null,null,"",""]
[null,null,null,null,null,null,null,null,"",""]
[null,null,null,null,null,null,null,null,"",""]
[null,null,null,null,null,null,null,null,"",""]
[null,null,null,null,null,null,null,null,"",""]
[null,null,null,null,null,null,null,null,"",""]
[null,null,null,null,null,null,null,null,"",""]
[null,null,null,null,null,null,null,null,"",""]
[null,null,null,null,null,null,null,null,"",""]
[null,null,null,null,null,null,null,null,"",""]
[null,null,null,null,null,null,null,null,"",""]
[null,null,null,null,null,null,null,null,"",""]
[null,null,null,null,null,null,null,null,{"$f":"IF(E31309=$L$27,1,IF(E31309=$L$28,3,IF(E31309=$L$29,4,IF(E31309=$L$30,5,IF(E31309=$L$31,10,IF(E31309=$L$32,9,IF(E31309=$L$33,2,IF(E31309=$L$34,6,\"\"))))))))","v":""},{"$f":"IF(H31309=$L$48,1,IF(H31309=$L$49,2,IF(H31309=$L$50,3,IF(H31309=$L$51,4,IF(H31309=$L$52,5,IF(H31309=$L$53,6,\"\"))))))","v":""}]
[null,null,null,null,null,null,null,null,"",""]
[null,null,null,null,null,null,null,null,"",""]
[null,null,null,null,null,null,null,null,"",""]
[null,null,null,null,null,null,null,null,"",""]
[null,null,null,null,null,null,null,null,"",""]
[null,null,null,null,null,null,null,null,"",""]
[null,null,null,null,null,null,null,null,"",""]
[null,null,null,null,null,null,null,null,"",""]
[null,null,null,null,null,null,null,null,"",""]
[null,null,null,null,null,null,null,null,"",""]
[null,null,null,null,null,null,null,null,"",""]
[null,null,null,null,null,null,null,null,"",""]
[null,null,null,null,null,null,null,null,"",""]
[null,null,null,null,null,null,null,null,"",""]
[null,null,null,null,null,null,null,null,"",""]
[null,null,null,null,null,null,null,null,"",""]
[null,null,null,null,null,null,null,null,"",""]
[null,null,null,null,null,null,null,null,"",""]
[null,null,null,null,null,null,null,null,"",""]
[null,null,null,null,null,null,null,null,"",""]
[null,null,null,null,null,null,null,null,"",""]
[null,null,null,null,null,null,null,null,"",""]
[null,null,null,null,null,null,null,null,"",""]
[null,null,null,null,null,null,null,null,"",""]
[null,null,null,null,null,null,null,null,"",""]
[null,null,null,null,null,null,null,null,"",""]
[null,null,null,null,null,null,null,null,"",""]
[null,null,null,null,null,null,null,null,"",""]
[null,null,null,null,null,null,null,null,"",""]
[null,null,null,null,null,null,null,null,"",""]
[null,null,null,null,null,null,null,null,"",""]
[null,null,null,null,null,null,null,null,"",""]
[null,null,null,null,null,null,null,null,"",""]
[null,null,null,null,null,null,null,null,"",""]
[null,null,null,null,null,null,null,null,"",""]
[null,null,null,null,null,null,null,null,"",""]
[null,null,null,null,null,null,null,null,"",""]
[null,null,null,null,null,null,null,null,"",""]
[null,null,null,null,null,null,null,null,"",""]
[null,null,null,null,null,null,null,null,"",""]
[null,null,null,null,null,null,null,null,"",""]
[null,null,null,null,null,null,null,null,"",""]
[null,null,null,null,null,null,null,null,"",""]
[null,null,null,null,null,null,null,null,"",""]
[null,null,null,null,null,null,null,null,"",""]
[null,null,null,null,null,null,null,null,"",""]
[null,null,null,null,null,null,null,null,"",""]
[null,null,null,null,null,null,null,null,"",""]
[null,null,null,null,null,null,null,null,"",""]
[null,null,null,null,null,null,null,null,"",""]
[null,null,null,null,null,null,null,null,"",""]
[null,null,null,null,null,null,null,null,"",""]
[null,null,null,null,null,null,null,null,"",""]
[null,null,null,null,null,null,null,null,"",""]
[null,null,null,null,null,null,null,null,"",""]
[null,null,null,null,null,null,null,null,"",""]
[null,null,null,null,null,null,null,null,"",""]
[null,null,null,null,null,null,null,null,"",""]
[null,null,null,null,null,null,null,null,"",""]
[null,null,null,null,null,null,null,null,"",""]
[null,null,null,null,null,null,null,null,"",""]
[null,null,null,null,null,null,null,null,"",""]
[null,null,null,null,null,null,null,null,"",""]
[null,null,null,null,null,null,null,null,"",""]
[null,null,null,null,null,null,null,null,"",""]
[null,null,null,null,null,null,null,null,"",""]
[null,null,null,null,null,null,null,null,"",""]
[null,null,null,null,null,null,null,null,"",""]
[null,null,null,null,null,null,null,null,"",""]
[null,null,null,null,null,null,null,null,"",""]
[null,null,null,null,null,null,null,null,"",""]
[null,null,null,null,null,null,null,null,"",""]
[null,null,null,null,null,null,null,null,"",""]
[null,null,null,null,null,null,null,null,"",""]
[null,null,null,null,null,null,null,null,"",""]
[null,null,null,null,null,null,null,null,"",""]
[null,null,null,null,null,null,null,null,"",""]
[null,null,null,null,null,null,null,null,"",""]
[null,null,null,null,null,null,null,null,"",""]
[null,null,null,null,null,null,null,null,"",""]
[null,null,null,null,null,null,null,null,"",""]
[null,null,null,null,null,null,null,null,"",""]
[null,null,null,null,null,null,null,null,"",""]
[null,null,null,null,null,null,null,null,"",""]
[null,null,null,null,null,null,null,null,"",""]
[null,null,null,null,null,null,null,null,"",""]
[null,null,null,null,null,null,null,null,"",""]
[null,null,null,null,null,null,null,null,"",""]
[null,null,null,null,null,null,null,null,"",""]
[null,null,null,null,null,null,null,null,"",""]
[null,null,null,null,null,null,null,null,"",""]
[null,null,null,null,null,null,null,null,"",""]
[null,null,null,null,null,null,null,null,"",""]
[null,null,null,null,null,null,null,null,"",""]
[null,null,null,null,null,null,null,null,"",""]
[null,null,null,null,null,null,null,null,"",""]
[null,null,null,null,null,null,null,null,"",""]
[null,null,null,null,null,null,null,null,"",""]
[null,null,null,null,null,null,null,null,"",""]
[null,null,null,null,null,null,null,null,"",""]
[null,null,null,null,null,null,null,null,"",""]
[null,null,null,null,null,null,null,null,"",""]
[null,null,null,null,null,null,null,null,"",""]
[null,null,null,null,null,null,null,null,"",""]
[null,null,null,null,null,null,null,null,"",""]
[null,null,null,null,null,null,null,null,"",""]
[null,null,null,null,null,null,null,null,"",""]
[null,null,null,null,null,null,null,null,"",""]
[null,null,null,null,null,null,null,null,"",""]
[null,null,null,null,null,null,null,null,"",""]
[null,null,null,null,null,null,null,null,{"$f":"IF(E39501=$L$27,1,IF(E39501=$L$28,3,IF(E39501=$L$29,4,IF(E39501=$L$30,5,IF(E39501=$L$31,10,IF(E39501=$L$32,9,IF(E39501=$L$33,2,IF(E39501=$L$34,6,\"\"))))))))","v":""},{"$f":"IF(H39501=$L$48,1,IF(H39501=$L$49,2,IF(H39501=$L$50,3,IF(H39501=$L$51,4,IF(H39501=$L$52,5,IF(H39501=$L$53,6,\"\"))))))","v":""}]
[null,null,null,null,null,null,null,null,"",""]
[null,null,null,null,null,null,null,null,"",""]
[null,null,null,null,null,null,null,null,"",""]
[null,null,null,null,null,null,null,null,"",""]
[null,null,null,null,null,null,null,null,"",""]
[null,null,null,null,null,null,null,null,"",""]
[null,null,null,null,null,null,null,null,"",""]
[null,null,null,null,null,null,null,null,"",""]
[null,null,null,null,null,null,null,null,"",""]
[null,null,null,null,null,null,null,null,"",""]
[null,null,null,null,null,null,null,null,"",""]
[null,null,null,null,null,null,null,null,"",""]
[null,null,null,null,null,null,null,null,"",""]
[null,null,null,null,null,null,null,null,"",""]
[null,null,null,null,null,null,null,null,"",""]
[null,null,null,null,null,null,null,null,{"$f":"IF(E40717=$L$27,1,IF(E40717=$L$28,3,IF(E40717=$L$29,4,IF(E40717=$L$30,5,IF(E40717=$L$31,10,IF(E40717=$L$32,9,IF(E40717=$L$33,2,IF(E40717=$L$34,6,\"\"))))))))","v":""},{"$f":"IF(H40717=$L$48,1,IF(H40717=$L$49,2,IF(H40717=$L$50,3,IF(H40717=$L$51,4,IF(H40717=$L$52,5,IF(H40717=$L$53,6,\"\"))))))","v":""}]
[null,null,null,null,null,null,null,null,"",""]
[null,null,null,null,null,null,null,null,"",""]
[null,null,null,null,null,null,null,null,"",""]
[null,null,null,null,null,null,null,null,"",""]
[null,null,null,null,null,null,null,null,"",""]
[null,null,null,null,null,null,null,null,"",""]
[null,null,null,null,null,null,null,null,"",""]
[null,null,null,null,null,null,null,null,"",""]
[null,null,null,null,null,null,null,null,"",""]
[null,null,null,null,null,null,null,null,"",""]
[null,null,null,null,null,null,null,null,"",""]
[null,null,null,null,null,null,null,null,"",""]
[null,null,null,null,null,null,null,null,"",""]
[null,null,null,null,null,null,null,null,"",""]
[null,null,null,null,null,null,null,null,"",""]
[null,null,null,null,null,null,null,null,"",""]
[null,null,null,null,null,null,null,null,"",""]
[null,null,null,null,null,null,null,null,"",""]
[null,null,null,null,null,null,null,null,"",""]
[null,null,null,null,null,null,null,null,"",""]
[null,null,null,null,null,null,null,null,"",""]
[null,null,null,null,null,null,null,null,"",""]
[null,null,null,null,null,null,null,null,"",""]
[null,null,null,null,null,null,null,null,"",""]
[null,null,null,null,null,null,null,null,"",""]
[null,null,null,null,null,null,null,null,"",""]
[null,null,null,null,null,null,null,null,"",""]
[null,null,null,null,null,null,null,null,"",""]
[null,null,null,null,null,null,null,null,"",""]
[null,null,null,null,null,null,null,null,"",""]
[null,null,null,null,null,null,null,null,"",""]
[null,null,null,null,null,null,null,null,"",""]
[null,null,null,null,null,null,null,null,"",""]
[null,null,null,null,null,null,null,null,"",""]
[null,null,null,null,null,null,null,null,"",""]
[null,null,null,null,null,null,null,null,"",""]
[null,null,null,null,null,null,null,null,"",""]
[null,null,null,null,null,null,null,null,"",""]
[null,null,null,null,null,null,null,null,"",""]
[null,null,null,null,null,null,null,null,"",""]
[null,null,null,null,null,null,null,null,"",""]
[null,null,null,null,null,null,null,null,"",""]
[null,null,null,null,null,null,null,null,"",""]
[null,null,null,null,null,null,null,null,"",""]
[null,null,null,null,null,null,null,null,"",""]
[null,null,null,null,null,null,null,null,"",""]
[null,null,null,null,null,null,null,null,"",""]
[null,null,null,null,null,null,null,null,"",""]
[null,null,null,null,null,null,null,null,"",""]
[null,null,null,null,null,null,null,null,"",""]
[null,null,null,null,null,null,null,null,"",""]
[null,null,null,null,null,null,null,null,"",""]
[null,null,null,null,null,null,null,null,"",""]
[null,null,null,null,null,null,null,null,"",""]
[null,null,null,null,null,null,null,null,"",""]
[null,null,null,null,null,null,null,null,"",""]
[null,null,null,null,null,null,null,null,"",""]
[null,null,null,null,null,null,null,null,"",""]
[null,null,null,null,null,null,null,null,"",""]
[null,null,null,null,null,null,null,null,"",""]
[null,null,null,null,null,null,null,null,"",""]
[null,null,null,null,null,null,null,null,"",""]
[null,null,null,null,null,null,null,null,"",""]
[null,null,null,null,null,null,null,null,"",""]
[null,null,null,null,null,null,null,null,"",""]
[null,null,null,null,null,null,null,null,"",""]
[null,null,null,null,null,null,null,null,"",""]
[null,null,null,null,null,null,null,null,"",""]
[null,null,null,null,null,null,null,null,"",""]
[null,null,null,null,null,null,null,null,"",""]
[null,null,null,null,null,null,null,null,"",""]
[null,null,null,null,null,null,null,null,"",""]
[null,null,null,null,null,null,null,null,"",""]
[null,null,null,null,null,null,null,null,"",""]
[null,null,null,null,null,null,null,null,"",""]
[null,null,null,null,null,null,null,null,"",""]
[null,null,null,null,null,null,null,null,"",""]
[null,null,null,null,null,null,null,null,"",""]
[null,null,null,null,null,null,null,null,"",""]
[null,null,null,null,null,null,null,null,"",""]
[null,null,null,null,null,null,null,null,"",""]
[null,null,null,null,null,null,null,null,"",""]
[null,null,null,null,null,null,null,null,"",""]
[null,null,null,null,null,null,null,null,"",""]
[null,null,null,null,null,null,null,null,{"$f":"IF(E46925=$L$27,1,IF(E46925=$L$28,3,IF(E46925=$L$29,4,IF(E46925=$L$30,5,IF(E46925=$L$31,10,IF(E46925=$L$32,9,IF(E46925=$L$33,2,IF(E46925=$L$34,6,\"\"))))))))","v":""},""]
[null,null,null,null,null,null,null,null,"",""]
[null,null,null,null,null,null,null,null,"",""]
[null,null,null,null,null,null,null,null,"",""]
[null,null,null,null,null,null,null,null,"",""]
[null,null,null,null,null,null,null,null,"",""]
[null,null,null,null,null,null,null,null,"",""]
[null,null,null,null,null,null,null,null,"",""]
[null,null,null,null,null,null,null,null,"",""]
[null,null,null,null,null,null,null,null,"",""]
[null,null,null,null,null,null,null,null,"",""]
[null,null,null,null,null,null,null,null,"",""]
[null,null,null,null,null,null,null,null,"",""]
[null,null,null,null,null,null,null,null,"",""]
[null,null,null,null,null,null,null,null,"",""]
[null,null,null,null,null,null,null,null,"",""]
[null,null,null,null,null,null,null,null,"",""]
[null,null,null,null,null,null,null,null,"",""]
[null,null,null,null,null,null,null,null,"",""]
[null,null,null,null,null,null,null,null,"",""]
[null,null,null,null,null,null,null,null,"",""]
[null,null,null,null,null,null,null,null,"",""]
[null,null,null,null,null,null,null,null,"",""]
[null,null,null,null,null,null,null,null,"",""]
[null,null,null,null,null,null,null,null,"",""]
[null,null,null,null,null,null,null,null,"",""]
[null,null,null,null,null,null,null,null,"",""]
[null,null,null,null,null,null,null,null,"",""]
[null,null,null,null,null,null,null,null,"",""]
[null,null,null,null,null,null,null,null,"",""]
[null,null,null,null,null,null,null,null,"",""]
[null,null,null,null,null,null,null,null,"",""]
[null,null,null,null,null,null,null,null,"",""]
[null,null,null,null,null,null,null,null,"",""]
[null,null,null,null,null,null,null,null,"",""]
[null,null,null,null,null,null,null,null,"",""]
[null,null,null,null,null,null,null,null,"",""]
[null,null,null,null,null,null,null,null,"",""]
[null,null,null,null,null,null,null,null,"",""]
[null,null,null,null,null,null,null,null,"",""]
[null,null,null,null,null,null,null,null,"",""]
[null,null,null,null,null,null,null,null,"",""]
[null,null,null,null,null,null,null,null,"",""]
[null,null,null,null,null,null,null,null,"",""]
[null,null,null,null,null,null,null,null,{"$f":"IF(E50189=$L$27,1,IF(E50189=$L$28,3,IF(E50189=$L$29,4,IF(E50189=$L$30,5,IF(E50189=$L$31,10,IF(E50189=$L$32,9,IF(E50189=$L$33,2,IF(E50189=$L$34,6,\"\"))))))))","v":""},""]
[null,null,null,null,null,null,null,null,"",""]
[null,null,null,null,null,null,null,null,"",""]
[null,null,null,null,null,null,null,null,"",""]
[null,null,null,null,null,null,null,null,"",""]
[null,null,null,null,null,null,null,null,"",""]
[null,null,null,null,null,null,null,null,"",""]
[null,null,null,null,null,null,null,null,"",""]
[null,null,null,null,null,null,null,null,"",""]
[null,null,null,null,null,null,null,null,"",""]
[null,null,null,null,null,null,null,null,"",""]
[null,null,null,null,null,null,null,null,"",""]
[null,null,null,null,null,null,null,null,"",""]
[null,null,null,null,null,null,null,null,"",""]
[null,null,null,null,null,null,null,null,"",""]
[null,null,null,null,null,null,null,null,"",""]
[null,null,null,null,null,null,null,null,{"$f":"IF(E51405=$L$27,1,IF(E51405=$L$28,3,IF(E51405=$L$29,4,IF(E51405=$L$30,5,IF(E51405=$L$31,10,IF(E51405=$L$32,9,IF(E51405=$L$33,2,IF(E51405=$L$34,6,\"\"))))))))","v":""},""]
[null,null,null,null,null,null,null,null,"",""]
[null,null,null,null,null,null,null,null,"",""]
[null,null,null,null,null,null,null,null,"",""]
[null,null,null,null,null,null,null,null,"",""]
[null,null,null,null,null,null,null,null,"",""]
[null,null,null,null,null,null,null,null,"",""]
[null,null,null,null,null,null,null,null,"",""]
[null,null,null,null,null,null,null,null,"",""]
[null,null,null,null,null,null,null,null,"",""]
[null,null,null,null,null,null,null,null,"",""]
[null,null,null,null,null,null,null,null,"",""]
[null,null,null,null,null,null,null,null,"",""]
[null,null,null,null,null,null,null,null,"",""]
[null,null,null,null,null,null,null,null,"",""]
[null,null,null,null,null,null,null,null,"",""]
[null,null,null,null,null,null,null,null,"",""]
[null,null,null,null,null,null,null,null,"",""]
[null,null,null,null,null,null,null,null,"",""]
[null,null,null,null,null,null,null,null,"",""]
[null,null,null,null,null,null,null,null,"",""]
[null,null,null,null,null,null,null,null,"",""]
[null,null,null,null,null,null,null,null,"",""]
[null,null,null,null,null,null,null,null,"",""]
[null,null,null,null,null,null,null,null,"",""]
[null,null,null,null,null,null,null,null,"",""]
[null,null,null,null,null,null,null,null,"",""]
[null,null,null,null,null,null,null,null,"",""]
[null,null,null,null,null,null,null,null,"",""]
[null,null,null,null,null,null,null,null,"",""]
[null,null,null,null,null,null,null,null,"",""]
[null,null,null,null,null,null,null,null,"",""]
[null,null,null,null,null,null,null,null,"",""]
[null,null,null,null,null,null,null,null,"",""]
[null,null,null,null,null,null,null,null,"",""]
[null,null,null,null,null,null,null,null,"",""]
[null,null,null,null,null,null,null,null,"",""]
[null,null,null,null,null,null,null,null,"",""]
[null,null,null,null,null,null,null,null,"",""]
[null,null,null,null,null,null,null,null,"",""]
[null,null,null,null,null,null,null,null,"",""]
[null,null,null,null,null,null,null,null,"",""]
[null,null,null,null,null,null,null,null,"",""]
[null,null,null,null,null,null,null,null,"",""]
[null,null,null,null,null,null,null,null,"",""]
[null,null,null,null,null,null,null,null,"",""]
[null,null,null,null,null,null,null,null,"",""]
[null,null,null,null,null,null,null,null,"",""]
[null,null,null,null,null,null,null,null,"",""]
[null,null,null,null,null,null,null,null,"",""]
[null,null,null,null,null,null,null,null,"",""]
[null,null,null,null,null,null,null,null,"",""]
[null,null,null,null,null,null,null,null,"",""]
[null,null,null,null,null,null,null,null,"",""]
[null,null,null,null,null,null,null,null,"",""]
[null,null,null,null,null,null,null,null,"",""]
[null,null,null,null,null,null,null,null,"",""]
[null,null,null,null,null,null,null,null,"",""]
[null,null,null,null,null,null,null,null,"",""]
[null,null,null,null,null,null,null,null,"",""]
[null,null,null,null,null,null,null,null,"",""]
[null,null,null,null,null,null,null,null,"",""]
[null,null,null,null,null,null,null,null,"",""]
[null,null,null,null,null,null,null,null,"",""]
[null,null,null,null,null,null,null,null,"",""]
[null,null,null,null,null,null,null,null,"",""]
[null,null,null,null,null,null,null,null,"",""]
[null,null,null,null,null,null,null,null,"",""]
[null,null,null,null,null,null,null,null,"",""]
[null,null,null,null,null,null,null,null,"",""]
[null,null,null,null,null,null,null,null,"",""]
[null,null,null,null,null,null,null,null,"",""]
[null,null,null,null,null,null,null,null,"",""]
[null,null,null,null,null,null,null,null,"",""]
[null,null,null,null,null,null,null,null,"",""]
[null,null,null,null,null,null,null,null,"",""]
[null,null,null,null,null,null,null,null,"",""]
[null,null,null,null,null,null,null,null,"",""]
[null,null,null,null,null,null,null,null,"",""]
[null,null,null,null,null,null,null,null,"",""]
[null,null,null,null,null,null,null,null,"",""]
[null,null,null,null,null,null,null,null,"",""]
[null,null,null,null,null,null,null,null,"",""]
[null,null,null,null,null,null,null,null,"",""]
[null,null,null,null,null,null,null,null,"",""]
[null,null,null,null,null,null,null,null,"",""]
[null,null,null,null,null,null,null,null,"",""]
[null,null,null,null,null,null,null,null,"",""]
[null,null,null,null,null,null,null,null,"",""]
[null,null,null,null,null,null,null,null,"",""]
[null,null,null,null,null,null,null,null,"",""]
[null,null,null,null,null,null,null,null,"",""]
[null,null,null,null,null,null,null,null,"",""]
[null,null,null,null,null,null,null,null,"",""]
[null,null,null,null,null,null,null,null,"",""]
[null,null,null,null,null,null,null,null,{"$f":"IF(E58381=$L$27,1,IF(E58381=$L$28,3,IF(E58381=$L$29,4,IF(E58381=$L$30,5,IF(E58381=$L$31,10,IF(E58381=$L$32,9,IF(E58381=$L$33,2,IF(E58381=$L$34,6,\"\"))))))))","v":""},""]
[null,null,null,null,null,null,null,null,"",""]
[null,null,null,null,null,null,null,null,"",""]
[null,null,null,null,null,null,null,null,"",""]
[null,null,null,null,null,null,null,null,"",""]
[null,null,null,null,null,null,null,null,"",""]
[null,null,null,null,null,null,null,null,"",""]
[null,null,null,null,null,null,null,null,"",""]
[null,null,null,null,null,null,null,null,"",""]
[null,null,null,null,null,null,null,null,"",""]
[null,null,null,null,null,null,null,null,"",""]
[null,null,null,null,null,null,null,null,"",""]
[null,null,null,null,null,null,null,null,"",""]
[null,null,null,null,null,null,null,null,"",""]
[null,null,null,null,null,null,null,null,"",""]
[null,null,null,null,null,null,null,null,"",""]
[null,null,null,null,null,null,null,null,"",""]
[null,null,null,null,null,null,null,null,"",""]
[null,null,null,null,null,null,null,null,"",""]
[null,null,null,null,null,null,null,null,"",""]
[null,null,null,null,null,null,null,null,"",""]
[null,null,null,null,null,null,null,null,"",""]
[null,null,null,null,null,null,null,null,"",""]
[null,null,null,null,null,null,null,null,"",""]
[null,null,null,null,null,null,null,null,"",""]
[null,null,null,null,null,null,null,null,"",{"$f":"IF(H60242=$L$48,1,IF(H60242=$L$49,2,IF(H60242=$L$50,3,IF(H60242=$L$51,4,IF(H60242=$L$52,5,IF(H60242=$L$53,6,\"\"))))))","v":""}]
[null,null,null,null,null,null,null,null,"",""]
[null,null,null,null,null,null,null,null,"",""]
[null,null,null,null,null,null,null,null,"",""]
[null,null,null,null,null,null,null,null,"",""]
[null,null,null,null,null,null,null,null,"",""]
[null,null,null,null,null,null,null,null,"",""]
[null,null,null,null,null,null,null,null,"",""]
[null,null,null,null,null,null,null,null,"",""]
[null,null,null,null,null,null,null,null,"",""]
[null,null,null,null,null,null,null,null,"",""]
[null,null,null,null,null,null,null,null,"",""]
[null,null,null,null,null,null,null,null,"",""]
[null,null,null,null,null,null,null,null,"",""]
[null,null,null,null,null,null,null,null,"",""]
[null,null,null,null,null,null,null,null,"",""]
[null,null,null,null,null,null,null,null,"",""]
[null,null,null,null,null,null,null,null,"",""]
[null,null,null,null,null,null,null,null,"",""]
[null,null,null,null,null,null,null,null,"",""]
[null,null,null,null,null,null,null,null,"",""]
[null,null,null,null,null,null,null,null,{"$f":"IF(E61773=$L$27,1,IF(E61773=$L$28,3,IF(E61773=$L$29,4,IF(E61773=$L$30,5,IF(E61773=$L$31,10,IF(E61773=$L$32,9,IF(E61773=$L$33,2,IF(E61773=$L$34,6,\"\"))))))))","v":""},""]
[null,null,null,null,null,null,null,null,"",{"$f":"IF(H61842=$L$48,1,IF(H61842=$L$49,2,IF(H61842=$L$50,3,IF(H61842=$L$51,4,IF(H61842=$L$52,5,IF(H61842=$L$53,6,\"\"))))))","v":""}]
[null,null,null,null,null,null,null,null,"",""]
[null,null,null,null,null,null,null,null,"",""]
[null,null,null,null,null,null,null,null,"",""]
[null,null,null,null,null,null,null,null,"",""]
[null,null,null,null,null,null,null,null,"",""]
[null,null,null,null,null,null,null,null,"",""]
[null,null,null,null,null,null,null,null,"",""]
[null,null,null,null,null,null,null,null,"",""]
[null,null,null,null,null,null,null,null,"",""]
[null,null,null,null,null,null,null,null,"",""]
[null,null,null,null,null,null,null,null,"",""]
[null,null,null,null,null,null,null,null,"",""]
[null,null,null,null,null,null,null,null,"",""]
[null,null,null,null,null,null,null,null,"",""]
[null,null,null,null,null,null,null,null,"",""]
[null,null,null,null,null,null,null,null,"",{"$f":"IF(H63058=$L$48,1,IF(H63058=$L$49,2,IF(H63058=$L$50,3,IF(H63058=$L$51,4,IF(H63058=$L$52,5,IF(H63058=$L$53,6,\"\"))))))","v":""}]
[null,null,null,null,null,null,null,null,"",""]
[null,null,null,null,null,null,null,null,"",""]
[null,null,null,null,null,null,null,null,"",""]
[null,null,null,null,null,null,null,null,"",""]
[null,null,null,null,null,null,null,null,"",""]
[null,null,null,null,null,null,null,null,"",""]
[null,null,null,null,null,null,null,null,"",""]
[null,null,null,null,null,null,null,null,"",""]
[null,null,null,null,null,null,null,null,"",""]
[null,null,null,null,null,null,null,null,"",""]
[null,null,null,null,null,null,null,null,"",""]
[null,null,null,null,null,null,null,null,"",""]
[null,null,null,null,null,null,null,null,"",""]
[null,null,null,null,null,null,null,null,"",""]
[null,null,null,null,null,null,null,null,"",""]
[null,null,null,null,null,null,null,null,"",""]
[null,null,null,null,null,null,null,null,"",""]
[null,null,null,null,null,null,null,null,"",""]
[null,null,null,null,null,null,null,null,"",""]
[null,null,null,null,null,null,null,null,"",""]
[null,null,null,null,null,null,null,null,"",""]
[null,null,null,null,null,null,null,null,"",""]
[null,null,null,null,null,null,null,null,"",""]
[null,null,null,null,null,null,null,null,"",""]
[null,null,null,null,null,null,null,null,"",""]
[null,null,null,null,null,null,null,null,"",""]
[null,null,null,null,null,null,null,null,"",""]
[null,null,null,null,null,null,null,null,"",""]
[null,null,null,null,null,null,null,null,"",""]
[null,null,null,null,null,null,null,null,"",""]
[null,null,null,null,null,null,null,null,"",""]
[null,null,null,null,null,null,null,null,"",""]
[null,null,null,null,null,null,null,null,"",""]
[null,null,null,null,null,null,null,null,"",""]
[null,null,null,null,null,null,null,null,"",""]
[null,null,null,null,null,null,null,null,"",""]
[null,null,null,null,null,null,null,null,"",""]
[null,null,null,null,null,null,null,null,"",""]
[null,null,null,null,null,null,null,null,"",""]
[null,null,null,null,null,null,null,null,"",""]
[null,null,null,null,null,null,null,null,"",""]
[null,null,null,null,null,null,null,null,"",""]
[null,null,null,null,null,null,null,null,"",""]
[null,null,null,null,null,null,null,null,"",""]
[null,null,null,null,null,null,null,null,"",""]
[null,null,null,null,null,null,null,null,"",""]
[null,null,null,null,null,null,null,null,"",""]
[null,null,null,null,null,null,null,null,"",""]
[null,null,null,null,null,null,null,null,"",""]
[null,null,null,null,null,null,null,null,"",""]
[null,null,null,null,null,null,null,null,"",""]
[null,null,null,null,null,null,null,null,"",""]
[null,null,null,null,null,null,null,null,"",""]
[null,null,null,null,null,null,null,null,"",""]
[null,null,null,null,null,null,null,null,"",""]
[null,null,null,null,null,null,null,null,"",""]
[null,null,null,null,null,null,null,null,"",""]
[null,null,null,null,null,null,null,null,"",""]
[null,null,null,null,null,null,null,null,"",""]
[null,null,null,null,null,null,null,null,"",""]
[null,null,null,null,null,null,null,null,"",""]
[null,null,null,null,null,null,null,null,"",""]
[null,null,null,null,null,null,null,null,"",""]
[null,null,null,null,null,null,null,null,"",""]
[null,null,null,null,null,null,null,null,"",""]
[null,null,null,null,null,null,null,null,"",""]
[null,null,null,null,null,null,null,null,"",""]
[null,null,null,null,null,null,null,null,"",""]
[null,null,null,null,null,null,null,null,"",""]
[null,null,null,null,null,null,null,null,"",""]
[null,null,null,null,null,null,null,null,"",""]
[null,null,null,null,null,null,null,null,"",""]
[null,null,null,null,null,null,null,null,"",""]
[null,null,null,null,null,null,null,null,"",""]
[null,null,null,null,null,null,null,null,"",""]
[null,null,null,null,null,null,null,null,"",""]
[null,null,null,null,null,null,null,null,"",""]
[null,null,null,null,null,null,null,null,"",""]
[null,null,null,null,null,null,null,null,"",""]
[null,null,null,null,null,null,null,null,"",""]
[null,null,null,null,null,null,null,null,"",""]
[null,null,null,null,null,null,null,null,"",""]
[null,null,null,null,null,null,null,null,"",""]
[null,null,null,null,null,null,null,null,"",""]
[null,null,null,null,null,null,null,null,"",""]
[null,null,null,null,null,null,null,null,"",""]
[null,null,null,null,null,null,null,null,"",""]
[null,null,null,null,null,null,null,null,"",""]
[null,null,null,null,null,null,null,null,"",""]
[null,null,null,null,null,null,null,null,"",""]
[null,null,null,null,null,null,null,null,"",""]
[null,null,null,null,null,null,null,null,"",""]
[null,null,null,null,null,null,null,null,"",""]
[null,null,null,null,null,null,null,null,"",""]
[null,null,null,null,null,null,null,null,"",{"$f":"IF(H70034=$L$48,1,IF(H70034=$L$49,2,IF(H70034=$L$50,3,IF(H70034=$L$51,4,IF(H70034=$L$52,5,IF(H70034=$L$53,6,\"\"))))))","v":""}]
[null,null,null,null,null,null,null,null,"",""]
[null,null,null,null,null,null,null,null,"",""]
[null,null,null,null,null,null,null,null,"",""]
[null,null,null,null,null,null,null,null,"",""]
[null,null,null,null,null,null,null,null,"",""]
[null,null,null,null,null,null,null,null,"",""]
[null,null,null,null,null,null,null,null,"",""]
[null,null,null,null,null,null,null,null,"",""]
[null,null,null,null,null,null,null,null,"",""]
[null,null,null,null,null,null,null,null,"",""]
[null,null,null,null,null,null,null,null,"",""]
[null,null,null,null,null,null,null,null,"",""]
[null,null,null,null,null,null,null,null,"",""]
[null,null,null,null,null,null,null,null,"",""]
[null,null,null,null,null,null,null,null,"",""]
[null,null,null,null,null,null,null,null,"",{"$f":"IF(H71250=$L$48,1,IF(H71250=$L$49,2,IF(H71250=$L$50,3,IF(H71250=$L$51,4,IF(H71250=$L$52,5,IF(H71250=$L$53,6,\"\"))))))","v":""}]
[null,null,null,null,null,null,null,null,"",""]
[null,null,null,null,null,null,null,null,"",""]
[null,null,null,null,null,null,null,null,"",""]
[null,null,null,null,null,null,null,null,"",""]
[null,null,null,null,null,null,null,null,"",""]
[null,null,null,null,null,null,null,null,"",{"$f":"IF(H71698=$L$48,1,IF(H71698=$L$49,2,IF(H71698=$L$50,3,IF(H71698=$L$51,4,IF(H71698=$L$52,5,IF(H71698=$L$53,6,\"\"))))))","v":""}]
[null,null,null,null,null,null,null,null,"",""]
[null,null,null,null,null,null,null,null,"",""]
[null,null,null,null,null,null,null,null,"",""]
[null,null,null,null,null,null,null,null,"",""]
[null,null,null,null,null,null,null,null,"",""]
[null,null,null,null,null,null,null,null,"",""]
[null,null,null,null,null,null,null,null,"",""]
[null,null,null,null,null,null,null,null,"",""]
[null,null,null,null,null,null,null,null,"",""]
[null,null,null,null,null,null,null,null,"",""]
[null,null,null,null,null,null,null,null,{"$f":"IF(E72461=$L$27,1,IF(E72461=$L$28,3,IF(E72461=$L$29,4,IF(E72461=$L$30,5,IF(E72461=$L$31,10,IF(E72461=$L$32,9,IF(E72461=$L$33,2,IF(E72461=$L$34,6,\"\"))))))))","v":""},""]
[null,null,null,null,null,null,null,null,"",""]
[null,null,null,null,null,null,null,null,"",""]
[null,null,null,null,null,null,null,null,"",""]
[null,null,null,null,null,null,null,null,"",""]
[null,null,null,null,null,null,null,null,"",""]
[null,null,null,null,null,null,null,null,"",""]
[null,null,null,null,null,null,null,null,"",""]
[null,null,null,null,null,null,null,null,"",""]
[null,null,null,null,null,null,null,null,"",""]
[null,null,null,null,null,null,null,null,"",""]
[null,null,null,null,null,null,null,null,"",""]
[null,null,null,null,null,null,null,null,"",""]
[null,null,null,null,null,null,null,null,"",""]
[null,null,null,null,null,null,null,null,"",""]
[null,null,null,null,null,null,null,null,"",""]
[null,null,null,null,null,null,null,null,{"$f":"IF(E73677=$L$27,1,IF(E73677=$L$28,3,IF(E73677=$L$29,4,IF(E73677=$L$30,5,IF(E73677=$L$31,10,IF(E73677=$L$32,9,IF(E73677=$L$33,2,IF(E73677=$L$34,6,\"\"))))))))","v":""},""]
[null,null,null,null,null,null,null,null,"",""]
[null,null,null,null,null,null,null,null,"",""]
[null,null,null,null,null,null,null,null,"",""]
[null,null,null,null,null,null,null,null,"",""]
[null,null,null,null,null,null,null,null,"",""]
[null,null,null,null,null,null,null,null,"",""]
[null,null,null,null,null,null,null,null,"",""]
[null,null,null,null,null,null,null,null,"",""]
[null,null,null,null,null,null,null,null,"",""]
[null,null,null,null,null,null,null,null,"",""]
[null,null,null,null,null,null,null,null,"",""]
[null,null,null,null,null,null,null,null,"",""]
[null,null,null,null,null,null,null,null,"",""]
[null,null,null,null,null,null,null,null,"",""]
[null,null,null,null,null,null,null,null,"",""]
[null,null,null,null,null,null,null,null,"",""]
[null,null,null,null,null,null,null,null,"",""]
[null,null,null,null,null,null,null,null,"",""]
[null,null,null,null,null,null,null,null,"",""]
[null,null,null,null,null,null,null,null,"",""]
[null,null,null,null,null,null,null,null,"",""]
[null,null,null,null,null,null,null,null,"",""]
[null,null,null,null,null,null,null,null,"",""]
[null,null,null,null,null,null,null,null,"",""]
[null,null,null,null,null,null,null,null,"",""]
[null,null,null,null,null,null,null,null,"",""]
[null,null,null,null,null,null,null,null,"",""]
[null,null,null,null,null,null,null,null,"",""]
[null,null,null,null,null,null,null,null,"",""]
[null,null,null,null,null,null,null,null,"",""]
[null,null,null,null,null,null,null,null,"",""]
[null,null,null,null,null,null,null,null,"",""]
[null,null,null,null,null,null,null,null,"",""]
[null,null,null,null,null,null,null,null,"",""]
[null,null,null,null,null,null,null,null,"",""]
[null,null,null,null,null,null,null,null,"",""]
[null,null,null,null,null,null,null,null,"",""]
[null,null,null,null,null,null,null,null,"",""]
[null,null,null,null,null,null,null,null,"",""]
[null,null,null,null,null,null,null,null,"",""]
[null,null,null,null,null,null,null,null,"",""]
[null,null,null,null,null,null,null,null,"",""]
[null,null,null,null,null,null,null,null,"",""]
[null,null,null,null,null,null,null,null,"",""]
[null,null,null,null,null,null,null,null,"",""]
[null,null,null,null,null,null,null,null,"",""]
[null,null,null,null,null,null,null,null,"",""]
[null,null,null,null,null,null,null,null,"",""]
[null,null,null,null,null,null,null,null,"",""]
[null,null,null,null,null,null,null,null,"",""]
[null,null,null,null,null,null,null,null,"",""]
[null,null,null,null,null,null,null,null,"",""]
[null,null,null,null,null,null,null,null,"",""]
[null,null,null,null,null,null,null,null,"",""]
[null,null,null,null,null,null,null,null,"",""]
[null,null,null,null,null,null,null,null,"",""]
[null,null,null,null,null,null,null,null,"",""]
[null,null,null,null,null,null,null,null,"",""]
[null,null,null,null,null,null,null,null,"",{"$f":"IF(H77970=$L$48,1,IF(H77970=$L$49,2,IF(H77970=$L$50,3,IF(H77970=$L$51,4,IF(H77970=$L$52,5,IF(H77970=$L$53,6,\"\"))))))","v":""}]
[null,null,null,null,null,null,null,null,"",""]
[null,null,null,null,null,null,null,null,"",""]
[null,null,null,null,null,null,null,null,"",""]
[null,null,null,null,null,null,null,null,"",""]
[null,null,null,null,null,null,null,null,"",""]
[null,null,null,null,null,null,null,null,"",""]
[null,null,null,null,null,null,null,null,"",""]
[null,null,null,null,null,null,null,null,"",""]
[null,null,null,null,null,null,null,null,"",""]
[null,null,null,null,null,null,null,null,"",""]
[null,null,null,null,null,null,null,null,"",""]
[null,null,null,null,null,null,null,null,"",""]
[null,null,null,null,null,null,null,null,"",""]
[null,null,null,null,null,null,null,null,"",""]
[null,null,null,null,null,null,null,null,"",""]
[null,null,null,null,null,null,null,null,"",""]
[null,null,null,null,null,null,null,null,{"$f":"IF(E79245=$L$27,1,IF(E79245=$L$28,3,IF(E79245=$L$29,4,IF(E79245=$L$30,5,IF(E79245=$L$31,10,IF(E79245=$L$32,9,IF(E79245=$L$33,2,IF(E79245=$L$34,6,\"\"))))))))","v":""},""]
[null,null,null,null,null,null,null,null,"",""]
[null,null,null,null,null,null,null,null,"",""]
[null,null,null,null,null,null,null,null,"",""]
[null,null,null,null,null,null,null,null,"",""]
[null,null,null,null,null,null,null,null,"",""]
[null,null,null,null,null,null,null,null,"",""]
[null,null,null,null,null,null,null,null,"",""]
[null,null,null,null,null,null,null,null,"",""]
[null,null,null,null,null,null,null,null,"",""]
[null,null,null,null,null,null,null,null,"",""]
[null,null,null,null,null,null,null,null,"",""]
[null,null,null,null,null,null,null,null,"",""]
[null,null,null,null,null,null,null,null,"",""]
[null,null,null,null,null,null,null,null,"",""]
[null,null,null,null,null,null,null,null,"",""]
[null,null,null,null,null,null,null,null,"",""]
[null,null,null,null,null,null,null,null,"",""]
[null,null,null,null,null,null,null,null,"",""]
[null,null,null,null,null,null,null,null,{"$f":"IF(E80653=$L$27,1,IF(E80653=$L$28,3,IF(E80653=$L$29,4,IF(E80653=$L$30,5,IF(E80653=$L$31,10,IF(E80653=$L$32,9,IF(E80653=$L$33,2,IF(E80653=$L$34,6,\"\"))))))))","v":""},""]
[null,null,null,null,null,null,null,null,"",""]
[null,null,null,null,null,null,null,null,"",""]
[null,null,null,null,null,null,null,null,"",""]
[null,null,null,null,null,null,null,null,"",""]
[null,null,null,null,null,null,null,null,"",""]
[null,null,null,null,null,null,null,null,"",""]
[null,null,null,null,null,null,null,null,"",""]
[null,null,null,null,null,null,null,null,"",""]
[null,null,null,null,null,null,null,null,"",""]
[null,null,null,null,null,null,null,null,"",""]
[null,null,null,null,null,null,null,null,"",""]
[null,null,null,null,null,null,null,null,"",""]
[null,null,null,null,null,null,null,null,"",""]
[null,null,null,null,null,null,null,null,"",""]
[null,null,null,null,null,null,null,null,"",""]
[null,null,null,null,null,null,null,null,{"$f":"IF(E81869=$L$27,1,IF(E81869=$L$28,3,IF(E81869=$L$29,4,IF(E81869=$L$30,5,IF(E81869=$L$31,10,IF(E81869=$L$32,9,IF(E81869=$L$33,2,IF(E81869=$L$34,6,\"\"))))))))","v":""},""]
[null,null,null,null,null,null,null,null,"",""]
[null,null,null,null,null,null,null,null,"",""]
[null,null,null,null,null,null,null,null,"",""]
[null,null,null,null,null,null,null,null,"",""]
[null,null,null,null,null,null,null,null,"",""]
[null,null,null,null,null,null,null,null,"",""]
[null,null,null,null,null,null,null,null,"",""]
[null,null,null,null,null,null,null,null,"",""]
[null,null,null,null,null,null,null,null,"",""]
[null,null,null,null,null,null,null,null,"",""]
[null,null,null,null,null,null,null,null,"",""]
[null,null,null,null,null,null,null,null,"",""]
[null,null,null,null,null,null,null,null,"",""]
[null,null,null,null,null,null,null,null,"",""]
[null,null,null,null,null,null,null,null,"",""]
[null,null,null,null,null,null,null,null,"",""]
[null,null,null,null,null,null,null,null,"",""]
[null,null,null,null,null,null,null,null,"",""]
[null,null,null,null,null,null,null,null,"",""]
[null,null,null,null,null,null,null,null,"",""]
[null,null,null,null,null,null,null,null,"",""]
[null,null,null,null,null,null,null,null,"",""]
[null,null,null,null,null,null,null,null,"",""]
[null,null,null,null,null,null,null,null,"",""]
[null,null,null,null,null,null,null,null,"",""]
[null,null,null,null,null,null,null,null,"",""]
[null,null,null,null,null,null,null,null,"",""]
[null,null,null,null,null,null,null,null,"",""]
[null,null,null,null,null,null,null,null,"",""]
[null,null,null,null,null,null,null,null,"",""]
[null,null,null,null,null,null,null,null,"",""]
[null,null,null,null,null,null,null,null,"",""]
[null,null,null,null,null,null,null,null,"",""]
[null,null,null,null,null,null,null,null,"",""]
[null,null,null,null,null,null,null,null,"",""]
[null,null,null,null,null,null,null,null,"",""]
[null,null,null,null,null,null,null,null,"",""]
[null,null,null,null,null,null,null,null,"",""]
[null,null,null,null,null,null,null,null,"",""]
[null,null,null,null,null,null,null,null,"",""]
[null,null,null,null,null,null,null,null,"",""]
[null,null,null,null,null,null,null,null,"",""]
[null,null,null,null,null,null,null,null,"",""]
[null,null,null,null,null,null,null,null,"",""]
[null,null,null,null,null,null,null,null,"",""]
[null,null,null,null,null,null,null,null,"",""]
[null,null,null,null,null,null,null,null,"",""]
[null,null,null,null,null,null,null,null,"",""]
[null,null,null,null,null,null,null,null,"",""]
[null,null,null,null,null,null,null,null,"",""]
[null,null,null,null,null,null,null,null,"",""]
[null,null,null,null,null,null,null,null,"",""]
[null,null,null,null,null,null,null,null,"",""]
[null,null,null,null,null,null,null,null,"",""]
[null,null,null,null,null,null,null,null,"",""]
[null,null,null,null,null,null,null,null,"",""]
[null,null,null,null,null,null,null,null,"",""]
[null,null,null,null,null,null,null,null,"",""]
[null,null,null,null,null,null,null,null,"",""]
[null,null,null,null,null,null,null,null,"",""]
[null,null,null,null,null,null,null,null,"",""]
[null,null,null,null,null,null,null,null,"",""]
[null,null,null,null,null,null,null,null,"",""]
[null,null,null,null,null,null,null,null,"",""]
[null,null,null,null,null,null,null,null,"",""]
[null,null,null,null,null,null,null,null,"",""]
[null,null,null,null,null,null,null,null,"",""]
[null,null,null,null,null,null,null,null,"",""]
[null,null,null,null,null,null,null,null,"",""]
[null,null,null,null,null,null,null,null,"",""]
[null,null,null,null,null,null,null,null,"",""]
[null,null,null,null,null,null,null,null,"",""]
[null,null,null,null,null,null,null,null,"",""]
[null,null,null,null,null,null,null,null,"",""]
[null,null,null,null,null,null,null,null,"",""]
[null,null,null,null,null,null,null,null,"",""]
[null,null,null,null,null,null,null,null,"",""]
[null,null,null,null,null,null,null,null,"",""]
[null,null,null,null,null,null,null,null,"",""]
[null,null,null,null,null,null,null,null,"",""]
[null,null,null,null,null,null,null,null,"",""]
[null,null,null,null,null,null,null,null,"",""]
[null,null,null,null,null,null,null,null,"",""]
[null,null,null,null,null,null,null,null,"",""]
[null,null,null,null,null,null,null,null,"",""]
[null,null,null,null,null,null,null,null,"",""]
[null,null,null,null,null,null,null,null,"",""]
[null,null,null,null,null,null,null,null,"",""]
[null,null,null,null,null,null,null,null,"",""]
[null,null,null,null,null,null,null,null,"",""]
[null,null,null,null,null,null,null,null,"",""]
[null,null,null,null,null,null,null,null,"",""]
[null,null,null,null,null,null,null,null,"",""]
[null,null,null,null,null,null,null,null,"",""]
[null,null,null,null,null,null,null,null,"",""]
[null,null,null,null,null,null,null,null,"",""]
[null,null,null,null,null,null,null,null,"",""]
[null,null,null,null,null,null,null,null,"",""]
[null,null,null,null,null,null,null,null,"",""]
[null,null,null,null,null,null,null,null,"",""]
[null,null,null,null,null,null,null,null,"",""]
[null,null,null,null,null,null,null,null,"",""]
[null,null,null,null,null,null,null,null,"",""]
[null,null,null,null,null,null,null,null,"",""]
[null,null,null,null,null,null,null,null,"",""]
[null,null,null,null,null,null,null,null,"",""]
[null,null,null,null,null,null,null,null,"",""]
[null,null,null,null,null,null,null,null,"",""]
[null,null,null,null,null,null,null,null,"",""]
[null,null,null,null,null,null,null,null,"",""]
[null,null,null,null,null,null,null,null,"",""]
[null,null,null,null,null,null,null,null,"",""]
[null,null,null,null,null,null,null,null,"",""]
[null,null,null,null,null,null,null,null,"",""]
[null,null,null,null,null,null,null,null,"",""]
[null,null,null,null,null,null,null,null,"",""]
[null,null,null,null,null,null,null,null,"",""]
[null,null,null,null,null,null,null,null,"",""]
[null,null,null,null,null,null,null,null,"",""]
[null,null,null,null,null,null,null,null,"",""]
[null,null,null,null,null,null,null,null,"",""]
[null,null,null,null,null,null,null,null,"",""]
[null,null,null,null,null,null,null,null,"",""]
[null,null,null,null,null,null,null,null,"",""]
[null,null,null,null,null,null,null,null,"",""]
[null,null,null,null,null,null,null,null,"",""]
[null,null,null,null,null,null,null,null,"",""]
[null,null,null,null,null,null,null,null,"",""]
[null,null,null,null,null,null,null,null,"",""]
[null,null,null,null,null,null,null,null,"",""]
[null,null,null,null,null,null,null,null,"",""]
[null,null,null,null,null,null,null,null,"",""]
[null,null,null,null,null,null,null,null,"",""]
[null,null,null,null,null,null,null,null,"",""]
[null,null,null,null,null,null,null,null,"",""]
[null,null,null,null,null,null,null,null,"",""]
[null,null,null,null,null,null,null,null,"",""]
[null,null,null,null,null,null,null,null,"",""]
[null,null,null,null,null,null,null,null,"",""]
[null,null,null,null,null,null,null,null,"",""]
[null,null,null,null,null,null,null,null,{"$f":"IF(E92237=$L$27,1,IF(E92237=$L$28,3,IF(E92237=$L$29,4,IF(E92237=$L$30,5,IF(E92237=$L$31,10,IF(E92237=$L$32,9,IF(E92237=$L$33,2,IF(E92237=$L$34,6,\"\"))))))))","v":""},""]
[null,null,null,null,null,null,null,null,"",{"$f":"IF(H92306=$L$48,1,IF(H92306=$L$49,2,IF(H92306=$L$50,3,IF(H92306=$L$51,4,IF(H92306=$L$52,5,IF(H92306=$L$53,6,\"\"))))))","v":""}]
[null,null,null,null,null,null,null,null,"",""]
[null,null,null,null,null,null,null,null,"",""]
[null,null,null,null,null,null,null,null,"",""]
[null,null,null,null,null,null,null,null,"",""]
[null,null,null,null,null,null,null,null,"",""]
[null,null,null,null,null,null,null,null,"",""]
[null,null,null,null,null,null,null,null,"",""]
[null,null,null,null,null,null,null,null,"",""]
[null,null,null,null,null,null,null,null,"",""]
[null,null,null,null,null,null,null,null,"",""]
[null,null,null,null,null,null,null,null,"",""]
[null,null,null,null,null,null,null,null,"",""]
[null,null,null,null,null,null,null,null,"",""]
[null,null,null,null,null,null,null,null,"",""]
[null,null,null,null,null,null,null,null,"",""]
[null,null,null,null,null,null,null,null,"",{"$f":"IF(H93522=$L$48,1,IF(H93522=$L$49,2,IF(H93522=$L$50,3,IF(H93522=$L$51,4,IF(H93522=$L$52,5,IF(H93522=$L$53,6,\"\"))))))","v":""}]
[null,null,null,null,null,null,null,null,"",""]
[null,null,null,null,null,null,null,null,"",""]
[null,null,null,null,null,null,null,null,"",""]
[null,null,null,null,null,null,null,null,"",""]
[null,null,null,null,null,null,null,null,"",""]
[null,null,null,null,null,null,null,null,"",""]
[null,null,null,null,null,null,null,null,"",""]
[null,null,null,null,null,null,null,null,"",""]
[null,null,null,null,null,null,null,null,"",""]
[null,null,null,null,null,null,null,null,"",""]
[null,null,null,null,null,null,null,null,"",""]
[null,null,null,null,null,null,null,null,"",""]
[null,null,null,null,null,null,null,null,"",""]
[null,null,null,null,null,null,null,null,"",""]
[null,null,null,null,null,null,null,null,"",""]
[null,null,null,null,null,null,null,null,"",""]
[null,null,null,null,null,null,null,null,"",""]
[null,null,null,null,null,null,null,null,"",""]
[null,null,null,null,null,null,null,null,"",""]
[null,null,null,null,null,null,null,null,"",""]
[null,null,null,null,null,null,null,null,"",""]
[null,null,null,null,null,null,null,null,"",""]
[null,null,null,null,null,null,null,null,"",""]
[null,null,null,null,null,null,null,null,"",""]
[null,null,null,null,null,null,null,null,"",""]
[null,null,null,null,null,null,null,null,"",""]
[null,null,null,null,null,null,null,null,"",""]
[null,null,null,null,null,null,null,null,"",""]
[null,null,null,null,null,null,null,null,"",""]
[null,null,null,null,null,null,null,null,"",""]
[null,null,null,null,null,null,null,null,"",""]
[null,null,null,null,null,null,null,null,"",""]
[null,null,null,null,null,null,null,null,"",""]
[null,null,null,null,null,null,null,null,"",""]
[null,null,null,null,null,null,null,null,"",""]
[null,null,null,null,null,null,null,null,"",""]
[null,null,null,null,null,null,null,null,"",""]
[null,null,null,null,null,null,null,null,"",""]
[null,null,null,null,null,null,null,null,"",""]
[null,null,null,null,null,null,null,null,"",""]
[null,null,null,null,null,null,null,null,"",""]
[null,null,null,null,null,null,null,null,"",""]
[null,null,null,null,null,null,null,null,"",""]
[null,null,null,null,null,null,null,null,"",""]
[null,null,null,null,null,null,null,null,"",""]
[null,null,null,null,null,null,null,null,"",""]
[null,null,null,null,null,null,null,null,"",""]
[null,null,null,null,null,null,null,null,"",""]
[null,null,null,null,null,null,null,null,"",""]
[null,null,null,null,null,null,null,null,"",""]
[null,null,null,null,null,null,null,null,"",""]
[null,null,null,null,null,null,null,null,"",""]
[null,null,null,null,null,null,null,null,"",""]
[null,null,null,null,null,null,null,null,"",""]
[null,null,null,null,null,null,null,null,"",""]
[null,null,null,null,null,null,null,null,"",""]
[null,null,null,null,null,null,null,null,"",""]
[null,null,null,null,null,null,null,null,"",""]
[null,null,null,null,null,null,null,null,"",""]
[null,null,null,null,null,null,null,null,"",""]
[null,null,null,null,null,null,null,null,"",""]
[null,null,null,null,null,null,null,null,"",""]
[null,null,null,null,null,null,null,null,"",""]
[null,null,null,null,null,null,null,null,"",""]
[null,null,null,null,null,null,null,null,"",""]
[null,null,null,null,null,null,null,null,"",""]
[null,null,null,null,null,null,null,null,"",""]
[null,null,null,null,null,null,null,null,"",""]
[null,null,null,null,null,null,null,null,"",""]
[null,null,null,null,null,null,null,null,"",""]
[null,null,null,null,null,null,null,null,"",""]
[null,null,null,null,null,null,null,null,"",""]
[null,null,null,null,null,null,null,null,"",""]
[null,null,null,null,null,null,null,null,"",""]
[null,null,null,null,null,null,null,null,"",""]
[null,null,null,null,null,null,null,null,"",""]
[null,null,null,null,null,null,null,null,"",""]
[null,null,null,null,null,null,null,null,"",""]
[null,null,null,null,null,null,null,null,"",""]
[null,null,null,null,null,null,null,null,"",""]
[null,null,null,null,null,null,null,null,"",""]
[null,null,null,null,null,null,null,null,"",""]
[null,null,null,null,null,null,null,null,"",""]
[null,null,null,null,null,null,null,null,"",""]
[null,null,null,null,null,null,null,null,"",""]
[null,null,null,null,null,null,null,null,"",""]
[null,null,null,null,null,null,null,null,"",""]
[null,null,null,null,null,null,null,null,"",""]
[null,null,null,null,null,null,null,null,"",""]
[null,null,null,null,null,null,null,null,"",""]
[null,null,null,null,null,null,null,null,"",""]
[null,null,null,null,null,null,null,null,"",""]
[null,null,null,null,null,null,null,null,"",""]
[null,null,null,null,null,null,null,null,"",""]
[null,null,null,null,null,null,null,null,"",""]
[null,null,null,null,null,null,null,null,"",""]
[null,null,null,null,null,null,null,null,"",""]
[null,null,null,null,null,null,null,null,"",""]
[null,null,null,null,null,null,null,null,"",""]
[null,null,null,null,null,null,null,null,"",""]
[null,null,null,null,null,null,null,null,"",""]
[null,null,null,null,null,null,null,null,"",""]
[null,null,null,null,null,null,null,null,"",""]
[null,null,null,null,null,null,null,null,"",""]
[null,null,null,null,null,null,null,null,"",""]
[null,null,null,null,null,null,null,null,"",""]
[null,null,null,null,null,null,null,null,"",""]
[null,null,null,null,null,null,null,null,"",""]
[null,null,null,null,null,null,null,null,"",""]
[null,null,null,null,null,null,null,null,"",""]
[null,null,null,null,null,null,null,null,"",{"$f":"IF(H101714=$L$48,1,IF(H101714=$L$49,2,IF(H101714=$L$50,3,IF(H101714=$L$51,4,IF(H101714=$L$52,5,IF(H101714=$L$53,6,\"\"))))))","v":""}]
[null,null,null,null,null,null,null,null,"",""]
[null,null,null,null,null,null,null,null,"",""]
[null,null,null,null,null,null,null,null,"",""]
[null,null,null,null,null,null,null,null,"",""]
[null,null,null,null,null,null,null,null,"",""]
[null,null,null,null,null,null,null,null,"",""]
[null,null,null,null,null,null,null,null,"",""]
[null,null,null,null,null,null,null,null,"",""]
[null,null,null,null,null,null,null,null,"",""]
[null,null,null,null,null,null,null,null,"",""]
[null,null,null,null,null,null,null,null,"",""]
[null,null,null,null,null,null,null,null,"",""]
[null,null,null,null,null,null,null,null,"",""]
[null,null,null,null,null,null,null,null,"",""]
[null,null,null,null,null,null,null,null,"",""]
[null,null,null,null,null,null,null,null,"",""]
[null,null,null,null,null,null,null,null,{"$f":"IF(E102925=$L$27,1,IF(E102925=$L$28,3,IF(E102925=$L$29,4,IF(E102925=$L$30,5,IF(E102925=$L$31,10,IF(E102925=$L$32,9,IF(E102925=$L$33,2,IF(E102925=$L$34,6,\"\"))))))))","v":""},""]
[null,null,null,null,null,null,null,null,"",{"$f":"IF(H102994=$L$48,1,IF(H102994=$L$49,2,IF(H102994=$L$50,3,IF(H102994=$L$51,4,IF(H102994=$L$52,5,IF(H102994=$L$53,6,\"\"))))))","v":""}]
[null,null,null,null,null,null,null,null,"",""]
[null,null,null,null,null,null,null,null,"",""]
[null,null,null,null,null,null,null,null,"",""]
[null,null,null,null,null,null,null,null,"",""]
[null,null,null,null,null,null,null,null,"",""]
[null,null,null,null,null,null,null,null,"",""]
[null,null,null,null,null,null,null,null,"",""]
[null,null,null,null,null,null,null,null,"",""]
[null,null,null,null,null,null,null,null,"",""]
[null,null,null,null,null,null,null,null,"",""]
[null,null,null,null,null,null,null,null,"",""]
[null,null,null,null,null,null,null,null,"",""]
[null,null,null,null,null,null,null,null,"",""]
[null,null,null,null,null,null,null,null,"",""]
[null,null,null,null,null,null,null,null,{"$f":"IF(E104141=$L$27,1,IF(E104141=$L$28,3,IF(E104141=$L$29,4,IF(E104141=$L$30,5,IF(E104141=$L$31,10,IF(E104141=$L$32,9,IF(E104141=$L$33,2,IF(E104141=$L$34,6,\"\"))))))))","v":""},""]
[null,null,null,null,null,null,null,null,"",""]
[null,null,null,null,null,null,null,null,"",""]
[null,null,null,null,null,null,null,null,"",""]
[null,null,null,null,null,null,null,null,"",""]
[null,null,null,null,null,null,null,null,"",""]
[null,null,null,null,null,null,null,null,"",""]
[null,null,null,null,null,null,null,null,"",""]
[null,null,null,null,null,null,null,null,"",""]
[null,null,null,null,null,null,null,null,"",""]
[null,null,null,null,null,null,null,null,"",""]
[null,null,null,null,null,null,null,null,"",""]
[null,null,null,null,null,null,null,null,"",""]
[null,null,null,null,null,null,null,null,"",""]
[null,null,null,null,null,null,null,null,"",""]
[null,null,null,null,null,null,null,null,"",""]
[null,null,null,null,null,null,null,null,"",""]
[null,null,null,null,null,null,null,null,"",""]
[null,null,null,null,null,null,null,null,"",""]
[null,null,null,null,null,null,null,null,"",""]
[null,null,null,null,null,null,null,null,"",""]
[null,null,null,null,null,null,null,null,"",""]
[null,null,null,null,null,null,null,null,"",""]
[null,null,null,null,null,null,null,null,"",""]
[null,null,null,null,null,null,null,null,"",""]
[null,null,null,null,null,null,null,null,"",""]
[null,null,null,null,null,null,null,null,"",""]
[null,null,null,null,null,null,null,null,"",""]
[null,null,null,null,null,null,null,null,"",""]
[null,null,null,null,null,null,null,null,"",""]
[null,null,null,null,null,null,null,null,"",""]
[null,null,null,null,null,null,null,null,"",""]
[null,null,null,null,null,null,null,null,"",""]
[null,null,null,null,null,null,null,null,"",""]
[null,null,null,null,null,null,null,null,"",""]
[null,null,null,null,null,null,null,null,"",""]
[null,null,null,null,null,null,null,null,"",""]
[null,null,null,null,null,null,null,null,"",""]
[null,null,null,null,null,null,null,null,"",""]
[null,null,null,null,null,null,null,null,"",""]
[null,null,null,null,null,null,null,null,"",""]
[null,null,null,null,null,null,null,null,"",""]
[null,null,null,null,null,null,null,null,"",""]
[null,null,null,null,null,null,null,null,"",""]
[null,null,null,null,null,null,null,null,"",""]
[null,null,null,null,null,null,null,null,"",""]
[null,null,null,null,null,null,null,null,"",""]
[null,null,null,null,null,null,null,null,"",""]
[null,null,null,null,null,null,null,null,"",""]
[null,null,null,null,null,null,null,null,"",""]
[null,null,null,null,null,null,null,null,"",""]
[null,null,null,null,null,null,null,null,"",""]
[null,null,null,null,null,null,null,null,"",""]
[null,null,null,null,null,null,null,null,"",""]
[null,null,null,null,null,null,null,null,"",""]
[null,null,null,null,null,null,null,null,"",""]
[null,null,null,null,null,null,null,null,"",""]
[null,null,null,null,null,null,null,null,"",""]
[null,null,null,null,null,null,null,null,"",""]
[null,null,null,null,null,null,null,null,"",""]
[null,null,null,null,null,null,null,null,"",""]
[null,null,null,null,null,null,null,null,"",""]
[null,null,null,null,null,null,null,null,"",""]
[null,null,null,null,null,null,null,null,"",""]
[null,null,null,null,null,null,null,null,"",""]
[null,null,null,null,null,null,null,null,"",""]
[null,null,null,null,null,null,null,null,"",""]
[null,null,null,null,null,null,null,null,"",""]
[null,null,null,null,null,null,null,null,"",""]
[null,null,null,null,null,null,null,null,"",""]
[null,null,null,null,null,null,null,null,"",""]
[null,null,null,null,null,null,null,null,"",""]
[null,null,null,null,null,null,null,null,"",""]
[null,null,null,null,null,null,null,null,"",""]
[null,null,null,null,null,null,null,null,"",""]
[null,null,null,null,null,null,null,null,"",""]
[null,null,null,null,null,null,null,null,"",""]
[null,null,null,null,null,null,null,null,"",""]
[null,null,null,null,null,null,null,null,"",""]
[null,null,null,null,null,null,null,null,"",""]
[null,null,null,null,null,null,null,null,{"$f":"IF(E110029=$L$27,1,IF(E110029=$L$28,3,IF(E110029=$L$29,4,IF(E110029=$L$30,5,IF(E110029=$L$31,10,IF(E110029=$L$32,9,IF(E110029=$L$33,2,IF(E110029=$L$34,6,\"\"))))))))","v":""},""]
[null,null,null,null,null,null,null,null,"",""]
[null,null,null,null,null,null,null,null,"",""]
[null,null,null,null,null,null,null,null,"",""]
[null,null,null,null,null,null,null,null,"",{"$f":"IF(H110290=$L$48,1,IF(H110290=$L$49,2,IF(H110290=$L$50,3,IF(H110290=$L$51,4,IF(H110290=$L$52,5,IF(H110290=$L$53,6,\"\"))))))","v":""}]
[null,null,null,null,null,null,null,null,"",""]
[null,null,null,null,null,null,null,null,"",""]
[null,null,null,null,null,null,null,null,"",""]
[null,null,null,null,null,null,null,null,"",""]
[null,null,null,null,null,null,null,null,"",""]
[null,null,null,null,null,null,null,null,"",""]
[null,null,null,null,null,null,null,null,"",""]
[null,null,null,null,null,null,null,null,"",""]
[null,null,null,null,null,null,null,null,"",""]
[null,null,null,null,null,null,null,null,"",""]
[null,null,null,null,null,null,null,null,"",""]
[null,null,null,null,null,null,null,null,"",""]
[null,null,null,null,null,null,null,null,"",""]
[null,null,null,null,null,null,null,null,"",""]
[null,null,null,null,null,null,null,null,"",""]
[null,null,null,null,null,null,null,null,"",""]
[null,null,null,null,null,null,null,null,"",""]
[null,null,null,null,null,null,null,null,"",""]
[null,null,null,null,null,null,null,null,"",""]
[null,null,null,null,null,null,null,null,"",""]
[null,null,null,null,null,null,null,null,"",""]
[null,null,null,null,null,null,null,null,"",""]
[null,null,null,null,null,null,null,null,"",""]
[null,null,null,null,null,null,null,null,"",""]
[null,null,null,null,null,null,null,null,"",""]
[null,null,null,null,null,null,null,null,"",""]
[null,null,null,null,null,null,null,null,{"$f":"IF(E112333=$L$27,1,IF(E112333=$L$28,3,IF(E112333=$L$29,4,IF(E112333=$L$30,5,IF(E112333=$L$31,10,IF(E112333=$L$32,9,IF(E112333=$L$33,2,IF(E112333=$L$34,6,\"\"))))))))","v":""},""]
[null,null,null,null,null,null,null,null,"",""]
[null,null,null,null,null,null,null,null,"",""]
[null,null,null,null,null,null,null,null,"",""]
[null,null,null,null,null,null,null,null,"",""]
[null,null,null,null,null,null,null,null,"",""]
[null,null,null,null,null,null,null,null,"",""]
[null,null,null,null,null,null,null,null,"",""]
[null,null,null,null,null,null,null,null,"",""]
[null,null,null,null,null,null,null,null,"",""]
[null,null,null,null,null,null,null,null,"",""]
[null,null,null,null,null,null,null,null,"",""]
[null,null,null,null,null,null,null,null,"",""]
[null,null,null,null,null,null,null,null,"",""]
[null,null,null,null,null,null,null,null,"",""]
[null,null,null,null,null,null,null,null,"",""]
[null,null,null,null,null,null,null,null,"",""]
[null,null,null,null,null,null,null,null,"",""]
[null,null,null,null,null,null,null,null,"",""]
[null,null,null,null,null,null,null,null,"",""]
[null,null,null,null,null,null,null,null,"",""]
[null,null,null,null,null,null,null,null,"",""]
[null,null,null,null,null,null,null,null,"",""]
[null,null,null,null,null,null,null,null,"",""]
[null,null,null,null,null,null,null,null,"",""]
[null,null,null,null,null,null,null,null,"",""]
[null,null,null,null,null,null,null,null,"",""]
[null,null,null,null,null,null,null,null,"",""]
[null,null,null,null,null,null,null,null,"",""]
[null,null,null,null,null,null,null,null,"",""]
[null,null,null,null,null,null,null,null,"",""]
[null,null,null,null,null,null,null,null,"",{"$f":"IF(H114578=$L$48,1,IF(H114578=$L$49,2,IF(H114578=$L$50,3,IF(H114578=$L$51,4,IF(H114578=$L$52,5,IF(H114578=$L$53,6,\"\"))))))","v":""}]
[null,null,null,null,null,null,null,null,"",""]
[null,null,null,null,null,null,null,null,"",""]
[null,null,null,null,null,null,null,null,"",""]
[null,null,null,null,null,null,null,null,"",""]
[null,null,null,null,null,null,null,null,"",""]
[null,null,null,null,null,null,null,null,"",""]
[null,null,null,null,null,null,null,null,"",""]
[null,null,null,null,null,null,null,null,"",""]
[null,null,null,null,null,null,null,null,"",""]
[null,null,null,null,null,null,null,null,"",""]
[null,null,null,null,null,null,null,null,"",""]
[null,null,null,null,null,null,null,null,"",""]
[null,null,null,null,null,null,null,null,"",""]
[null,null,null,null,null,null,null,null,"",""]
[null,null,null,null,null,null,null,null,"",""]
[null,null,null,null,null,null,null,null,"",{"$f":"IF(H115794=$L$48,1,IF(H115794=$L$49,2,IF(H115794=$L$50,3,IF(H115794=$L$51,4,IF(H115794=$L$52,5,IF(H115794=$L$53,6,\"\"))))))","v":""}]
[null,null,null,null,null,null,null,null,"",""]
[null,null,null,null,null,null,null,null,"",""]
[null,null,null,null,null,null,null,null,"",""]
[null,null,null,null,null,null,null,null,"",""]
[null,null,null,null,null,null,null,null,"",""]
[null,null,null,null,null,null,null,null,"",""]
[null,null,null,null,null,null,null,null,"",""]
[null,null,null,null,null,null,null,null,"",""]
[null,null,null,null,null,null,null,null,"",""]
[null,null,null,null,null,null,null,null,"",""]
[null,null,null,null,null,null,null,null,"",""]
[null,null,null,null,null,null,null,null,"",""]
[null,null,null,null,null,null,null,null,"",""]
[null,null,null,null,null,null,null,null,"",""]
[null,null,null,null,null,null,null,null,"",""]
[null,null,null,null,null,null,null,null,"",""]
[null,null,null,null,null,null,null,null,"",""]
[null,null,null,null,null,null,null,null,"",""]
[null,null,null,null,null,null,null,null,"",""]
[null,null,null,null,null,null,null,null,"",""]
[null,null,null,null,null,null,null,null,"",""]
[null,null,null,null,null,null,null,null,"",""]
[null,null,null,null,null,null,null,null,"",""]
[null,null,null,null,null,null,null,null,"",""]
[null,null,null,null,null,null,null,null,"",""]
[null,null,null,null,null,null,null,null,"",""]
[null,null,null,null,null,null,null,null,"",""]
[null,null,null,null,null,null,null,null,"",""]
[null,null,null,null,null,null,null,null,"",""]
[null,null,null,null,null,null,null,null,"",""]
[null,null,null,null,null,null,null,null,"",""]
[null,null,null,null,null,null,null,null,"",""]
[null,null,null,null,null,null,null,null,"",""]
[null,null,null,null,null,null,null,null,"",""]
[null,null,null,null,null,null,null,null,"",""]
[null,null,null,null,null,null,null,null,"",""]
[null,null,null,null,null,null,null,null,"",""]
[null,null,null,null,null,null,null,null,"",""]
[null,null,null,null,null,null,null,null,"",""]
[null,null,null,null,null,null,null,null,"",""]
[null,null,null,null,null,null,null,null,"",""]
[null,null,null,null,null,null,null,null,"",""]
[null,null,null,null,null,null,null,null,"",""]
[null,null,null,null,null,null,null,null,"",""]
[null,null,null,null,null,null,null,null,"",""]
[null,null,null,null,null,null,null,null,"",""]
[null,null,null,null,null,null,null,null,"",""]
[null,null,null,null,null,null,null,null,"",""]
[null,null,null,null,null,null,null,null,"",""]
[null,null,null,null,null,null,null,null,"",""]
[null,null,null,null,null,null,null,null,"",""]
[null,null,null,null,null,null,null,null,"",""]
[null,null,null,null,null,null,null,null,"",""]
[null,null,null,null,null,null,null,null,"",""]
[null,null,null,null,null,null,null,null,"",""]
[null,null,null,null,null,null,null,null,"",""]
[null,null,null,null,null,null,null,null,"",""]
[null,null,null,null,null,null,null,null,"",""]
[null,null,null,null,null,null,null,null,"",""]
[null,null,null,null,null,null,null,null,"",""]
[null,null,null,null,null,null,null,null,"",""]
[null,null,null,null,null,null,null,null,"",""]
[null,null,null,null,null,null,null,null,"",""]
[null,null,null,null,null,null,null,null,"",""]
[null,null,null,null,null,null,null,null,"",""]
[null,null,null,null,null,null,null,null,"",""]
[null,null,null,null,null,null,null,null,"",""]
[null,null,null,null,null,null,null,null,"",""]
[null,null,null,null,null,null,null,null,"",""]
[null,null,null,null,null,null,null,null,"",""]
[null,null,null,null,null,null,null,null,"",""]
[null,null,null,null,null,null,null,null,"",""]
[null,null,null,null,null,null,null,null,"",""]
[null,null,null,null,null,null,null,null,"",""]
[null,null,null,null,null,null,null,null,"",""]
[null,null,null,null,null,null,null,null,"",""]
[null,null,null,null,null,null,null,null,"",""]
[null,null,null,null,null,null,null,null,"",""]
[null,null,null,null,null,null,null,null,"",""]
[null,null,null,null,null,null,null,null,"",""]
[null,null,null,null,null,null,null,null,"",{"$f":"IF(H121746=$L$48,1,IF(H121746=$L$49,2,IF(H121746=$L$50,3,IF(H121746=$L$51,4,IF(H121746=$L$52,5,IF(H121746=$L$53,6,\"\"))))))","v":""}]
[null,null,null,null,null,null,null,null,"",""]
[null,null,null,null,null,null,null,null,"",""]
[null,null,null,null,null,null,null,null,"",""]
[null,null,null,null,null,null,null,null,"",""]
[null,null,null,null,null,null,null,null,"",""]
[null,null,null,null,null,null,null,null,"",""]
[null,null,null,null,null,null,null,null,"",""]
[null,null,null,null,null,null,null,null,"",""]
[null,null,null,null,null,null,null,null,"",""]
[null,null,null,null,null,null,null,null,"",""]
[null,null,null,null,null,null,null,null,"",""]
[null,null,null,null,null,null,null,null,"",""]
[null,null,null,null,null,null,null,null,"",""]
[null,null,null,null,null,null,null,null,"",{"$f":"IF(H122770=$L$48,1,IF(H122770=$L$49,2,IF(H122770=$L$50,3,IF(H122770=$L$51,4,IF(H122770=$L$52,5,IF(H122770=$L$53,6,\"\"))))))","v":""}]
[null,null,null,null,null,null,null,null,"",""]
[null,null,null,null,null,null,null,null,"",""]
[null,null,null,null,null,null,null,null,"",""]
[null,null,null,null,null,null,null,null,"",""]
[null,null,null,null,null,null,null,null,"",""]
[null,null,null,null,null,null,null,null,"",""]
[null,null,null,null,null,null,null,null,"",""]
[null,null,null,null,null,null,null,null,"",""]
[null,null,null,null,null,null,null,null,"",""]
[null,null,null,null,null,null,null,null,"",""]
[null,null,null,null,null,null,null,null,"",""]
[null,null,null,null,null,null,null,null,"",""]
[null,null,null,null,null,null,null,null,"",""]
[null,null,null,null,null,null,null,null,"",""]
[null,null,null,null,null,null,null,null,"",""]
[null,null,null,null,null,null,null,null,"",{"$f":"IF(H123986=$L$48,1,IF(H123986=$L$49,2,IF(H123986=$L$50,3,IF(H123986=$L$51,4,IF(H123986=$L$52,5,IF(H123986=$L$53,6,\"\"))))))","v":""}]
[null,null,null,null,null,null,null,null,"",""]
[null,null,null,null,null,null,null,null,"",""]
[null,null,null,null,null,null,null,null,"",""]
[null,null,null,null,null,null,null,null,"",""]
[null,null,null,null,null,null,null,null,"",""]
[null,null,null,null,null,null,null,null,"",""]
[null,null,null,null,null,null,null,null,"",""]
[null,null,null,null,null,null,null,null,"",""]
[null,null,null,null,null,null,null,null,"",""]
[null,null,null,null,null,null,null,null,"",""]
[null,null,null,null,null,null,null,null,"",""]
[null,null,null,null,null,null,null,null,"",""]
[null,null,null,null,null,null,null,null,"",""]
[null,null,null,null,null,null,null,null,"",""]
[null,null,null,null,null,null,null,null,"",""]
[null,null,null,null,null,null,null,null,"",""]
[null,null,null,null,null,null,null,null,{"$f":"IF(E125197=$L$27,1,IF(E125197=$L$28,3,IF(E125197=$L$29,4,IF(E125197=$L$30,5,IF(E125197=$L$31,10,IF(E125197=$L$32,9,IF(E125197=$L$33,2,IF(E125197=$L$34,6,\"\"))))))))","v":""},""]
[null,null,null,null,null,null,null,null,"",""]
[null,null,null,null,null,null,null,null,"",""]
[null,null,null,null,null,null,null,null,"",""]
[null,null,null,null,null,null,null,null,"",""]
[null,null,null,null,null,null,null,null,"",""]
[null,null,null,null,null,null,null,null,"",""]
[null,null,null,null,null,null,null,null,"",""]
[null,null,null,null,null,null,null,null,"",""]
[null,null,null,null,null,null,null,null,"",""]
[null,null,null,null,null,null,null,null,"",""]
[null,null,null,null,null,null,null,null,"",""]
[null,null,null,null,null,null,null,null,"",""]
[null,null,null,null,null,null,null,null,"",""]
[null,null,null,null,null,null,null,null,"",""]
[null,null,null,null,null,null,null,null,"",""]
[null,null,null,null,null,null,null,null,{"$f":"IF(E126413=$L$27,1,IF(E126413=$L$28,3,IF(E126413=$L$29,4,IF(E126413=$L$30,5,IF(E126413=$L$31,10,IF(E126413=$L$32,9,IF(E126413=$L$33,2,IF(E126413=$L$34,6,\"\"))))))))","v":""},""]
[null,null,null,null,null,null,null,null,"",""]
[null,null,null,null,null,null,null,null,"",""]
[null,null,null,null,null,null,null,null,"",""]
[null,null,null,null,null,null,null,null,"",""]
[null,null,null,null,null,null,null,null,"",""]
[null,null,null,null,null,null,null,null,"",""]
[null,null,null,null,null,null,null,null,"",""]
[null,null,null,null,null,null,null,null,"",""]
[null,null,null,null,null,null,null,null,"",""]
[null,null,null,null,null,null,null,null,"",""]
[null,null,null,null,null,null,null,null,"",""]
[null,null,null,null,null,null,null,null,"",""]
[null,null,null,null,null,null,null,null,"",""]
[null,null,null,null,null,null,null,null,"",""]
[null,null,null,null,null,null,null,null,"",""]
[null,null,null,null,null,null,null,null,"",""]
[null,null,null,null,null,null,null,null,"",""]
[null,null,null,null,null,null,null,null,"",""]
[null,null,null,null,null,null,null,null,{"$f":"IF(E127757=$L$27,1,IF(E127757=$L$28,3,IF(E127757=$L$29,4,IF(E127757=$L$30,5,IF(E127757=$L$31,10,IF(E127757=$L$32,9,IF(E127757=$L$33,2,IF(E127757=$L$34,6,\"\"))))))))","v":""},""]
[null,null,null,null,null,null,null,null,"",""]
[null,null,null,null,null,null,null,null,"",""]
[null,null,null,null,null,null,null,null,"",""]
[null,null,null,null,null,null,null,null,"",""]
[null,null,null,null,null,null,null,null,"",""]
[null,null,null,null,null,null,null,null,"",""]
[null,null,null,null,null,null,null,null,"",""]
[null,null,null,null,null,null,null,null,"",""]
[null,null,null,null,null,null,null,null,"",""]
[null,null,null,null,null,null,null,null,"",""]
[null,null,null,null,null,null,null,null,"",""]
[null,null,null,null,null,null,null,null,"",""]
[null,null,null,null,null,null,null,null,"",""]
[null,null,null,null,null,null,null,null,"",""]
[null,null,null,null,null,null,null,null,"",""]
[null,null,null,null,null,null,null,null,"",""]
[null,null,null,null,null,null,null,null,"",""]
[null,null,null,null,null,null,null,null,"",""]
[null,null,null,null,null,null,null,null,"",""]
[null,null,null,null,null,null,null,null,"",""]
[null,null,null,null,null,null,null,null,"",""]
[null,null,null,null,null,null,null,null,"",""]
[null,null,null,null,null,null,null,null,"",""]
[null,null,null,null,null,null,null,null,"",""]
[null,null,null,null,null,null,null,null,"",""]
[null,null,null,null,null,null,null,null,"",""]
[null,null,null,null,null,null,null,null,"",""]
[null,null,null,null,null,null,null,null,"",""]
[null,null,null,null,null,null,null,null,"",""]
[null,null,null,null,null,null,null,null,"",""]
[null,null,null,null,null,null,null,null,"",""]
[null,null,null,null,null,null,null,null,"",""]
[null,null,null,null,null,null,null,null,"",""]
[null,null,null,null,null,null,null,null,"",""]
[null,null,null,null,null,null,null,null,"",""]
[null,null,null,null,null,null,null,null,"",""]
[null,null,null,null,null,null,null,null,"",""]
[null,null,null,null,null,null,null,null,"",""]
[null,null,null,null,null,null,null,null,"",""]
[null,null,null,null,null,null,null,null,"",""]
[null,null,null,null,null,null,null,null,"",""]
[null,null,null,null,null,null,null,null,"",""]
[null,null,null,null,null,null,null,null,"",""]
[null,null,null,null,null,null,null,null,"",""]
[null,null,null,null,null,null,null,null,"",""]
[null,null,null,null,null,null,null,null,"",""]
[null,null,null,null,null,null,null,null,"",""]
[null,null,null,null,null,null,null,null,"",""]
[null,null,null,null,null,null,null,null,"",""]
[null,null,null,null,null,null,null,null,"",""]
[null,null,null,null,null,null,null,null,"",""]
[null,null,null,null,null,null,null,null,"",""]
[null,null,null,null,null,null,null,null,"",""]
[null,null,null,null,null,null,null,null,"",""]
[null,null,null,null,null,null,null,null,"",""]
[null,null,null,null,null,null,null,null,"",""]
[null,null,null,null,null,null,null,null,"",""]
[null,null,null,null,null,null,null,null,"",""]
[null,null,null,null,null,null,null,null,"",""]
[null,null,null,null,null,null,null,null,"",""]
[null,null,null,null,null,null,null,null,"",""]
[null,null,null,null,null,null,null,null,"",""]
[null,null,null,null,null,null,null,null,"",""]
[null,null,null,null,null,null,null,null,"",""]
[null,null,null,null,null,null,null,null,"",""]
[null,null,null,null,null,null,null,null,"",""]
[null,null,null,null,null,null,null,null,"",""]
[null,null,null,null,null,null,null,null,"",""]
[null,null,null,null,null,null,null,null,"",""]
[null,null,null,null,null,null,null,null,"",""]
[null,null,null,null,null,null,null,null,"",""]
[null,null,null,null,null,null,null,null,"",""]
[null,null,null,null,null,null,null,null,"",""]
[null,null,null,null,null,null,null,null,"",""]
[null,null,null,null,null,null,null,null,"",""]
[null,null,null,null,null,null,null,null,{"$f":"IF(E133389=$L$27,1,IF(E133389=$L$28,3,IF(E133389=$L$29,4,IF(E133389=$L$30,5,IF(E133389=$L$31,10,IF(E133389=$L$32,9,IF(E133389=$L$33,2,IF(E133389=$L$34,6,\"\"))))))))","v":""},""]
[null,null,null,null,null,null,null,null,"",{"$f":"IF(H133458=$L$48,1,IF(H133458=$L$49,2,IF(H133458=$L$50,3,IF(H133458=$L$51,4,IF(H133458=$L$52,5,IF(H133458=$L$53,6,\"\"))))))","v":""}]
[null,null,null,null,null,null,null,null,"",""]
[null,null,null,null,null,null,null,null,"",""]
[null,null,null,null,null,null,null,null,"",""]
[null,null,null,null,null,null,null,null,"",""]
[null,null,null,null,null,null,null,null,"",""]
[null,null,null,null,null,null,null,null,"",""]
[null,null,null,null,null,null,null,null,"",""]
[null,null,null,null,null,null,null,null,"",""]
[null,null,null,null,null,null,null,null,"",""]
[null,null,null,null,null,null,null,null,"",""]
[null,null,null,null,null,null,null,null,"",""]
[null,null,null,null,null,null,null,null,"",""]
[null,null,null,null,null,null,null,null,"",""]
[null,null,null,null,null,null,null,null,"",""]
[null,null,null,null,null,null,null,null,{"$f":"IF(E134605=$L$27,1,IF(E134605=$L$28,3,IF(E134605=$L$29,4,IF(E134605=$L$30,5,IF(E134605=$L$31,10,IF(E134605=$L$32,9,IF(E134605=$L$33,2,IF(E134605=$L$34,6,\"\"))))))))","v":""},""]
[null,null,null,null,null,null,null,null,"",{"$f":"IF(H134674=$L$48,1,IF(H134674=$L$49,2,IF(H134674=$L$50,3,IF(H134674=$L$51,4,IF(H134674=$L$52,5,IF(H134674=$L$53,6,\"\"))))))","v":""}]
[null,null,null,null,null,null,null,null,"",""]
[null,null,null,null,null,null,null,null,"",""]
[null,null,null,null,null,null,null,null,"",""]
[null,null,null,null,null,null,null,null,"",""]
[null,null,null,null,null,null,null,null,"",""]
[null,null,null,null,null,null,null,null,"",""]
[null,null,null,null,null,null,null,null,"",""]
[null,null,null,null,null,null,null,null,"",""]
[null,null,null,null,null,null,null,null,"",""]
[null,null,null,null,null,null,null,null,"",""]
[null,null,null,null,null,null,null,null,"",""]
[null,null,null,null,null,null,null,null,"",""]
[null,null,null,null,null,null,null,null,"",""]
[null,null,null,null,null,null,null,null,"",""]
[null,null,null,null,null,null,null,null,"",""]
[null,null,null,null,null,null,null,null,"",""]
[null,null,null,null,null,null,null,null,"",""]
[null,null,null,null,null,null,null,null,"",""]
[null,null,null,null,null,null,null,null,"",""]
[null,null,null,null,null,null,null,null,"",""]
[null,null,null,null,null,null,null,null,"",""]
[null,null,null,null,null,null,null,null,"",""]
[null,null,null,null,null,null,null,null,"",""]
[null,null,null,null,null,null,null,null,"",""]
[null,null,null,null,null,null,null,null,"",""]
[null,null,null,null,null,null,null,null,"",""]
[null,null,null,null,null,null,null,null,"",""]
[null,null,null,null,null,null,null,null,"",""]
[null,null,null,null,null,null,null,null,"",""]
[null,null,null,null,null,null,null,null,"",""]
[null,null,null,null,null,null,null,null,"",""]
[null,null,null,null,null,null,null,null,"",""]
[null,null,null,null,null,null,null,null,"",""]
[null,null,null,null,null,null,null,null,"",""]
[null,null,null,null,null,null,null,null,"",""]
[null,null,null,null,null,null,null,null,"",""]
[null,null,null,null,null,null,null,null,"",""]
[null,null,null,null,null,null,null,null,"",""]
[null,null,null,null,null,null,null,null,"",""]
[null,null,null,null,null,null,null,null,"",""]
[null,null,null,null,null,null,null,null,"",""]
[null,null,null,null,null,null,null,null,"",""]
[null,null,null,null,null,null,null,null,"",""]
[null,null,null,null,null,null,null,null,"",""]
[null,null,null,null,null,null,null,null,"",""]
[null,null,null,null,null,null,null,null,"",""]
[null,null,null,null,null,null,null,null,"",""]
[null,null,null,null,null,null,null,null,"",""]
[null,null,null,null,null,null,null,null,"",""]
[null,null,null,null,null,null,null,null,"",""]
[null,null,null,null,null,null,null,null,"",""]
[null,null,null,null,null,null,null,null,"",""]
[null,null,null,null,null,null,null,null,"",""]
[null,null,null,null,null,null,null,null,"",""]
[null,null,null,null,null,null,null,null,"",""]
[null,null,null,null,null,null,null,null,"",""]
[null,null,null,null,null,null,null,null,"",""]
[null,null,null,null,null,null,null,null,"",""]
[null,null,null,null,null,null,null,null,"",""]
[null,null,null,null,null,null,null,null,"",""]
[null,null,null,null,null,null,null,null,"",""]
[null,null,null,null,null,null,null,null,{"$f":"IF(E139213=$L$27,1,IF(E139213=$L$28,3,IF(E139213=$L$29,4,IF(E139213=$L$30,5,IF(E139213=$L$31,10,IF(E139213=$L$32,9,IF(E139213=$L$33,2,IF(E139213=$L$34,6,\"\"))))))))","v":""},""]
[null,null,null,null,null,null,null,null,"",""]
[null,null,null,null,null,null,null,null,"",""]
[null,null,null,null,null,null,null,null,"",""]
[null,null,null,null,null,null,null,null,"",""]
[null,null,null,null,null,null,null,null,"",""]
[null,null,null,null,null,null,null,null,"",""]
[null,null,null,null,null,null,null,null,"",""]
[null,null,null,null,null,null,null,null,"",""]
[null,null,null,null,null,null,null,null,"",""]
[null,null,null,null,null,null,null,null,"",""]
[null,null,null,null,null,null,null,null,"",""]
[null,null,null,null,null,null,null,null,"",""]
[null,null,null,null,null,null,null,null,"",""]
[null,null,null,null,null,null,null,null,"",""]
[null,null,null,null,null,null,null,null,"",""]
[null,null,null,null,null,null,null,null,"",""]
[null,null,null,null,null,null,null,null,"",""]
[null,null,null,null,null,null,null,null,"",""]
[null,null,null,null,null,null,null,null,"",""]
[null,null,null,null,null,null,null,null,"",""]
[null,null,null,null,null,null,null,null,"",""]
[null,null,null,null,null,null,null,null,"",""]
[null,null,null,null,null,null,null,null,"",""]
[null,null,null,null,null,null,null,null,"",""]
[null,null,null,null,null,null,null,null,"",{"$f":"IF(H141074=$L$48,1,IF(H141074=$L$49,2,IF(H141074=$L$50,3,IF(H141074=$L$51,4,IF(H141074=$L$52,5,IF(H141074=$L$53,6,\"\"))))))","v":""}]
[null,null,null,null,null,null,null,null,"",""]
[null,null,null,null,null,null,null,null,"",""]
[null,null,null,null,null,null,null,null,"",""]
[null,null,null,null,null,null,null,null,"",""]
[null,null,null,null,null,null,null,null,"",""]
[null,null,null,null,null,null,null,null,"",""]
[null,null,null,null,null,null,null,null,"",""]
[null,null,null,null,null,null,null,null,"",""]
[null,null,null,null,null,null,null,null,"",""]
[null,null,null,null,null,null,null,null,"",""]
[null,null,null,null,null,null,null,null,"",""]
[null,null,null,null,null,null,null,null,"",""]
[null,null,null,null,null,null,null,null,"",""]
[null,null,null,null,null,null,null,null,"",""]
[null,null,null,null,null,null,null,null,"",""]
[null,null,null,null,null,null,null,null,"",""]
[null,null,null,null,null,null,null,null,"",""]
[null,null,null,null,null,null,null,null,"",""]
[null,null,null,null,null,null,null,null,"",""]
[null,null,null,null,null,null,null,null,"",""]
[null,null,null,null,null,null,null,null,"",""]
[null,null,null,null,null,null,null,null,"",""]
[null,null,null,null,null,null,null,null,"",""]
[null,null,null,null,null,null,null,null,"",{"$f":"IF(H142866=$L$48,1,IF(H142866=$L$49,2,IF(H142866=$L$50,3,IF(H142866=$L$51,4,IF(H142866=$L$52,5,IF(H142866=$L$53,6,\"\"))))))","v":""}]
[null,null,null,null,null,null,null,null,"",""]
[null,null,null,null,null,null,null,null,"",""]
[null,null,null,null,null,null,null,null,"",""]
[null,null,null,null,null,null,null,null,"",""]
[null,null,null,null,null,null,null,null,"",""]
[null,null,null,null,null,null,null,null,"",""]
[null,null,null,null,null,null,null,null,"",""]
[null,null,null,null,null,null,null,null,"",""]
[null,null,null,null,null,null,null,null,"",""]
[null,null,null,null,null,null,null,null,"",""]
[null,null,null,null,null,null,null,null,"",""]
[null,null,null,null,null,null,null,null,"",""]
[null,null,null,null,null,null,null,null,"",""]
[null,null,null,null,null,null,null,null,"",""]
[null,null,null,null,null,null,null,null,"",""]
[null,null,null,null,null,null,null,null,"",""]
[null,null,null,null,null,null,null,null,"",""]
[null,null,null,null,null,null,null,null,"",""]
[null,null,null,null,null,null,null,null,"",""]
[null,null,null,null,null,null,null,null,"",""]
[null,null,null,null,null,null,null,null,"",""]
[null,null,null,null,null,null,null,null,"",""]
[null,null,null,null,null,null,null,null,"",""]
[null,null,null,null,null,null,null,null,"",""]
[null,null,null,null,null,null,null,null,"",""]
[null,null,null,null,null,null,null,null,"",""]
[null,null,null,null,null,null,null,null,"",""]
[null,null,null,null,null,null,null,null,"",""]
[null,null,null,null,null,null,null,null,"",""]
[null,null,null,null,null,null,null,null,"",{"$f":"IF(H145042=$L$48,1,IF(H145042=$L$49,2,IF(H145042=$L$50,3,IF(H145042=$L$51,4,IF(H145042=$L$52,5,IF(H145042=$L$53,6,\"\"))))))","v":""}]
[null,null,null,null,null,null,null,null,"",""]
[null,null,null,null,null,null,null,null,"",""]
[null,null,null,null,null,null,null,null,"",""]
[null,null,null,null,null,null,null,null,"",""]
[null,null,null,null,null,null,null,null,"",""]
[null,null,null,null,null,null,null,null,"",""]
[null,null,null,null,null,null,null,null,"",""]
[null,null,null,null,null,null,null,null,"",""]
[null,null,null,null,null,null,null,null,"",""]
[null,null,null,null,null,null,null,null,"",""]
[null,null,null,null,null,null,null,null,"",""]
[null,null,null,null,null,null,null,null,"",""]
[null,null,null,null,null,null,null,null,"",""]
[null,null,null,null,null,null,null,null,"",""]
[null,null,null,null,null,null,null,null,"",""]
[null,null,null,null,null,null,null,null,"",""]
[null,null,null,null,null,null,null,null,"",""]
[null,null,null,null,null,null,null,null,"",""]
[null,null,null,null,null,null,null,null,"",""]
[null,null,null,null,null,null,null,null,"",""]
[null,null,null,null,null,null,null,null,"",""]
[null,null,null,null,null,null,null,null,"",""]
[null,null,null,null,null,null,null,null,"",""]
[null,null,null,null,null,null,null,null,"",""]
[null,null,null,null,null,null,null,null,"",""]
[null,null,null,null,null,null,null,null,"",""]
[null,null,null,null,null,null,null,null,"",""]
[null,null,null,null,null,null,null,null,"",""]
[null,null,null,null,null,null,null,null,"",""]
[null,null,null,null,null,null,null,null,"",""]
[null,null,null,null,null,null,null,null,"",""]
[null,null,null,null,null,null,null,null,"",""]
[null,null,null,null,null,null,null,null,"",""]
[null,null,null,null,null,null,null,null,"",""]
[null,null,null,null,null,null,null,null,"",""]
[null,null,null,null,null,null,null,null,"",""]
[null,null,null,null,null,null,null,null,"",""]
[null,null,null,null,null,null,null,null,"",""]
[null,null,null,null,null,null,null,null,"",""]
[null,null,null,null,null,null,null,null,"",""]
[null,null,null,null,null,null,null,null,"",""]
[null,null,null,null,null,null,null,null,"",""]
[null,null,null,null,null,null,null,null,"",""]
[null,null,null,null,null,null,null,null,"",""]
[null,null,null,null,null,null,null,null,"",""]
[null,null,null,null,null,null,null,null,"",""]
[null,null,null,null,null,null,null,null,"",""]
[null,null,null,null,null,null,null,null,"",""]
[null,null,null,null,null,null,null,null,"",""]
[null,null,null,null,null,null,null,null,"",""]
[null,null,null,null,null,null,null,null,"",""]
[null,null,null,null,null,null,null,null,"",""]
[null,null,null,null,null,null,null,null,"",""]
[null,null,null,null,null,null,null,null,"",""]
[null,null,null,null,null,null,null,null,"",""]
[null,null,null,null,null,null,null,null,"",""]
[null,null,null,null,null,null,null,null,"",""]
[null,null,null,null,null,null,null,null,"",""]
[null,null,null,null,null,null,null,null,"",""]
[null,null,null,null,null,null,null,null,"",""]
[null,null,null,null,null,null,null,null,"",""]
[null,null,null,null,null,null,null,null,"",""]
[null,null,null,null,null,null,null,null,"",""]
[null,null,null,null,null,null,null,null,"",""]
[null,null,null,null,null,null,null,null,"",""]
[null,null,null,null,null,null,null,null,{"$f":"IF(E149517=$L$27,1,IF(E149517=$L$28,3,IF(E149517=$L$29,4,IF(E149517=$L$30,5,IF(E149517=$L$31,10,IF(E149517=$L$32,9,IF(E149517=$L$33,2,IF(E149517=$L$34,6,\"\"))))))))","v":""},""]
[null,null,null,null,null,null,null,null,"",""]
[null,null,null,null,null,null,null,null,"",""]
[null,null,null,null,null,null,null,null,"",""]
[null,null,null,null,null,null,null,null,"",""]
[null,null,null,null,null,null,null,null,"",{"$f":"IF(H149522=$L$48,1,IF(H149522=$L$49,2,IF(H149522=$L$50,3,IF(H149522=$L$51,4,IF(H149522=$L$52,5,IF(H149522=$L$53,6,\"\"))))))","v":""}]
[null,null,null,null,null,null,null,null,"",""]
[null,null,null,null,null,null,null,null,"",""]
[null,null,null,null,null,null,null,null,"",""]
[null,null,null,null,null,null,null,null,"",""]
[null,null,null,null,null,null,null,null,"",""]
[null,null,null,null,null,null,null,null,"",""]
[null,null,null,null,null,null,null,null,"",""]
[null,null,null,null,null,null,null,null,"",""]
[null,null,null,null,null,null,null,null,"",""]
[null,null,null,null,null,null,null,null,"",""]
[null,null,null,null,null,null,null,null,"",""]
[null,null,null,null,null,null,null,null,"",""]
[null,null,null,null,null,null,null,null,"",""]
[null,null,null,null,null,null,null,null,"",""]
[null,null,null,null,null,null,null,null,"",""]
[null,null,null,null,null,null,null,null,"",""]
[null,null,null,null,null,null,null,null,"",""]
[null,null,null,null,null,null,null,null,"",""]
[null,null,null,null,null,null,null,null,"",""]
[null,null,null,null,null,null,null,null,"",""]
[null,null,null,null,null,null,null,null,"",""]
[null,null,null,null,null,null,null,null,"",""]
[null,null,null,null,null,null,null,null,"",""]
[null,null,null,null,null,null,null,null,"",""]
[null,null,null,null,null,null,null,null,"",""]
[null,null,null,null,null,null,null,null,"",""]
[null,null,null,null,null,null,null,null,"",""]
[null,null,null,null,null,null,null,null,"",""]
[null,null,null,null,null,null,null,null,"",""]
[null,null,null,null,null,null,null,null,"",""]
[null,null,null,null,null,null,null,null,"",""]
[null,null,null,null,null,null,null,null,"",""]
[null,null,null,null,null,null,null,null,"",""]
[null,null,null,null,null,null,null,null,"",""]
[null,null,null,null,null,null,null,null,"",""]
[null,null,null,null,null,null,null,null,"",""]
[null,null,null,null,null,null,null,null,"",""]
[null,null,null,null,null,null,null,null,"",""]
[null,null,null,null,null,null,null,null,"",""]
[null,null,null,null,null,null,null,null,"",""]
[null,null,null,null,null,null,null,null,"",""]
[null,null,null,null,null,null,null,null,"",""]
[null,null,null,null,null,null,null,null,"",""]
[null,null,null,null,null,null,null,null,"",""]
[null,null,null,null,null,null,null,null,"",""]
[null,null,null,null,null,null,null,null,"",""]
[null,null,null,null,null,null,null,null,"",""]
[null,null,null,null,null,null,null,null,"",""]
[null,null,null,null,null,null,null,null,"",""]
[null,null,null,null,null,null,null,null,"",""]
[null,null,null,null,null,null,null,null,"",""]
[null,null,null,null,null,null,null,null,"",""]
[null,null,null,null,null,null,null,null,"",""]
[null,null,null,null,null,null,null,null,"",""]
[null,null,null,null,null,null,null,null,"",""]
[null,null,null,null,null,null,null,null,"",""]
[null,null,null,null,null,null,null,null,"",""]
[null,null,null,null,null,null,null,null,"",""]
[null,null,null,null,null,null,null,null,{"$f":"IF(E149581=$L$27,1,IF(E149581=$L$28,3,IF(E149581=$L$29,4,IF(E149581=$L$30,5,IF(E149581=$L$31,10,IF(E149581=$L$32,9,IF(E149581=$L$33,2,IF(E149581=$L$34,6,\"\"))))))))","v":""},""]
[null,null,null,null,null,null,null,null,"",""]
[null,null,null,null,null,null,null,null,"",""]
[null,null,null,null,null,null,null,null,"",""]
[null,null,null,null,null,null,null,null,"",""]
[null,null,null,null,null,null,null,null,"",{"$f":"IF(H149586=$L$48,1,IF(H149586=$L$49,2,IF(H149586=$L$50,3,IF(H149586=$L$51,4,IF(H149586=$L$52,5,IF(H149586=$L$53,6,\"\"))))))","v":""}]
[null,null,null,null,null,null,null,null,"",""]
[null,null,null,null,null,null,null,null,"",""]
[null,null,null,null,null,null,null,null,"",""]
[null,null,null,null,null,null,null,null,"",""]
[null,null,null,null,null,null,null,null,"",""]
[null,null,null,null,null,null,null,null,"",""]
[null,null,null,null,null,null,null,null,"",""]
[null,null,null,null,null,null,null,null,"",""]
[null,null,null,null,null,null,null,null,"",""]
[null,null,null,null,null,null,null,null,"",""]
[null,null,null,null,null,null,null,null,"",""]
[null,null,null,null,null,null,null,null,"",""]
[null,null,null,null,null,null,null,null,"",""]
[null,null,null,null,null,null,null,null,"",""]
[null,null,null,null,null,null,null,null,"",""]
[null,null,null,null,null,null,null,null,"",""]
[null,null,null,null,null,null,null,null,"",""]
[null,null,null,null,null,null,null,null,"",""]
[null,null,null,null,null,null,null,null,"",""]
[null,null,null,null,null,null,null,null,"",""]
[null,null,null,null,null,null,null,null,"",""]
[null,null,null,null,null,null,null,null,"",""]
[null,null,null,null,null,null,null,null,"",""]
[null,null,null,null,null,null,null,null,"",""]
[null,null,null,null,null,null,null,null,"",""]
[null,null,null,null,null,null,null,null,"",""]
[null,null,null,null,null,null,null,null,"",""]
[null,null,null,null,null,null,null,null,"",""]
[null,null,null,null,null,null,null,null,"",""]
[null,null,null,null,null,null,null,null,"",""]
[null,null,null,null,null,null,null,null,"",""]
[null,null,null,null,null,null,null,null,"",""]
[null,null,null,null,null,null,null,null,"",""]
[null,null,null,null,null,null,null,null,"",""]
[null,null,null,null,null,null,null,null,"",""]
[null,null,null,null,null,null,null,null,"",""]
[null,null,null,null,null,null,null,null,"",""]
[null,null,null,null,null,null,null,null,"",""]
[null,null,null,null,null,null,null,null,"",""]
[null,null,null,null,null,null,null,null,"",""]
[null,null,null,null,null,null,null,null,"",""]
[null,null,null,null,null,null,null,null,"",""]
[null,null,null,null,null,null,null,null,"",""]
[null,null,null,null,null,null,null,null,"",""]
[null,null,null,null,null,null,null,null,"",""]
[null,null,null,null,null,null,null,null,"",""]
[null,null,null,null,null,null,null,null,"",""]
[null,null,null,null,null,null,null,null,"",""]
[null,null,null,null,null,null,null,null,"",""]
[null,null,null,null,null,null,null,null,"",""]
[null,null,null,null,null,null,null,null,"",""]
[null,null,null,null,null,null,null,null,"",""]
[null,null,null,null,null,null,null,null,"",""]
[null,null,null,null,null,null,null,null,"",""]
[null,null,null,null,null,null,null,null,"",""]
[null,null,null,null,null,null,null,null,"",""]
[null,null,null,null,null,null,null,null,"",""]
[null,null,null,null,null,null,null,null,"",""]
[null,null,null,null,null,null,null,null,{"$f":"IF(E149645=$L$27,1,IF(E149645=$L$28,3,IF(E149645=$L$29,4,IF(E149645=$L$30,5,IF(E149645=$L$31,10,IF(E149645=$L$32,9,IF(E149645=$L$33,2,IF(E149645=$L$34,6,\"\"))))))))","v":""},""]
[null,null,null,null,null,null,null,null,"",""]
[null,null,null,null,null,null,null,null,"",""]
[null,null,null,null,null,null,null,null,"",""]
[null,null,null,null,null,null,null,null,"",""]
[null,null,null,null,null,null,null,null,"",{"$f":"IF(H149650=$L$48,1,IF(H149650=$L$49,2,IF(H149650=$L$50,3,IF(H149650=$L$51,4,IF(H149650=$L$52,5,IF(H149650=$L$53,6,\"\"))))))","v":""}]
[null,null,null,null,null,null,null,null,"",""]
[null,null,null,null,null,null,null,null,"",""]
[null,null,null,null,null,null,null,null,"",""]
[null,null,null,null,null,null,null,null,"",""]
[null,null,null,null,null,null,null,null,"",""]
[null,null,null,null,null,null,null,null,"",""]
[null,null,null,null,null,null,null,null,"",""]
[null,null,null,null,null,null,null,null,"",""]
[null,null,null,null,null,null,null,null,"",""]
[null,null,null,null,null,null,null,null,"",""]
[null,null,null,null,null,null,null,null,"",""]
[null,null,null,null,null,null,null,null,"",""]
[null,null,null,null,null,null,null,null,"",""]
[null,null,null,null,null,null,null,null,"",""]
[null,null,null,null,null,null,null,null,"",""]
[null,null,null,null,null,null,null,null,"",""]
[null,null,null,null,null,null,null,null,"",""]
[null,null,null,null,null,null,null,null,"",""]
[null,null,null,null,null,null,null,null,"",""]
[null,null,null,null,null,null,null,null,"",""]
[null,null,null,null,null,null,null,null,"",""]
[null,null,null,null,null,null,null,null,"",""]
[null,null,null,null,null,null,null,null,"",""]
[null,null,null,null,null,null,null,null,"",""]
[null,null,null,null,null,null,null,null,"",""]
[null,null,null,null,null,null,null,null,"",""]
[null,null,null,null,null,null,null,null,"",""]
[null,null,null,null,null,null,null,null,"",""]
[null,null,null,null,null,null,null,null,"",""]
[null,null,null,null,null,null,null,null,"",""]
[null,null,null,null,null,null,null,null,"",""]
[null,null,null,null,null,null,null,null,"",""]
[null,null,null,null,null,null,null,null,"",""]
[null,null,null,null,null,null,null,null,"",""]
[null,null,null,null,null,null,null,null,"",""]
[null,null,null,null,null,null,null,null,"",""]
[null,null,null,null,null,null,null,null,"",""]
[null,null,null,null,null,null,null,null,"",""]
[null,null,null,null,null,null,null,null,"",""]
[null,null,null,null,null,null,null,null,"",""]
[null,null,null,null,null,null,null,null,"",""]
[null,null,null,null,null,null,null,null,"",""]
[null,null,null,null,null,null,null,null,"",""]
[null,null,null,null,null,null,null,null,"",""]
[null,null,null,null,null,null,null,null,"",""]
[null,null,null,null,null,null,null,null,"",""]
[null,null,null,null,null,null,null,null,"",""]
[null,null,null,null,null,null,null,null,"",""]
[null,null,null,null,null,null,null,null,"",""]
[null,null,null,null,null,null,null,null,"",""]
[null,null,null,null,null,null,null,null,"",""]
[null,null,null,null,null,null,null,null,"",""]
[null,null,null,null,null,null,null,null,"",""]
[null,null,null,null,null,null,null,null,"",""]
[null,null,null,null,null,null,null,null,"",""]
[null,null,null,null,null,null,null,null,"",""]
[null,null,null,null,null,null,null,null,"",""]
[null,null,null,null,null,null,null,null,"",""]
[null,null,null,null,null,null,null,null,{"$f":"IF(E149709=$L$27,1,IF(E149709=$L$28,3,IF(E149709=$L$29,4,IF(E149709=$L$30,5,IF(E149709=$L$31,10,IF(E149709=$L$32,9,IF(E149709=$L$33,2,IF(E149709=$L$34,6,\"\"))))))))","v":""},""]
[null,null,null,null,null,null,null,null,"",""]
[null,null,null,null,null,null,null,null,"",""]
[null,null,null,null,null,null,null,null,"",""]
[null,null,null,null,null,null,null,null,"",""]
[null,null,null,null,null,null,null,null,"",{"$f":"IF(H149714=$L$48,1,IF(H149714=$L$49,2,IF(H149714=$L$50,3,IF(H149714=$L$51,4,IF(H149714=$L$52,5,IF(H149714=$L$53,6,\"\"))))))","v":""}]
[null,null,null,null,null,null,null,null,"",""]
[null,null,null,null,null,null,null,null,"",""]
[null,null,null,null,null,null,null,null,"",""]
[null,null,null,null,null,null,null,null,"",""]
[null,null,null,null,null,null,null,null,"",""]
[null,null,null,null,null,null,null,null,"",""]
[null,null,null,null,null,null,null,null,"",""]
[null,null,null,null,null,null,null,null,"",""]
[null,null,null,null,null,null,null,null,"",""]
[null,null,null,null,null,null,null,null,"",""]
[null,null,null,null,null,null,null,null,"",""]
[null,null,null,null,null,null,null,null,"",""]
[null,null,null,null,null,null,null,null,"",""]
[null,null,null,null,null,null,null,null,"",""]
[null,null,null,null,null,null,null,null,"",""]
[null,null,null,null,null,null,null,null,"",""]
[null,null,null,null,null,null,null,null,"",""]
[null,null,null,null,null,null,null,null,"",""]
[null,null,null,null,null,null,null,null,"",""]
[null,null,null,null,null,null,null,null,"",""]
[null,null,null,null,null,null,null,null,"",""]
[null,null,null,null,null,null,null,null,"",""]
[null,null,null,null,null,null,null,null,"",""]
[null,null,null,null,null,null,null,null,"",""]
[null,null,null,null,null,null,null,null,"",""]
[null,null,null,null,null,null,null,null,"",""]
[null,null,null,null,null,null,null,null,"",""]
[null,null,null,null,null,null,null,null,"",""]
[null,null,null,null,null,null,null,null,"",""]
[null,null,null,null,null,null,null,null,"",""]
[null,null,null,null,null,null,null,null,"",""]
[null,null,null,null,null,null,null,null,"",""]
[null,null,null,null,null,null,null,null,"",""]
[null,null,null,null,null,null,null,null,"",""]
[null,null,null,null,null,null,null,null,"",""]
[null,null,null,null,null,null,null,null,"",""]
[null,null,null,null,null,null,null,null,"",""]
[null,null,null,null,null,null,null,null,"",""]
[null,null,null,null,null,null,null,null,"",""]
[null,null,null,null,null,null,null,null,"",""]
[null,null,null,null,null,null,null,null,"",""]
[null,null,null,null,null,null,null,null,"",""]
[null,null,null,null,null,null,null,null,"",""]
[null,null,null,null,null,null,null,null,"",""]
[null,null,null,null,null,null,null,null,"",""]
[null,null,null,null,null,null,null,null,"",""]
[null,null,null,null,null,null,null,null,"",""]
[null,null,null,null,null,null,null,null,"",""]
[null,null,null,null,null,null,null,null,"",""]
[null,null,null,null,null,null,null,null,"",""]
[null,null,null,null,null,null,null,null,"",""]
[null,null,null,null,null,null,null,null,"",""]
[null,null,null,null,null,null,null,null,"",""]
[null,null,null,null,null,null,null,null,"",""]
[null,null,null,null,null,null,null,null,"",""]
[null,null,null,null,null,null,null,null,"",""]
[null,null,null,null,null,null,null,null,"",""]
[null,null,null,null,null,null,null,null,"",""]
[null,null,null,null,null,null,null,null,{"$f":"IF(E149773=$L$27,1,IF(E149773=$L$28,3,IF(E149773=$L$29,4,IF(E149773=$L$30,5,IF(E149773=$L$31,10,IF(E149773=$L$32,9,IF(E149773=$L$33,2,IF(E149773=$L$34,6,\"\"))))))))","v":""},""]
[null,null,null,null,null,null,null,null,"",""]
[null,null,null,null,null,null,null,null,"",""]
[null,null,null,null,null,null,null,null,"",""]
[null,null,null,null,null,null,null,null,"",""]
[null,null,null,null,null,null,null,null,"",{"$f":"IF(H149778=$L$48,1,IF(H149778=$L$49,2,IF(H149778=$L$50,3,IF(H149778=$L$51,4,IF(H149778=$L$52,5,IF(H149778=$L$53,6,\"\"))))))","v":""}]
[null,null,null,null,null,null,null,null,"",""]
[null,null,null,null,null,null,null,null,"",""]
[null,null,null,null,null,null,null,null,"",""]
[null,null,null,null,null,null,null,null,"",""]
[null,null,null,null,null,null,null,null,"",""]
[null,null,null,null,null,null,null,null,"",""]
[null,null,null,null,null,null,null,null,"",""]
[null,null,null,null,null,null,null,null,"",""]
[null,null,null,null,null,null,null,null,"",""]
[null,null,null,null,null,null,null,null,"",""]
[null,null,null,null,null,null,null,null,"",""]
[null,null,null,null,null,null,null,null,"",""]
[null,null,null,null,null,null,null,null,"",""]
[null,null,null,null,null,null,null,null,"",""]
[null,null,null,null,null,null,null,null,"",""]
[null,null,null,null,null,null,null,null,"",""]
[null,null,null,null,null,null,null,null,"",""]
[null,null,null,null,null,null,null,null,"",""]
[null,null,null,null,null,null,null,null,"",""]
[null,null,null,null,null,null,null,null,"",""]
[null,null,null,null,null,null,null,null,"",""]
[null,null,null,null,null,null,null,null,"",""]
[null,null,null,null,null,null,null,null,"",""]
[null,null,null,null,null,null,null,null,"",""]
[null,null,null,null,null,null,null,null,"",""]
[null,null,null,null,null,null,null,null,"",""]
[null,null,null,null,null,null,null,null,"",""]
[null,null,null,null,null,null,null,null,"",""]
[null,null,null,null,null,null,null,null,"",""]
[null,null,null,null,null,null,null,null,"",""]
[null,null,null,null,null,null,null,null,"",""]
[null,null,null,null,null,null,null,null,"",""]
[null,null,null,null,null,null,null,null,"",""]
[null,null,null,null,null,null,null,null,"",""]
[null,null,null,null,null,null,null,null,"",""]
[null,null,null,null,null,null,null,null,"",""]
[null,null,null,null,null,null,null,null,"",""]
[null,null,null,null,null,null,null,null,"",""]
[null,null,null,null,null,null,null,null,"",""]
[null,null,null,null,null,null,null,null,"",""]
[null,null,null,null,null,null,null,null,"",""]
[null,null,null,null,null,null,null,null,"",""]
[null,null,null,null,null,null,null,null,"",""]
[null,null,null,null,null,null,null,null,"",""]
[null,null,null,null,null,null,null,null,"",""]
[null,null,null,null,null,null,null,null,"",""]
[null,null,null,null,null,null,null,null,"",""]
[null,null,null,null,null,null,null,null,"",""]
[null,null,null,null,null,null,null,null,"",""]
[null,null,null,null,null,null,null,null,"",""]
[null,null,null,null,null,null,null,null,"",""]
[null,null,null,null,null,null,null,null,"",""]
[null,null,null,null,null,null,null,null,"",""]
[null,null,null,null,null,null,null,null,"",""]
[null,null,null,null,null,null,null,null,"",""]
[null,null,null,null,null,null,null,null,"",""]
[null,null,null,null,null,null,null,null,"",""]
[null,null,null,null,null,null,null,null,"",""]
[null,null,null,null,null,null,null,null,{"$f":"IF(E149837=$L$27,1,IF(E149837=$L$28,3,IF(E149837=$L$29,4,IF(E149837=$L$30,5,IF(E149837=$L$31,10,IF(E149837=$L$32,9,IF(E149837=$L$33,2,IF(E149837=$L$34,6,\"\"))))))))","v":""},""]
[null,null,null,null,null,null,null,null,"",""]
[null,null,null,null,null,null,null,null,"",""]
[null,null,null,null,null,null,null,null,"",""]
[null,null,null,null,null,null,null,null,"",""]
[null,null,null,null,null,null,null,null,"",{"$f":"IF(H149842=$L$48,1,IF(H149842=$L$49,2,IF(H149842=$L$50,3,IF(H149842=$L$51,4,IF(H149842=$L$52,5,IF(H149842=$L$53,6,\"\"))))))","v":""}]
[null,null,null,null,null,null,null,null,"",""]
[null,null,null,null,null,null,null,null,"",""]
[null,null,null,null,null,null,null,null,"",""]
[null,null,null,null,null,null,null,null,"",""]
[null,null,null,null,null,null,null,null,"",""]
[null,null,null,null,null,null,null,null,"",""]
[null,null,null,null,null,null,null,null,"",""]
[null,null,null,null,null,null,null,null,"",""]
[null,null,null,null,null,null,null,null,"",""]
[null,null,null,null,null,null,null,null,"",""]
[null,null,null,null,null,null,null,null,"",""]
[null,null,null,null,null,null,null,null,"",""]
[null,null,null,null,null,null,null,null,"",""]
[null,null,null,null,null,null,null,null,"",""]
[null,null,null,null,null,null,null,null,"",""]
[null,null,null,null,null,null,null,null,"",""]
[null,null,null,null,null,null,null,null,"",""]
[null,null,null,null,null,null,null,null,"",""]
[null,null,null,null,null,null,null,null,"",""]
[null,null,null,null,null,null,null,null,"",""]
[null,null,null,null,null,null,null,null,"",""]
[null,null,null,null,null,null,null,null,"",""]
[null,null,null,null,null,null,null,null,"",""]
[null,null,null,null,null,null,null,null,"",""]
[null,null,null,null,null,null,null,null,"",""]
[null,null,null,null,null,null,null,null,"",""]
[null,null,null,null,null,null,null,null,"",""]
[null,null,null,null,null,null,null,null,"",""]
[null,null,null,null,null,null,null,null,"",""]
[null,null,null,null,null,null,null,null,"",""]
[null,null,null,null,null,null,null,null,"",""]
[null,null,null,null,null,null,null,null,"",""]
[null,null,null,null,null,null,null,null,"",""]
[null,null,null,null,null,null,null,null,"",""]
[null,null,null,null,null,null,null,null,"",""]
[null,null,null,null,null,null,null,null,"",""]
[null,null,null,null,null,null,null,null,"",""]
[null,null,null,null,null,null,null,null,"",""]
[null,null,null,null,null,null,null,null,"",""]
[null,null,null,null,null,null,null,null,"",""]
[null,null,null,null,null,null,null,null,"",""]
[null,null,null,null,null,null,null,null,"",""]
[null,null,null,null,null,null,null,null,"",""]
[null,null,null,null,null,null,null,null,"",""]
[null,null,null,null,null,null,null,null,"",""]
[null,null,null,null,null,null,null,null,"",""]
[null,null,null,null,null,null,null,null,"",""]
[null,null,null,null,null,null,null,null,"",""]
[null,null,null,null,null,null,null,null,"",""]
[null,null,null,null,null,null,null,null,"",""]
[null,null,null,null,null,null,null,null,"",""]
[null,null,null,null,null,null,null,null,"",""]
[null,null,null,null,null,null,null,null,"",""]
[null,null,null,null,null,null,null,null,"",""]
[null,null,null,null,null,null,null,null,"",""]
[null,null,null,null,null,null,null,null,"",""]
[null,null,null,null,null,null,null,null,"",""]
[null,null,null,null,null,null,null,null,"",""]
[null,null,null,null,null,null,null,null,{"$f":"IF(E149901=$L$27,1,IF(E149901=$L$28,3,IF(E149901=$L$29,4,IF(E149901=$L$30,5,IF(E149901=$L$31,10,IF(E149901=$L$32,9,IF(E149901=$L$33,2,IF(E149901=$L$34,6,\"\"))))))))","v":""},""]
[null,null,null,null,null,null,null,null,"",""]
[null,null,null,null,null,null,null,null,"",""]
[null,null,null,null,null,null,null,null,"",""]
[null,null,null,null,null,null,null,null,"",""]
[null,null,null,null,null,null,null,null,"",{"$f":"IF(H149906=$L$48,1,IF(H149906=$L$49,2,IF(H149906=$L$50,3,IF(H149906=$L$51,4,IF(H149906=$L$52,5,IF(H149906=$L$53,6,\"\"))))))","v":""}]
[null,null,null,null,null,null,null,null,"",""]
[null,null,null,null,null,null,null,null,"",""]
[null,null,null,null,null,null,null,null,"",""]
[null,null,null,null,null,null,null,null,"",""]
[null,null,null,null,null,null,null,null,"",""]
[null,null,null,null,null,null,null,null,"",""]
[null,null,null,null,null,null,null,null,"",""]
[null,null,null,null,null,null,null,null,"",""]
[null,null,null,null,null,null,null,null,"",""]
[null,null,null,null,null,null,null,null,"",""]
[null,null,null,null,null,null,null,null,"",""]
[null,null,null,null,null,null,null,null,"",""]
[null,null,null,null,null,null,null,null,"",""]
[null,null,null,null,null,null,null,null,"",""]
[null,null,null,null,null,null,null,null,"",""]
[null,null,null,null,null,null,null,null,"",""]
[null,null,null,null,null,null,null,null,"",""]
[null,null,null,null,null,null,null,null,"",""]
[null,null,null,null,null,null,null,null,"",""]
[null,null,null,null,null,null,null,null,"",""]
[null,null,null,null,null,null,null,null,"",""]
[null,null,null,null,null,null,null,null,"",""]
[null,null,null,null,null,null,null,null,"",""]
[null,null,null,null,null,null,null,null,"",""]
[null,null,null,null,null,null,null,null,"",""]
[null,null,null,null,null,null,null,null,"",""]
[null,null,null,null,null,null,null,null,"",""]
[null,null,null,null,null,null,null,null,"",""]
[null,null,null,null,null,null,null,null,"",""]
[null,null,null,null,null,null,null,null,"",""]
[null,null,null,null,null,null,null,null,"",""]
[null,null,null,null,null,null,null,null,"",""]
[null,null,null,null,null,null,null,null,"",""]
[null,null,null,null,null,null,null,null,"",""]
[null,null,null,null,null,null,null,null,"",""]
[null,null,null,null,null,null,null,null,"",""]
[null,null,null,null,null,null,null,null,"",""]
[null,null,null,null,null,null,null,null,"",""]
[null,null,null,null,null,null,null,null,"",""]
[null,null,null,null,null,null,null,null,"",""]
[null,null,null,null,null,null,null,null,"",""]
[null,null,null,null,null,null,null,null,"",""]
[null,null,null,null,null,null,null,null,"",""]
[null,null,null,null,null,null,null,null,"",""]
[null,null,null,null,null,null,null,null,"",""]
[null,null,null,null,null,null,null,null,"",""]
[null,null,null,null,null,null,null,null,"",""]
[null,null,null,null,null,null,null,null,"",""]
[null,null,null,null,null,null,null,null,"",""]
[null,null,null,null,null,null,null,null,"",""]
[null,null,null,null,null,null,null,null,"",""]
[null,null,null,null,null,null,null,null,"",""]
[null,null,null,null,null,null,null,null,"",""]
[null,null,null,null,null,null,null,null,"",""]
[null,null,null,null,null,null,null,null,"",""]
[null,null,null,null,null,null,null,null,"",""]
[null,null,null,null,null,null,null,null,"",""]
[null,null,null,null,null,null,null,null,"",""]
[null,null,null,null,null,null,null,null,{"$f":"IF(E149965=$L$27,1,IF(E149965=$L$28,3,IF(E149965=$L$29,4,IF(E149965=$L$30,5,IF(E149965=$L$31,10,IF(E149965=$L$32,9,IF(E149965=$L$33,2,IF(E149965=$L$34,6,\"\"))))))))","v":""},""]
[null,null,null,null,null,null,null,null,"",""]
[null,null,null,null,null,null,null,null,"",""]
[null,null,null,null,null,null,null,null,"",""]
[null,null,null,null,null,null,null,null,"",""]
[null,null,null,null,null,null,null,null,"",{"$f":"IF(H149970=$L$48,1,IF(H149970=$L$49,2,IF(H149970=$L$50,3,IF(H149970=$L$51,4,IF(H149970=$L$52,5,IF(H149970=$L$53,6,\"\"))))))","v":""}]
[null,null,null,null,null,null,null,null,"",""]
[null,null,null,null,null,null,null,null,"",""]
[null,null,null,null,null,null,null,null,"",""]
[null,null,null,null,null,null,null,null,"",""]
[null,null,null,null,null,null,null,null,"",""]
[null,null,null,null,null,null,null,null,"",""]
[null,null,null,null,null,null,null,null,"",""]
[null,null,null,null,null,null,null,null,"",""]
[null,null,null,null,null,null,null,null,"",""]
[null,null,null,null,null,null,null,null,"",""]
[null,null,null,null,null,null,null,null,"",""]
[null,null,null,null,null,null,null,null,"",""]
[null,null,null,null,null,null,null,null,"",""]
[null,null,null,null,null,null,null,null,"",""]
[null,null,null,null,null,null,null,null,"",""]
[null,null,null,null,null,null,null,null,"",""]
[null,null,null,null,null,null,null,null,"",""]
[null,null,null,null,null,null,null,null,"",""]
[null,null,null,null,null,null,null,null,"",""]
[null,null,null,null,null,null,null,null,"",""]
[null,null,null,null,null,null,null,null,"",""]
[null,null,null,null,null,null,null,null,"",""]
[null,null,null,null,null,null,null,null,"",""]
[null,null,null,null,null,null,null,null,"",""]
[null,null,null,null,null,null,null,null,"",""]
[null,null,null,null,null,null,null,null,"",""]
[null,null,null,null,null,null,null,null,"",""]
[null,null,null,null,null,null,null,null,"",""]
[null,null,null,null,null,null,null,null,"",""]
[null,null,null,null,null,null,null,null,"",""]
[null,null,null,null,null,null,null,null,"",""]
[null,null,null,null,null,null,null,null,"",{"$f":"IF(H150002=$L$48,1,IF(H150002=$L$49,2,IF(H150002=$L$50,3,IF(H150002=$L$51,4,IF(H150002=$L$52,5,IF(H150002=$L$53,6,\"\"))))))","v":""}]
[null,null,null,null,null,null,null,null,"",""]
[null,null,null,null,null,null,null,null,"",""]
[null,null,null,null,null,null,null,null,"",""]
[null,null,null,null,null,null,null,null,"",""]
[null,null,null,null,null,null,null,null,"",""]
[null,null,null,null,null,null,null,null,"",""]
[null,null,null,null,null,null,null,null,"",""]
[null,null,null,null,null,null,null,null,"",""]
[null,null,null,null,null,null,null,null,"",""]